Workbook

Sheet FACTORES (hidden)
A1: DEDUCIBLE | C1: COASEGURO | E1: TOPES COA | F1: EMERGENCIA EN EL EXTRANJERO | J1: DED CERO POR ACC | K1: COSTO | N1: RPF | O1: FIJO | P1: CAPTURA | Q1: % CALCULO | S1: FACTORES PRIMA DE TARIFA
C2: 0 | D2: 1.14 | F2: SI | G2: 1.05 | N2: SEMESTRAL | O2: 0.0473 | P2: =+COTIZACION!H39 -> 0.0473 | Q2: =IF(P2=0,1+O2,1+P2) -> 1.0473 | S2: 0.265 | T2: 0.265 | W2: ADQUISICIÓN
A3: 6000 | B3: 1 | C3: 0.05 | D3: 1.07 | E3: $30,000 | F3: NO | G3: 1 | N3: TRIMESTRAL | O3: 0.07 | P3: =+COTIZACION!H40 -> 0.0699 | Q3: =IF(P3=0,1+O3,1+P3) -> 1.0699 | S3: 0.15 | T3: 0.1 | W3: AMINISTRACIÓN
A4: 7000 | B4: 0.97 | C4: 0.1 | D4: 1 | E4: $35,000 | N4: MENSUAL | O4: 0.1 | P4: =+COTIZACION!H41 -> 0.0999 | Q4: =IF(P4=0,1+O4,1+P4) -> 1.0999 | S4: 0.15 | T4: 0.08 | W4: UTILIDAD
A5: 8000 | B5: 0.94 | C5: 0.15 | D5: 0.97 | E5: $40,000 | F5: COBERTURA EN EL EXTRANJERO | J5: 5500 | K5: 617.7599444 | M5: =+K5*(1-0.18) -> 506.5631544 | Q5: =M5/(1-$O$17-$P$19) -> 704.5384623 | R5: =(Q5/K5)-1 -> 0.140472879 | S5: =+SUM(S2:S4) -> 0.565 | T5: =+SUM(T2:T4) -> 0.445
A6: 9000 | B6: 0.91 | C6: 0.2 | D6: 0.93 | E6: $50,000 | F6: ZONA A | G6: 3.3 | J6: 6000 | K6: 655.2130737 | M6: 537.2747204 | Q6: 747.2527405 | R6: =(Q6/K6)-1 -> 0.140472879
A7: 10000 | B7: 0.88 | C7: Catálogo | F7: ZONA B | G7: 2.4 | J7: 7000 | K7: 686.8497914 | M7: 563.2168289 | N7: BASE DE CATALOGO | Q7: 783.333559 | R7: =(Q7/K7)-1 -> 0.140472879 | S7: DEDUCIBLE CONDICIONADO A POLIZA NUEVA O RENOVADA
A8: 15000 | B8: 0.759 | C8: 0 | D8: 1 | F8: ZONA C | G8: 1.9 | J8: 8000 | K8: 714.2667594 | M8: 585.6987427 | N8: ZONA | O8: MONTO | Q8: 814.6018675 | R8: 0.140472879 | S8: =+IF(COTIZACION!D$7=COTIZACION!$G$241,"FAVOR DE SELECCIONAR",FACTORES!A5) -> FAVOR DE SELECCIONAR | T8: =+IF(S8<>8000,"",B5) -> 
A9: 20000 | B9: 0.654 | C9: 0.15 | D9: 1.09 | F9: FORMA DE PAGO | J9: 9000 | K9: 738.4789986 | M9: 605.5527789 | N9: 1 | O9: 0.627 | P9: =+O9*$O$14 -> 32854.8 | Q9: 842.2152696 | R9: 0.140472879 | S9: =+IF(COTIZACION!D$7=COTIZACION!$G$241,"FAVOR DE SELECCIONAR",FACTORES!A6) -> FAVOR DE SELECCIONAR | T9: =+IF(S9<>9000,"",B6) -> 
A10: 25000 | B10: 0.567 | C10: 0.25 | D10: 1.11 | F10: A = ANUAL | G10: 0 | J10: 10000 | K10: 760.1023644 | M10: 623.2839388 | N10: 2 | O10: 0.627 | P10: =+O10*$O$14 -> 32854.8 | Q10: 866.8761319 | R10: 0.140472879 | S10: 10000 | T10: 0.88
A11: 30000 | B11: 0.52 | C11: 0.5 | D11: 1.2 | F11: S = SEMESTRAL | G11: 0.0473 | J11: 15000 | K11: 843.3682893 | M11: 691.5619972 | N11: 3 | O11: 0.737 | P11: =+O11*$O$14 -> 38618.8 | Q11: 961.8386609 | R11: 0.140472879 | S11: 15000 | T11: 0.76
A12: 35000 | B12: 0.486 | C12: 0.75 | D12: 1.28 | F12: T = TRIMESTRAL | G12: 0.07 | J12: 20000 | K12: 902.4561892 | M12: 740.0140751 | N12: 4 | O12: 0.824 | P12: =+O12*$O$14 -> 43177.6 | Q12: 1029.226808 | R12: 0.140472879 | S12: 20000 | T12: 0.66
A13: 40000 | B13: 0.457 | C13: 1 | D13: 1.38 | F13: M = MENSUAL | G13: 0.1 | J13: 25000 | K13: 948.2689847 | M13: 777.5805675 | N13: 5 | O13: 1 | P13: =+O13*$O$14 -> 52400 | Q13: 1081.475059 | R13: 0.140472879 | S13: 25000 | T13: 0.59
A14: 45000 | B14: 0.432 | F14: RENOVADA | J14: 30000 | K14: 1510.818637 | M14: 1238.871282 | N14: BASE | O14: 52400 | Q14: 1723.047681 | R14: 0.140472879 | S14: 30000 | T14: 0.53
A15: 50000 | B15: 0.409 | E15: +utilidad | F15: PARTO Y CESAREA | J15: 35000 | K15: 1559.357163 | M15: 1278.672873 | Q15: 1778.404553 | R15: 0.140472879 | S15: 35000 | T15: 0.49
A16: 60000 | B16: 0.369 | F16: 20000 | G16: 1826.296805 | H16: 1063 | I16: =1-(H16/G16) -> 0.4179478402 | J16: 40000 | K16: 1601.372184 | M16: 1313.125191 | Q16: 1826.321545 | R16: 0.140472879 | S16: 40000 | T16: 0.45
A17: 70000 | B17: 0.335 | F17: 30000 | G17: 2063.74502 | H17: 2331 | I17: =1-(H17/G17) -> -0.1295 | J17: 45000 | K17: 1638.448957 | M17: 1343.528145 | O17: 0.265 | Q17: 1868.606599 | R17: 0.140472879 | S17: 45000 | T17: 0.42
A18: 75000 | B18: 0.32 | F18: 40000 | G18: 8330.166992 | H18: 7682 | I18: =1-(H18/G18) -> 0.07780960365 | J18: 50000 | K18: 1671.591099 | M18: 1370.704701 | O18: 0.1 | Q18: 1906.404313 | R18: =(Q18/K18)-1 -> 0.140472879 | S18: 50000 | T18: 0.39
A19: 80000 | B19: 0.306 | F19: 50000 | G19: 8724.214466 | N19: UT | O19: 0.1 | P19: 0.016 | S19: 60000 | T19: 0.345
A20: 90000 | B20: 0.281 | S20: 70000 | T20: 0.3
A21: 100000 | B21: 0.258 | F21: NUEVO | S21: 75000 | T21: 0.29
A22: 300000 | B22: 0 | F22: PARTO Y CESAREA | S22: 80000 | T22: 0.27
A23: 400000 | B23: 0 | E23: 0.1 | F23: 20000 | G23: 1826.296805 | H23: 1063 | S23: 90000 | T23: 0.235
A24: 500000 | B24: 0 | E24: 0.08 | F24: 30000 | G24: 4791.859389 | H24: 2331 | I24: =+H24/G24 -> 0.48645 | J24: =+G24/2 -> 2395.929695 | S24: 100000 | T24: 0.215
A25: 600000 | B25: 0 | F25: 40000 | G25: 17323.4412 | H25: 7682 | I25: =1-I24 -> 0.51355 | J25: =+G25/2 -> 8661.7206 | S25: 300000 | T25: 0
A26: 700000 | B26: 0 | F26: 50000 | G26: 18111.71594 | I26: =+H25/G25 -> 0.443445382 | J26: =+G26/2 -> 9055.857972 | L26: 0.265 | S26: 400000 | T26: 0
A27: 800000 | B27: 0 | I27: =1-I26 -> 0.556554618 | L27: 0.1 | S27: 500000 | T27: 0
A28: 900000 | B28: 0 | L28: 0.08 | S28: 600000 | T28: 0
A29: 1000000 | B29: 0 | F29: ZONA | G29: FACTOR | L29: =1/(1-SUM(L26:L28)) -> 1.801801802 | S29: 700000 | T29: 0
F30: 1 | G30: 0.52 | S30: 800000 | T30: 0
F31: 2 | G31: 0.57 | S31: 900000 | T31: 0
A32: G.M.M. INDIVIDUAL/FAMILIAR | F32: 3 | G32: 0.67 | J32: SUMA ASEGURADA | M32: ENFERMEDADES GRAVES | S32: 1000000 | T32: 0
A33: SUMA ASEGURADA | C33: 1000000 | F33: 4 | G33: 0.8 | J33: 200000 | K33: 0.82 | M33: 10000 | N33: 133.1937398 | P33: 0.1407480288
A34: DEDUCIBLE | C34: 6000 | F34: 5 | G34: 1 | J34: 300000 | K34: 0.86 | M34: 20000 | N34: =ROUND(M34/$M$33*$N$33,2) -> 266.39
A35: COASEGURO | C35: 0.1 | J35: 400000 | K35: 0.9 | M35: 30000 | N35: 399.58
B36: BÁSICAS | F36: ZONA | G36: =+COTIZACION!D14 -> 5 | H36: =+VLOOKUP(G36,I238:J242,2,FALSE) -> B | J36: 500000 | K36: 0.92 | M36: 40000 | N36: 532.77
A37: =+IF(COTIZACION!A7+COTIZACION!A8=2,1,0) -> 0 | B37: 250,000 a | C37: 10000000 | F37: FACTOR | G37: =VLOOKUP(G36,F30:G35,2,FALSE) -> 1 | J37: 600000 | K37: 0.94 | M37: 50000 | N37: 665.97
A38: E D A D | B38: HOMBRES | C38: MUJERES | D38: HOMBRES | E38: MUJERES | F38: HOMBRES | G38: MUJERES | J38: 700000 | K38: 0.96 | M38: 75000 | N38: 998.95
A39: 0 | B39: =IF($A$37=$C$130,ROUND(C132*(1-DESC),2),ROUND(E132*(1-DESC),2)) -> 6985.42 | C39: =IF($A$37=$C$130,ROUND(D132*(1-DESC),2),ROUND(F132*(1-DESC),2)) -> 6989.76 | D39: =B39 -> 6985.42 | E39: =C39 -> 6989.76 | F39: =ROUND(D39*$G$37,2) -> 6985.42 | G39: =ROUND(E39*$G$37,2) -> 6989.76 | J39: 800000 | K39: 0.97 | M39: 100000 | N39: 1331.94
A40: 1 | B40: 6985.42 | C40: 6989.76 | D40: =B40 -> 6985.42 | E40: =C40 -> 6989.76 | F40: 6985.42 | G40: 6989.76 | J40: 1000000 | K40: 1 | M40: 150000 | N40: 1997.91
A41: =+A40+1 -> 2 | B41: 6985.42 | C41: 6989.76 | D41: =B41 -> 6985.42 | E41: =C41 -> 6989.76 | F41: 6985.42 | G41: 6989.76 | J41: 2000000 | K41: 1.08 | M41: 200000 | N41: 2663.87
A42: =+A41+1 -> 3 | B42: 6985.42 | C42: 6989.76 | D42: 6985.42 | E42: 6989.76 | F42: 6985.42 | G42: 6989.76 | J42: 3000000 | K42: 1.13 | M42: 250000 | N42: 3329.84
A43: 4 | B43: 6985.42 | C43: 6989.76 | D43: 6985.42 | E43: 6989.76 | F43: 6985.42 | G43: 6989.76 | J43: 4000000 | K43: 1.16 | M43: 300000 | N43: 3995.81
A44: 5 | B44: 6985.42 | C44: 6989.76 | D44: 6985.42 | E44: 6989.76 | F44: 6985.42 | G44: 6989.76 | J44: 5000000 | K44: 1.18 | M44: 350000 | N44: 4661.78
A45: 6 | B45: 6985.42 | C45: 6989.76 | D45: 6985.42 | E45: 6989.76 | F45: 6985.42 | G45: 6989.76 | J45: 6000000 | K45: 1.2 | M45: 400000 | N45: 5327.75
A46: 7 | B46: 6985.42 | C46: 6989.76 | D46: 6985.42 | E46: 6989.76 | F46: 6985.42 | G46: 6989.76 | J46: 7000000 | K46: 1.22 | M46: 450000 | N46: 5993.72
A47: 8 | B47: 6985.42 | C47: 6989.76 | D47: 6985.42 | E47: 6989.76 | F47: 6985.42 | G47: 6989.76 | J47: 8000000 | K47: 1.24 | M47: 500000 | N47: =ROUND(M47/$M$33*$N$33,2) -> 6659.69
A48: 9 | B48: 6985.42 | C48: 6989.76 | D48: 6985.42 | E48: 6989.76 | F48: 6985.42 | G48: 6989.76 | J48: 9000000 | K48: 1.25 | M48: 550000 | N48: 7325.66
A49: 10 | B49: 6985.42 | C49: 6989.76 | D49: 6985.42 | E49: 6989.76 | F49: 6985.42 | G49: 6989.76 | J49: 10000000 | K49: 1.26 | M49: 600000 | N49: 7991.62
A50: 11 | B50: 6946.01 | C50: 6882.92 | D50: 6946.01 | E50: 6882.92 | F50: 6946.01 | G50: 6882.92 | J50: 11000000 | K50: 1.27 | M50: 650000 | N50: 8657.59
A51: 12 | B51: 6913.99 | C51: 6977.01 | D51: 6913.99 | E51: 6977.01 | F51: 6913.99 | G51: 6977.01 | J51: 12000000 | K51: 1.28 | M51: 700000 | N51: 9323.56
A52: 13 | B52: 6866.26 | C52: 6931.11 | D52: 6866.26 | E52: 6931.11 | F52: 6866.26 | G52: 6931.11 | J52: 13000000 | K52: 1.29 | M52: 750000 | N52: 9989.53
A53: 14 | B53: 6687.98 | C53: 6789.98 | D53: 6687.98 | E53: 6789.98 | F53: 6687.98 | G53: 6789.98 | J53: 14000000 | K53: 1.3 | M53: 800000 | N53: =ROUND(M53/$M$33*$N$33,2) -> 10655.5
A54: 15 | B54: 6715.22 | C54: 6679.78 | D54: 6715.22 | E54: 6679.78 | F54: 6715.22 | G54: 6679.78 | J54: 15000000 | K54: 1.31 | M54: 850000 | N54: =ROUND(M54/$M$33*$N$33,2) -> 11321.47
A55: 16 | B55: 6589.64 | C55: 6426.46 | D55: 6589.64 | E55: 6426.46 | F55: 6589.64 | G55: 6426.46 | J55: 16000000 | K55: 1.32 | M55: 900000 | N55: =ROUND(M55/$M$33*$N$33,2) -> 11987.44
A56: 17 | B56: 6625.9 | C56: 6528.29 | D56: 6625.9 | E56: 6528.29 | F56: 6625.9 | G56: 6528.29 | J56: 18000000 | K56: 1.33
A57: 18 | B57: 6819.73 | C57: 6168.12 | D57: 6819.73 | E57: 6168.12 | F57: 6819.73 | G57: 6168.12 | J57: 20000000 | K57: 1.34
A58: 19 | B58: 7051.24 | C58: 6259.8 | D58: 7051.24 | E58: 6259.8 | F58: 7051.24 | G58: 6259.8 | J58: 22000000 | K58: 1.35
A59: 20 | B59: 7265.19 | C59: 7264.01 | D59: 7265.19 | E59: 7264.01 | F59: 7265.19 | G59: 7264.01 | J59: 24000000 | K59: 1.36
A60: 21 | B60: 7647.45 | C60: 9419.34 | D60: 7647.45 | E60: 9419.34 | F60: 7647.45 | G60: 9419.34 | J60: 26000000 | K60: 1.37
A61: 22 | B61: 7990.45 | C61: 9874.55 | D61: 7990.45 | E61: 9874.55 | F61: 7990.45 | G61: 9874.55 | J61: 28000000 | K61: 1.38
A62: 23 | B62: 8517.95 | C62: 10347.18 | D62: 8517.95 | E62: 10347.18 | F62: 8517.95 | G62: 10347.18 | J62: 30000000 | K62: 1.39
A63: 24 | B63: 8872.17 | C63: 10840.06 | D63: 8872.17 | E63: 10840.06 | F63: 8872.17 | G63: 10840.06 | J63: 40000000 | K63: 1.42
A64: 25 | B64: 9222.6 | C64: 11348.45 | D64: 9222.6 | E64: 11348.45 | F64: 9222.6 | G64: 11348.45 | J64: 50000000 | K64: 1.45
A65: 26 | B65: 9848.7 | C65: 11892.2 | D65: 9848.7 | E65: 11892.2 | F65: 9848.7 | G65: 11892.2 | J65: 60000000 | K65: 1.46
A66: 27 | B66: 10282.52 | C66: 12441.62 | D66: 10282.52 | E66: 12441.62 | F66: 10282.52 | G66: 12441.62 | J66: 70000000 | K66: 1.48
A67: 28 | B67: 10892.86 | C67: 13032.79 | D67: 10892.86 | E67: 13032.79 | F67: 10892.86 | G67: 13032.79 | J67: 100000000 | K67: 1.53
A68: 29 | B68: 11459.63 | C68: 13634.28 | D68: 11459.63 | E68: 13634.28 | F68: 11459.63 | G68: 13634.28
A69: 30 | B69: 11991.45 | C69: 14281.28 | D69: 11991.45 | E69: 14281.28 | F69: 11991.45 | G69: 14281.28
A70: 31 | B70: 12489.54 | C70: 14949.02 | D70: 12489.54 | E70: 14949.02 | F70: 12489.54 | G70: 14949.02
A71: 32 | B71: =IF($A$37=$C$130,ROUND(C164*(1-DESC),2),ROUND(E164*(1-DESC),2)) -> 13255.86 | C71: =IF($A$37=$C$130,ROUND(D164*(1-DESC),2),ROUND(F164*(1-DESC),2)) -> 15637.63 | D71: 13255.86 | E71: 15637.63 | F71: =ROUND(D71*$G$37,2) -> 13255.86 | G71: =ROUND(E71*$G$37,2) -> 15637.63
A72: 33 | B72: 13735.79 | C72: 16208.65 | D72: =B72 -> 13735.79 | E72: 16208.65 | F72: 13735.79 | G72: 16208.65
A73: 34 | B73: 14520.09 | C73: 16958.52 | D73: 14520.09 | E73: =C73 -> 16958.52 | F73: 14520.09 | G73: 16958.52
A74: 35 | B74: 15336.16 | C74: 17747.21 | D74: 15336.16 | E74: 17747.21 | F74: 15336.16 | G74: 17747.21
A75: 36 | B75: 16004.34 | C75: 18562.48 | D75: 16004.34 | E75: 18562.48 | F75: 16004.34 | G75: 18562.48
A76: 37 | B76: 16884 | C76: 19442.08 | D76: 16884 | E76: 19442.08 | F76: 16884 | G76: 19442.08
A77: 38 | B77: 17812.78 | C77: 20325.44 | D77: 17812.78 | E77: 20325.44 | F77: 17812.78 | G77: 20325.44
A78: 39 | B78: 18805.88 | C78: 21259.28 | D78: 18805.88 | E78: 21259.28 | F78: 18805.88 | G78: 21259.28
A79: 40 | B79: 19473.18 | C79: 22230.24 | D79: 19473.18 | E79: 22230.24 | F79: 19473.18 | G79: 22230.24
A80: 41 | B80: 20204.39 | C80: 23249.33 | D80: 20204.39 | E80: 23249.33 | F80: 20204.39 | G80: 23249.33
A81: 42 | B81: 21001.95 | C81: 24312.41 | D81: 21001.95 | E81: 24312.41 | F81: 21001.95 | G81: 24312.41
A82: 43 | B82: 21864.96 | C82: 25420.98 | D82: 21864.96 | E82: 25420.98 | F82: 21864.96 | G82: 25420.98
A83: 44 | B83: 22819.46 | C83: 26700.38 | D83: 22819.46 | E83: 26700.38 | F83: 22819.46 | G83: 26700.38
A84: 45 | B84: 23857.66 | C84: 27964.35 | D84: 23857.66 | E84: 27964.35 | F84: 23857.66 | G84: 27964.35
A85: 46 | B85: 25004.76 | C85: 29044.86 | D85: 25004.76 | E85: 29044.86 | F85: 25004.76 | G85: 29044.86
A86: 47 | B86: 26257.33 | C86: 30538.05 | D86: 26257.33 | E86: 30538.05 | F86: 26257.33 | G86: 30538.05
A87: 48 | B87: 27630.6 | C87: 31787.82 | D87: 27630.6 | E87: 31787.82 | F87: 27630.6 | G87: 31787.82
A88: 49 | B88: 29133.77 | C88: 33137.16 | D88: 29133.77 | E88: 33137.16 | F88: 29133.77 | G88: 33137.16
A89: 50 | B89: 30772.28 | C89: 34564.14 | D89: 30772.28 | E89: 34564.14 | F89: 30772.28 | G89: 34564.14
A90: 51 | B90: 32536.15 | C90: 36102.97 | D90: 32536.15 | E90: 36102.97 | F90: 32536.15 | G90: 36102.97
A91: 52 | B91: 34459.83 | C91: 37751.29 | D91: 34459.83 | E91: 37751.29 | F91: 34459.83 | G91: 37751.29
A92: 53 | B92: 36562.41 | C92: 39519.4 | D92: 36562.41 | E92: 39519.4 | F92: 36562.41 | G92: 39519.4
A93: 54 | B93: 38838.24 | C93: 41399.59 | D93: 38838.24 | E93: 41399.59 | F93: 38838.24 | G93: 41399.59
A94: 55 | B94: 41263.48 | C94: 43358.49 | D94: 41263.48 | E94: 43358.49 | F94: 41263.48 | G94: 43358.49
A95: 56 | B95: 43907.07 | C95: 46001.58 | D95: 43907.07 | E95: 46001.58 | F95: 43907.07 | G95: 46001.58
A96: 57 | B96: 46743.42 | C96: 47794.59 | D96: 46743.42 | E96: 47794.59 | F96: 46743.42 | G96: 47794.59
A97: 58 | B97: 48777.47 | C97: 49728.61 | D97: 48777.47 | E97: 49728.61 | F97: 48777.47 | G97: 49728.61
A98: 59 | B98: 51975.72 | C98: 50587 | D98: 51975.72 | E98: 50587 | F98: 51975.72 | G98: 50587
A99: 60 | B99: 69402.74 | C99: 68905.96 | D99: 69402.74 | E99: 68905.96 | F99: 69402.74 | G99: 68905.96
A100: 61 | B100: 73238.99 | C100: 71930.13 | D100: 73238.99 | E100: 71930.13 | F100: 73238.99 | G100: 71930.13
A101: 62 | B101: 77145.19 | C101: 75041.95 | D101: 77145.19 | E101: 75041.95 | F101: 77145.19 | G101: 75041.95
A102: 63 | B102: 81435.78 | C102: 78314.67 | D102: 81435.78 | E102: 78314.67 | F102: 81435.78 | G102: 78314.67
A103: 64 | B103: =IF($A$37=$C$130,ROUND(C196*(1-DESC),2),ROUND(E196*(1-DESC),2)) -> 85761.32 | C103: =IF($A$37=$C$130,ROUND(D196*(1-DESC),2),ROUND(F196*(1-DESC),2)) -> 81793.43 | D103: 85761.32 | E103: 81793.43 | F103: =ROUND(D103*$G$37,2) -> 85761.32 | G103: =ROUND(E103*$G$37,2) -> 81793.43
A104: 65 | B104: 90339.87 | C104: 85386.07 | D104: =B104 -> 90339.87 | E104: 85386.07 | F104: 90339.87 | G104: 85386.07
A105: 66 | B105: 95132.5 | C105: 89184.03 | D105: 95132.5 | E105: =C105 -> 89184.03 | F105: 95132.5 | G105: 89184.03
A106: =+A105+1 -> 67 | B106: 100077.76 | C106: 93035.05 | D106: 100077.76 | E106: 93035.05 | F106: 100077.76 | G106: 93035.05
A107: 68 | B107: 105302.25 | C107: 97108.85 | D107: 105302.25 | E107: 97108.85 | F107: 105302.25 | G107: 97108.85
A108: 69 | B108: 110507.49 | C108: 101417.29 | D108: 110507.49 | E108: 101417.29 | F108: 110507.49 | G108: 101417.29
A109: 70 | B109: 116051.9 | C109: 105828.44 | D109: 116051.9 | E109: 105828.44 | F109: 116051.9 | G109: 105828.44
A110: 71 | B110: 121870.68 | C110: 110273.55 | D110: 121870.68 | E110: 110273.55 | F110: 121870.68 | G110: 110273.55
A111: 72 | B111: 127707.53 | C111: 115114.48 | D111: 127707.53 | E111: 115114.48 | F111: 127707.53 | G111: 115114.48
A112: 73 | B112: 133881.18 | C112: 119998.29 | D112: 133881.18 | E112: 119998.29 | F112: 133881.18 | G112: 119998.29
A113: 74 | B113: 140095.79 | C113: 124966.98 | D113: 140095.79 | E113: 124966.98 | F113: 140095.79 | G113: 124966.98
A114: 75 | B114: 146539.84 | C114: 130076.54 | D114: 146539.84 | E114: 130076.54 | F114: 146539.84 | G114: 130076.54
A115: 76 | B115: 154118.04 | C115: 135852.78 | D115: 154118.04 | E115: 135852.78 | F115: 154118.04 | G115: 135852.78
A116: 77 | B116: 161925.42 | C116: 142014.06 | D116: 161925.42 | E116: 142014.06 | F116: 161925.42 | G116: 142014.06
A117: 78 | B117: 170229.8 | C117: 148405.05 | D117: 170229.8 | E117: 148405.05 | F117: 170229.8 | G117: 148405.05
A118: 79 | B118: 179655.48 | C118: 154794.95 | D118: 179655.48 | E118: 154794.95 | F118: 179655.48 | G118: 154794.95
A119: 80 | B119: 188656.95 | C119: 161504.36 | D119: 188656.95 | E119: 161504.36 | F119: 188656.95 | G119: 161504.36
A120: 81 | B120: 198972.08 | C120: 168271.8 | D120: 198972.08 | E120: 168271.8 | F120: 198972.08 | G120: 168271.8
A121: 82 | B121: 209490.34 | C121: 175111.75 | D121: 209490.34 | E121: 175111.75 | F121: 209490.34 | G121: 175111.75
A122: 83 | B122: 220555.07 | C122: 182858.71 | D122: 220555.07 | E122: 182858.71 | F122: 220555.07 | G122: 182858.71
A123: 84 | B123: 232613.37 | C123: 190414.64 | D123: 232613.37 | E123: 190414.64 | F123: 232613.37 | G123: 190414.64
A124: 85 | B124: 244552.46 | C124: 197720.65 | D124: 244552.46 | E124: 197720.65 | F124: 244552.46 | G124: 197720.65
C129: Renovada | E129: Nueva | M129: Tarifa 2015-2016
C130: 1 | D130: Renovada | E130: 0 | F130: Nueva | N130: 1 | O130: Renovada | P130: 0 | Q130: Nueva
A131: E D A D | B131: Auxiliar por zona | C131: HOMBRES | D131: MUJERES | E131: HOMBRES | F131: MUJERES | I131: =AVERAGE(I132:J217) -> 0.6976744186 | M131: E D A D | N131: HOMBRES | O131: MUJERES | P131: HOMBRES | Q131: MUJERES
A132: 0 | B132: =+CONCATENATE(A132,$H$36) -> 0B | C132: =+VLOOKUP($B132,$B$237:$F$445,2,FALSE) -> 6985.416037 | D132: =+VLOOKUP($B132,$B$237:$F$445,3,FALSE) -> 6989.75895 | E132: =+VLOOKUP($B132,$B$237:$F$445,4,FALSE) -> 6985.416037 | F132: =+VLOOKUP($B132,$B$237:$F$445,5,FALSE) -> 6989.75895 | G132: =+B39 -> 6985.42 | H132: =+C39 -> 6989.76 | I132: =IF(ROUND(C132,2)=G132,1,0) -> 1 | J132: 1 | M132: 0 | N132: 5283.584505 | O132: 5286.869369 | P132: 5283.584505 | Q132: 5286.869369
A133: 1 | B133: 1B | C133: =+VLOOKUP($B133,$B$237:$F$445,2,FALSE) -> 6985.416037 | D133: =+VLOOKUP($B133,$B$237:$F$445,3,FALSE) -> 6989.75895 | E133: =+VLOOKUP($B133,$B$237:$F$445,4,FALSE) -> 6985.416037 | F133: =+VLOOKUP($B133,$B$237:$F$445,5,FALSE) -> 6989.75895 | G133: =+B40 -> 6985.42 | H133: =+C40 -> 6989.76 | I133: 1 | J133: 1 | M133: 1 | N133: 5283.584505 | O133: 5286.869369 | P133: 5283.584505 | Q133: 5286.869369
A134: =+A133+1 -> 2 | B134: 2B | C134: 6985.416037 | D134: 6989.75895 | E134: 6985.416037 | F134: 6989.75895 | G134: 6985.42 | H134: 6989.76 | I134: 1 | J134: 1 | M134: =+M133+1 -> 2 | N134: 5283.584505 | O134: 5286.869369 | P134: 5283.584505 | Q134: 5286.869369
A135: =+A134+1 -> 3 | B135: 3B | C135: 6985.416037 | D135: 6989.75895 | E135: 6985.416037 | F135: 6989.75895 | G135: 6985.42 | H135: 6989.76 | I135: 1 | J135: 1 | M135: 3 | N135: 5283.584505 | O135: 5286.869369 | P135: 5283.584505 | Q135: 5286.869369
A136: 4 | B136: 4B | C136: 6985.416037 | D136: 6989.75895 | E136: 6985.416037 | F136: 6989.75895 | G136: 6985.42 | H136: 6989.76 | I136: 1 | J136: 1 | M136: 4 | N136: 5283.584505 | O136: 5286.869369 | P136: 5283.584505 | Q136: 5286.869369
A137: 5 | B137: 5B | C137: 6985.416037 | D137: 6989.75895 | E137: 6985.416037 | F137: 6989.75895 | G137: 6985.42 | H137: 6989.76 | I137: 1 | J137: 1 | M137: 5 | N137: 5283.584505 | O137: 5286.869369 | P137: 5283.584505 | Q137: 5286.869369
A138: 6 | B138: 6B | C138: 6985.416037 | D138: 6989.75895 | E138: 6985.416037 | F138: 6989.75895 | G138: 6985.42 | H138: 6989.76 | I138: =IF(ROUND(C138,2)=G138,1,0) -> 1 | J138: =IF(ROUND(D138,2)=H138,1,0) -> 1 | M138: 6 | N138: 5283.584505 | O138: 5286.869369 | P138: 5283.584505 | Q138: 5286.869369
A139: 7 | B139: 7B | C139: 6985.416037 | D139: 6989.75895 | E139: 6985.416037 | F139: 6989.75895 | G139: 6985.42 | H139: 6989.76 | I139: =IF(ROUND(C139,2)=G139,1,0) -> 1 | J139: =IF(ROUND(D139,2)=H139,1,0) -> 1 | M139: 7 | N139: 5283.584505 | O139: 5286.869369 | P139: 5283.584505 | Q139: 5286.869369
A140: 8 | B140: 8B | C140: 6985.416037 | D140: 6989.75895 | E140: 6985.416037 | F140: 6989.75895 | G140: 6985.42 | H140: 6989.76 | I140: =IF(ROUND(C140,2)=G140,1,0) -> 1 | J140: =IF(ROUND(D140,2)=H140,1,0) -> 1 | M140: 8 | N140: 5283.584505 | O140: 5286.869369 | P140: 5283.584505 | Q140: 5286.869369
A141: 9 | B141: 9B | C141: 6985.416037 | D141: 6989.75895 | E141: 6985.416037 | F141: 6989.75895 | G141: 6985.42 | H141: 6989.76 | I141: =IF(ROUND(C141,2)=G141,1,0) -> 1 | J141: =IF(ROUND(D141,2)=H141,1,0) -> 1 | M141: 9 | N141: 5283.584505 | O141: 5286.869369 | P141: 5283.584505 | Q141: 5286.869369
A142: 10 | B142: 10B | C142: 6985.416037 | D142: 6989.75895 | E142: 6985.416037 | F142: 6989.75895 | G142: 6985.42 | H142: 6989.76 | I142: 1 | J142: 1 | M142: 10 | N142: 5283.584505 | O142: 5286.869369 | P142: 5283.584505 | Q142: 5286.869369
A143: 11 | B143: 11B | C143: 6946.006102 | D143: 6882.91604 | E143: 6946.006102 | F143: 6882.91604 | G143: 6946.01 | H143: 6882.92 | I143: 1 | J143: 1 | M143: 11 | N143: 5347.147568 | O143: 5298.57982 | P143: 5347.147568 | Q143: 5298.57982
A144: 12 | B144: 12B | C144: 6913.99097 | D144: 6977.008708 | E144: 6913.99097 | F144: 6977.008708 | G144: 6913.99 | H144: 6977.01 | I144: 1 | J144: 1 | M144: 12 | N144: 5322.501802 | O144: 5371.013874 | P144: 5322.501802 | Q144: 5371.013874
A145: 13 | B145: 13B | C145: 6866.257564 | D145: 6931.107494 | E145: 6866.257564 | F145: 6931.107494 | G145: 6866.26 | H145: 6931.11 | I145: 1 | J145: 1 | M145: 13 | N145: 5285.755856 | O145: 5335.678378 | P145: 5285.755856 | Q145: 5335.678378
A146: 14 | B146: 14B | C146: 6687.980525 | D146: 6789.980546 | E146: 6687.980525 | F146: 6789.980546 | G146: 6687.98 | H146: 6789.98 | I146: 1 | J146: 1 | M146: 14 | N146: 5148.515315 | O146: 5227.036577 | P146: 5148.515315 | Q146: 5227.036577
A147: 15 | B147: 15B | C147: 6715.222318 | D147: 6679.78388 | E147: 6715.222318 | F147: 6679.78388 | G147: 6715.22 | H147: 6679.78 | I147: 1 | J147: 1 | M147: 15 | N147: 5169.486486 | O147: 5142.205405 | P147: 5169.486486 | Q147: 5142.205405
A148: 16 | B148: 16B | C148: 6589.644888 | D148: 6426.45932 | E148: 6589.644888 | F148: 6426.45932 | G148: 6589.64 | H148: 6426.46 | I148: 1 | J148: 1 | M148: 16 | N148: 5072.814955 | O148: 4947.192072 | P148: 5072.814955 | Q148: 4947.192072
A149: 17 | B149: 17B | C149: 6625.90299 | D149: 6528.290586 | E149: 6625.90299 | F149: 6528.290586 | G149: 6625.9 | H149: 6528.29 | I149: 1 | J149: 1 | M149: 17 | N149: 5100.727027 | O149: 5025.583423 | P149: 5100.727027 | Q149: 5025.583423
A150: 18 | B150: 18B | C150: 6819.729547 | D150: 6168.120342 | E150: 6819.729547 | F150: 6168.120342 | G150: 6819.73 | H150: 6168.12 | I150: 1 | J150: 1 | M150: 18 | N150: 5249.937838 | O150: 4748.318559 | P150: 5249.937838 | Q150: 4748.318559
A151: 19 | B151: 19B | C151: 7051.236565 | D151: 6259.802232 | E151: 7051.236565 | F151: 6259.802232 | G151: 7051.24 | H151: 6259.8 | I151: 1 | J151: 1 | M151: 19 | N151: 5428.155676 | O151: 4818.896757 | P151: 5428.155676 | Q151: 4818.896757
A152: 20 | B152: 20B | C152: 7265.193119 | D152: 7264.011838 | E152: 7265.193119 | F152: 7264.011838 | G152: 7265.19 | H152: 7264.01 | I152: 1 | J152: 1 | M152: 20 | N152: 5592.862883 | O152: 5591.953514 | P152: 5592.862883 | Q152: 5591.953514
A153: 21 | B153: 21B | C153: 7647.44609 | D153: 9419.343865 | E153: 7647.44609 | F153: 9419.343865 | G153: 7647.45 | H153: 9419.34 | I153: 1 | J153: 1 | M153: 21 | N153: 5887.127387 | O153: 7251.162883 | P153: 5887.127387 | Q153: 7251.162883
A154: 22 | B154: 22B | C154: 7990.451594 | D154: 9874.54698 | E154: 7990.451594 | F154: 9874.54698 | G154: 7990.45 | H154: 9874.55 | I154: 1 | J154: 1 | M154: 22 | N154: 6151.178559 | O154: 7601.585586 | P154: 6151.178559 | Q154: 7601.585586
A155: 23 | B155: 23B | C155: 8517.953944 | D155: 10347.18002 | E155: 8517.953944 | F155: 10347.18002 | G155: 8517.95 | H155: 10347.18 | I155: 1 | J155: 1 | M155: 23 | N155: 6557.258378 | O155: 7965.426126 | P155: 6557.258378 | Q155: 7965.426126
A156: 24 | B156: 24B | C156: 8872.169566 | D156: 10840.0636 | E156: 8872.169566 | F156: 10840.0636 | G156: 8872.17 | H156: 10840.06 | I156: 1 | J156: 1 | M156: 24 | N156: 6829.939279 | O156: 8344.855856 | P156: 6829.939279 | Q156: 8344.855856
A157: 25 | B157: 25B | C157: 9222.600266 | D157: 11348.44848 | E157: 9222.600266 | F157: 11348.44848 | G157: 9222.6 | H157: 11348.45 | I157: 1 | J157: 1 | M157: 25 | N157: 7099.706486 | O157: 8736.218739 | P157: 7099.706486 | Q157: 8736.218739
A158: 26 | B158: 26B | C158: 9848.703439 | D158: 11892.19947 | E158: 9848.703439 | F158: 11892.19947 | G158: 9848.7 | H158: 11892.2 | I158: 1 | J158: 1 | M158: 26 | N158: 7581.690811 | O158: 9154.807027 | P158: 7581.690811 | Q158: 9154.807027
A159: 27 | B159: 27B | C159: 10282.52295 | D159: 12441.61579 | E159: 10282.52295 | F159: 12441.61579 | G159: 10282.52 | H159: 12441.62 | I159: 1 | J159: 1 | M159: 27 | N159: 7915.652072 | O159: 9577.756577 | P159: 7915.652072 | Q159: 9577.756577
A160: 28 | B160: 28B | C160: 10892.85964 | D160: 13032.78679 | E160: 10892.85964 | F160: 13032.78679 | G160: 10892.86 | H160: 13032.79 | I160: 1 | J160: 1 | M160: 28 | N160: 8385.499099 | O160: 10032.84955 | P160: 8385.499099 | Q160: 10032.84955
A161: 29 | B161: 29B | C161: 11459.63356 | D161: 13634.27592 | E161: 11459.63356 | F161: 13634.27592 | G161: 11459.63 | H161: 13634.28 | I161: 1 | J161: 1 | M161: 29 | N161: 8821.810811 | O161: 10495.88559 | P161: 8821.810811 | Q161: 10495.88559
A162: 30 | B162: 30B | C162: 11991.4512 | D162: 14281.28054 | E162: 11991.4512 | F162: 14281.28054 | G162: 11991.45 | H162: 14281.28 | I162: 1 | J162: 1 | M162: 30 | N162: 9231.212613 | O162: 10993.96018 | P162: 9231.212613 | Q162: 10993.96018
A163: 31 | B163: 31B | C163: 12489.54206 | D163: 14949.01785 | E163: 12489.54206 | F163: 14949.01785 | G163: 12489.54 | H163: 14949.02 | I163: 1 | J163: 1 | M163: 31 | N163: 9614.650991 | O163: 11507.99514 | P163: 9614.650991 | Q163: 11507.99514
A164: 32 | B164: =+CONCATENATE(A164,$H$36) -> 32B | C164: 13255.85609 | D164: 15637.6325 | E164: 13255.85609 | F164: 15637.6325 | G164: 13255.86 | H164: 15637.63 | I164: 1 | J164: 1 | M164: 32 | N164: 10204.57189 | O164: 12038.1018 | P164: 10204.57189 | Q164: 12038.1018
A165: 33 | B165: 33B | C165: 13735.79379 | D165: 16208.64939 | E165: 13735.79379 | F165: 16208.64939 | G165: 13735.79 | H165: 16208.65 | I165: 1 | J165: 1 | M165: 33 | N165: 10574.03568 | O165: 12477.67982 | P165: 10574.03568 | Q165: 12477.67982
A166: 34 | B166: 34B | C166: 14520.09222 | D166: 16958.52191 | E166: 14520.09222 | F166: 16958.52191 | G166: 14520.09 | H166: 16958.52 | I166: 1 | J166: 1 | M166: =+M165+1 -> 34 | N166: 11177.80126 | O166: 13054.94378 | P166: 11177.80126 | Q166: 13054.94378
A167: 35 | B167: 35B | C167: 15336.1647 | D167: 17747.20796 | E167: 15336.1647 | F167: 17747.20796 | G167: 15336.16 | H167: 17747.21 | I167: 1 | J167: 1 | M167: 35 | N167: 11806.02703 | O167: 13662.08703 | P167: 11806.02703 | Q167: 13662.08703
A168: 36 | B168: 36B | C168: 16004.33595 | D168: 18562.48489 | E168: 16004.33595 | F168: 18562.48489 | G168: 16004.34 | H168: 18562.48 | I168: 1 | J168: 1 | M168: 36 | N168: 12320.39604 | O168: 14289.70036 | P168: 12320.39604 | Q168: 14289.70036
A169: 37 | B169: 37B | C169: 16884.00476 | D169: 19442.08137 | E169: 16884.00476 | F169: 19442.08137 | G169: 16884 | H169: 19442.08 | I169: 1 | J169: 1 | M169: 37 | N169: 12997.57928 | O169: 14966.82793 | P169: 12997.57928 | Q169: 14966.82793
A170: 38 | B170: 38B | C170: 17812.78112 | D170: 20325.43867 | E170: 17812.78112 | F170: 20325.43867 | G170: 17812.78 | H170: 20325.44 | I170: 1 | J170: 1 | M170: 38 | N170: 13712.56631 | O170: 15646.85063 | P170: 13712.56631 | Q170: 15646.85063
A171: 39 | B171: 39B | C171: 18805.87704 | D171: 21259.27767 | E171: 18805.87704 | F171: 21259.27767 | G171: 18805.88 | H171: 21259.28 | I171: 1 | J171: 1 | M171: 39 | N171: 14477.06757 | O171: 16365.73495 | P171: 14477.06757 | Q171: 16365.73495
A172: 40 | B172: 40B | C172: 19473.18041 | D172: 22230.24264 | E172: 19473.18041 | F172: 22230.24264 | G172: 19473.18 | H172: 22230.24 | I172: 1 | J172: 1 | M172: 40 | N172: 14990.76847 | O172: 17113.19946 | P172: 14990.76847 | Q172: 17113.19946
A173: 41 | B173: 41B | C173: 20204.39351 | D173: 23249.32675 | E173: 20204.39351 | F173: 23249.32675 | G173: 20204.39 | H173: 23249.33 | I173: 1 | J173: 1 | M173: 41 | N173: 15553.66811 | O173: 17897.70685 | P173: 15553.66811 | Q173: 17897.70685
A174: 42 | B174: 42B | C174: 21001.95122 | D174: 24312.40756 | E174: 21001.95122 | F174: 24312.40756 | G174: 21001.95 | H174: 24312.41 | I174: 1 | J174: 1 | M174: 42 | N174: 16167.6409 | O174: 18716.0836 | P174: 16167.6409 | Q174: 18716.0836
A175: 43 | B175: 43B | C175: 21864.96155 | D175: 25420.97974 | E175: 21864.96155 | F175: 25420.97974 | G175: 21864.96 | H175: 25420.98 | I175: 1 | J175: 1 | M175: 43 | N175: 16832.00018 | O175: 19569.48036 | P175: 16832.00018 | Q175: 19569.48036
A176: 44 | B176: 44B | C176: 22819.46091 | D176: 26700.37967 | E176: 22819.46091 | F176: 26700.37967 | G176: 22819.46 | H176: 26700.38 | I176: 1 | J176: 1 | M176: 44 | N176: 17566.78919 | O176: 20554.38306 | P176: 17566.78919 | Q176: 20554.38306
A177: 45 | B177: 45B | C177: 23857.66249 | D177: 27964.35061 | E177: 23857.66249 | F177: 27964.35061 | G177: 23857.66 | H177: 27964.35 | I177: 1 | J177: 1 | M177: 45 | N177: 18366.01351 | O177: 21527.40829 | P177: 18366.01351 | Q177: 21527.40829
A178: 46 | B178: 46B | C178: 25004.75891 | D178: 29044.86134 | E178: 25004.75891 | F178: 29044.86134 | G178: 25004.76 | H178: 29044.86 | I178: 1 | J178: 1 | M178: 46 | N178: 19249.06685 | O178: 22359.20288 | P178: 19249.06685 | Q178: 22359.20288
A179: 47 | B179: 47B | C179: 26257.32687 | D179: 30538.04906 | E179: 26257.32687 | F179: 30538.04906 | G179: 26257.33 | H179: 30538.05 | I179: 1 | J179: 1 | M179: 47 | N179: 20213.31387 | O179: 23508.68288 | P179: 20213.31387 | Q179: 23508.68288
A180: 48 | B180: 48B | C180: 27630.60249 | D180: 31787.82052 | E180: 27630.60249 | F180: 31787.82052 | G180: 27630.6 | H180: 31787.82 | I180: 1 | J180: 1 | M180: 48 | N180: 21270.4836 | O180: 24470.77712 | P180: 21270.4836 | Q180: 24470.77712
A181: 49 | B181: 49B | C181: 29133.77084 | D181: 33137.15712 | E181: 29133.77084 | F181: 33137.15712 | G181: 29133.77 | H181: 33137.16 | I181: 1 | J181: 1 | M181: 49 | N181: 22427.64685 | O181: 25509.5182 | P181: 22427.64685 | Q181: 25509.5182
A182: 50 | B182: 50B | C182: 30772.28026 | D182: 34564.14487 | E182: 30772.28026 | F182: 34564.14487 | G182: 30772.28 | H182: 34564.14 | I182: 1 | J182: 1 | M182: 50 | N182: 23688.99784 | O182: 26608.0364 | P182: 23688.99784 | Q182: 26608.0364
A183: 51 | B183: 51B | C183: 32536.15014 | D183: 36102.96862 | E183: 32536.15014 | F183: 36102.96862 | G183: 32536.15 | H183: 36102.97 | I183: 1 | J183: 1 | M183: 51 | N183: 25046.85333 | O183: 27792.64775 | P183: 25046.85333 | Q183: 27792.64775
A184: 52 | B184: 52B | C184: 34459.83051 | D184: 37751.28991 | E184: 34459.83051 | F184: 37751.28991 | G184: 34459.83 | H184: 37751.29 | I184: 1 | J184: 1 | M184: 52 | N184: 26527.73351 | O184: 29061.55207 | P184: 26527.73351 | Q184: 29061.55207
A185: 53 | B185: 53B | C185: 36562.41471 | D185: 39519.40277 | E185: 36562.41471 | F185: 39519.40277 | G185: 36562.41 | H185: 39519.4 | I185: 1 | J185: 1 | M185: 53 | N185: 28146.33676 | O185: 30422.67387 | P185: 28146.33676 | Q185: 30422.67387
A186: 54 | B186: 54B | C186: 38838.23742 | D186: 41399.59269 | E186: 38838.23742 | F186: 41399.59269 | G186: 38838.24 | H186: 41399.59 | I186: 1 | J186: 1 | M186: 54 | N186: 29898.3018 | O186: 31870.07441 | P186: 29898.3018 | Q186: 31870.07441
A187: 55 | B187: 55B | C187: 41263.48016 | D187: 43358.49452 | E187: 41263.48016 | F187: 43358.49452 | G187: 41263.48 | H187: 43358.49 | I187: 1 | J187: 1 | M187: 55 | N187: 31765.29279 | O187: 33378.06865 | P187: 31765.29279 | Q187: 33378.06865
A188: 56 | B188: 56B | C188: 43907.06707 | D188: 46001.57517 | E188: 43907.06707 | F188: 46001.57517 | G188: 43907.07 | H188: 46001.58 | I188: 1 | J188: 1 | M188: 56 | N188: 33800.36865 | O188: 35412.75477 | P188: 33800.36865 | Q188: 35412.75477
A189: 57 | B189: 57B | C189: 46743.4198 | D189: 47794.59136 | E189: 46743.4198 | F189: 47794.59136 | G189: 46743.42 | H189: 47794.59 | I189: 1 | J189: 1 | M189: 57 | N189: 35983.83874 | O189: 36793.04757 | P189: 35983.83874 | Q189: 36793.04757
A190: 58 | B190: 58B | C190: 48777.46558 | D190: 49728.61396 | E190: 48777.46558 | F190: 49728.61396 | G190: 48777.47 | H190: 49728.61 | I190: 1 | J190: 1 | M190: 58 | N190: 37549.68 | O190: 38281.88937 | P190: 37549.68 | Q190: 38281.88937
A191: 59 | B191: 59B | C191: 51975.72431 | D191: 50586.9956 | E191: 51975.72431 | F191: 50586.9956 | G191: 51975.72 | H191: 50587 | I191: 1 | J191: 1 | M191: 59 | N191: 40011.75117 | O191: 38942.68541 | P191: 40011.75117 | Q191: 38942.68541
A192: 60 | B192: 60B | C192: 55133.01603 | D192: 54738.37676 | E192: 69402.73782 | F192: 68905.95663 | G192: 69402.74 | H192: 68905.96 | I192: 0 | J192: 0 | M192: 60 | N192: 42437.2129 | O192: 42133.44953 | P192: 53420.96212 | Q192: 53038.57765
A193: 61 | B193: 61B | C193: 58180.50256 | D193: 57140.75391 | E193: 73238.98558 | F193: 71930.12551 | G193: 73238.99 | H193: 71930.13 | I193: 0 | J193: 0 | M193: 61 | N193: 44782.93682 | O193: 43982.6172 | P193: 56373.81459 | Q193: 55366.35341
A194: 62 | B194: 62B | C194: 61283.56575 | D194: 59612.76445 | E194: 77145.19453 | F194: 75041.95055 | G194: 77145.19 | H194: 75041.95 | I194: 0 | J194: 0 | M194: 62 | N194: 47171.43944 | O194: 45885.38336 | P194: 59380.51788 | Q194: 57761.60024
A195: 63 | B195: 63B | C195: 64691.97537 | D195: 62212.58629 | E195: 81435.78076 | F195: 78314.66745 | G195: 81435.78 | H195: 78314.67 | I195: 0 | J195: 0 | M195: 63 | N195: 49794.97458 | O195: 47886.52897 | P195: 62683.08565 | Q195: 60280.68941
A196: 64 | B196: =+CONCATENATE(A196,$H$36) -> 64B | C196: 68128.14831 | D196: 64976.08663 | E196: 85761.31611 | F196: 81793.4267 | G196: 85761.32 | H196: 81793.43 | I196: 0 | J196: 0 | M196: 64 | N196: 52439.87981 | O196: 50013.66187 | P196: 66012.55459 | Q196: 62958.37435
A197: 65 | B197: 65B | C197: =+VLOOKUP($B197,$B$237:$F$445,2,FALSE) -> 71765.31765 | D197: =+VLOOKUP($B197,$B$237:$F$445,3,FALSE) -> 67830.05535 | E197: =+VLOOKUP($B197,$B$237:$F$445,4,FALSE) -> 90339.87045 | F197: =+VLOOKUP($B197,$B$237:$F$445,5,FALSE) -> 85386.06968 | G197: =+B104 -> 90339.87 | H197: =+C104 -> 85386.07 | I197: =IF(ROUND(C197,2)=G197,1,0) -> 0 | J197: =IF(ROUND(D197,2)=H197,1,0) -> 0 | M197: 65 | N197: 55239.49682 | O197: 52210.43047 | P197: 69536.77835 | Q197: 65723.71835
A198: 66 | B198: 66B | C198: 75572.54354 | D198: 70847.1273 | E198: 95132.49599 | F198: 89184.03083 | G198: 95132.5 | H198: 89184.03 | I198: 0 | J198: 0 | M198: =+M197+1 -> 66 | N198: 58170.01047 | O198: 54532.74355 | P198: 73225.77788 | Q198: 68647.10071
A199: =+A198+1 -> 67 | B199: 67B | C199: 79501.02759 | D199: 73906.34446 | E199: 100077.7641 | F199: 93035.04537 | G199: 100077.76 | H199: 93035.05 | I199: 0 | J199: 0 | M199: 67 | N199: 61193.85944 | O199: 56887.49682 | P199: 77032.27012 | Q199: 71611.31953
A200: 68 | B200: 68B | C200: 83651.31801 | D200: 77142.54649 | E200: 105302.2474 | F200: 97108.85264 | G200: 105302.25 | H200: 97108.85 | I200: 0 | J200: 0 | M200: 68 | N200: 64388.43813 | O200: 59378.47963 | P200: 81053.68094 | Q200: 74747.02729
A201: 69 | B201: 69B | C201: 87786.3261 | D201: 80565.13792 | E201: 110507.4929 | F201: 101417.2913 | G201: 110507.49 | H201: 101417.29 | I201: 0 | J201: 0 | M201: 69 | N201: 67571.25364 | O201: 62012.93084 | P201: 85060.284 | Q201: 78063.33647
A202: 70 | B202: 70B | C202: 92190.76341 | D202: 84069.31848 | E202: 116051.9022 | F202: 105828.4362 | G202: 116051.9 | H202: 105828.44 | I202: 0 | J202: 0 | M202: 70 | N202: 70961.45533 | O202: 64710.18318 | P202: 89327.94965 | Q202: 81458.70118
A203: 71 | B203: 71B | C203: 96813.15524 | D203: 87600.48698 | E203: 121870.6778 | F203: 110273.5542 | G203: 121870.68 | H203: 110273.55 | I203: 0 | J203: 0 | M203: 71 | N203: 74519.42187 | O203: 67428.20879 | P203: 93806.80165 | Q203: 84880.21576
A204: 72 | B204: 72B | C204: 101449.904 | D204: 91446.08127 | E204: 127707.5262 | F204: 115114.4788 | G204: 127707.53 | H204: 115114.48 | I204: 0 | J204: 0 | M204: 72 | N204: 78088.43925 | O204: 70388.25551 | P204: 98299.56471 | Q204: 88606.39224
... 236 more rows

Sheet TITULAR (hidden)
B1: GASTOS MÉDICOS MAYORES INDIVIDUAL/FAMILIAR | I1: REGION COBERTURA BASICA
I2: =IF(ISERROR(VLOOKUP(E3,VALORES!$A$6:$B$11,2,FALSE)),"REGION NO VALIDA",VLOOKUP(E3,VALORES!$A$6:$B$11,2,FALSE)) -> BAJA CALIFORNIA, BAJA CALIFORNIA SUR, MORELOS, QUINTANA ROO, QUERETARO, SAN LUIS POTOSI, SINALOA, SONORA | M2: Prima riesgo dental incremental | N2: 101 | Q2: Prima riesgo visión opcional | R2: 114.67
B3: REGIÓN: | E3: =+COTIZACION!D14 -> 5 | F3: =IF(E3>7,"NO PROCEDE"," ") ->  | G3: FACTORES | M3: Gastos | N3: 0.57455 | Q3: Gastos | R3: 0.51314
N4: =+N2/(1-N3) -> 237.3956987 | R4: =+R2/(1-R3) -> 235.5297211
B5: SUMA ASEGURADA: | E5: =+COTIZACION!D10 -> 10000000 | G5: =VLOOKUP(E5,FACTORES!$J$33:$K$124,2) -> 1.26
B6: DEDUCIBLE: | E6: =+COTIZACION!D11 -> 10000 | G6: =VLOOKUP(E6,FACTORES!$A$2:$B$29,2,0) -> 0.88 | M6: Asistencias | N6: 102.24
B7: ELIMINACION DEDUCIBLE | E7: =+COTIZACION!D15 -> SI | G7: =IF(H7="SI",VLOOKUP(E6,FACTORES!$J$1:$K$21,2,0),0) -> 760.1023644 | H7: =IF(VALUE(COTIZACION!D11)>50000,"NO",COTIZACION!D15) -> SI | M7: Gastos | N7: 0.4855
B8: COASEGURO: | E8: =+COTIZACION!D12 -> 0.1 | G8: =VLOOKUP(E8,FACTORES!$C$2:$D$6,2) -> 1 | N8: =+N6/(1-N7) -> 198.7172012
B9: CATALOGO: | E9: =+COTIZACION!D25 -> 0 | G9: =VLOOKUP($E$9,FACTORES!$C$8:$D$13,2,FALSE) -> 1
B10: SUMA ASEGURADA PARTO O CESAREA | E10: =+COTIZACION!D17 -> 40000 | F10: =+COTIZACION!D16 -> SI | G10: =IF(F10="NO",20000,E10) -> 40000
B11: SEGURO DE ENFERMEDADES GRAVES | E11: =+COTIZACION!D19 -> 10000 | G11: =IF(E11="NO",0,IF(SUM(COTIZACION!A30:A37)>=1,VLOOKUP(E11,FACTORES!$M$33:$N$55,2,0)*(1-DESC),0)) -> 133.1937398
B12: COBERTURA DE VISION | E12: =+COTIZACION!D18 -> SI | G12: =IF(E12="NO",0,G23) -> 235.5297211 | M12: PaQ Adicional | N12: =+SUM(N13:N26) -> 432.67 | O12: 0.51111
F13: ZONA | N13: 20 | O13: =1-O12 -> 0.48889 | S13: A
B14: EMERGENCIA EXTRANJERO: | E14: =+COTIZACION!D21 -> SI | G14: =IF(E14="SI",FACTORES!$G$2,FACTORES!$G$3) -> 1.05 | I14: ZONA COBERTURAS ADICIONALES | M14: =+N12/O13 -> 885.0048068 | N14: 33 | S14: S
B15: COBER TOTAL EXTRANJERO: | E15: =+COTIZACION!D20 -> SI | F15: =+COTIZACION!D22 -> B | G15: =IF(E15="SI",(IF(F15="A",FACTORES!G6,IF(F15="B",FACTORES!G7,IF(F15="C",FACTORES!G8,"NO PROCEDE")))),1) -> 2.4 | I15: =IF(F14=F15,VLOOKUP(F14,VALORES!$A$31:$B$33,2,FALSE),"ZONAS DIFERENTES") -> ZONAS DIFERENTES | K15: A | N15: 98
G16: =+COTIZACION!D14 -> 5 | K16: B | N16: 16
B17: FORMA DE PAGO: | E17: =+COTIZACION!#REF! ->  | F17: Costos | G17: 0 | K17: C | N17: 16.3
B18: PARTO | G18: =(IF(COTIZACION!A16="NO",+FACTORES!G16,IF(AND(COTIZACION!A7=1,COTIZACION!A8=1),VLOOKUP(E10,FACTORES!$F$16:$G$19,2,0)*(1-DESC),VLOOKUP(E10,FACTORES!$F$23:$G$26,2,0)*(1-DESC)))) -> 17323.4412 | H18: *BUSCARV(G16,FACTORES!$F$30:$G$35,2,0) | I18: =(SI(COTIZACION!A16="NO",+FACTORES!G16,SI(COTIZACION!D7=FACTORES!F14,BUSCARV(G10,FACTORES!$F$16:$G$19,2,0)*(1-DESC),BUSCARV(G10,FACTORES!$F$23:$G$26,2,0)*(1-DESC)))) | N18: 14
B19: DENTAL | F19: =ROUND(N4,2) -> 237.4 | G19: =281*0+181.98*0+F19*(1-DESC) -> 237.4 | K19: =+F19/DENTAL-1 -> 0 | N19: 3.9
B20: PAQ_ADIC | G20: =611*0+701.81*0+(684*1.135*0)+(M14)*(1-DESC) -> 885.0048068 | N20: 10.39
B21: ASIST_IKE | F21: =ROUND(N8,2) -> 198.72 | G21: =122.5*0+153.74*0+F21*(1-DESC) -> 198.72 | H21: 153.74 | I21: 125.5 (anterior) | K21: =F21/IKE-1 -> 0 | N21: 13.3
B22: EDUCA | G22: =88*(1-DESC)*0 -> 0 | N22: 13.5
B23: VISION | G23: =206.61*0+R4*(1-DESC) -> 235.5297211 | N23: 20.5
D24: PRIMA BASE | F24: PRIMA TARIFA | H24: R P FRAC | I24: =G17 -> 0 | J24: PRIMA TOTAL | N24: 56
D25: REGIONALIZADA | F25: REGIONALIZADA | H25: DER POLIZA | I25: 700 | J25: IVA | K25: =+COTIZACION!D26 -> 0.16 | N25: 0.78
B26: EDAD | D26: HOMBRE | E26: MUJER | F26: HOMBRE | G26: MUJER | H26: HOMBRE | I26: MUJER | J26: HOMBRE | K26: MUJER | N26: 117
B27: 0 | D27: =FACTORES!F39 -> 6985.42 | E27: =FACTORES!G39 -> 6989.76 | F27: =ROUND(D27*$G$5*$G$6*$G$8*$G$14*$G$15*$G$9,2)+ADIC+DENTAL+DEDXACC+ENFGVES+IKE+CVISION -> 21968.44063 | G27: =ROUND(E27*$G$5*$G$6*$G$8*$G$14*$G$15*$G$9,2)+ADIC+DENTAL+DEDXACC+ENFGVES+IKE+CVISION -> 21980.57063 | H27: =(F27*(1+$I$24))+$I$25 -> 22668.44063 | I27: =(G27*(1+$I$24))+$I$25 -> 22680.57063 | J27: =H27*(1+$K$25) -> 26295.39113 | K27: =I27*(1+$K$25) -> 26309.46193
B28: =+B27+1 -> 1 | D28: =FACTORES!F40 -> 6985.42 | E28: =FACTORES!G40 -> 6989.76 | F28: =ROUND(D28*$G$5*$G$6*$G$8*$G$14*$G$15*$G$9,2)+ADIC+DENTAL+DEDXACC+ENFGVES+IKE+CVISION -> 21968.44063 | G28: 21980.57063 | H28: =(F28*(1+$I$24))+$I$25 -> 22668.44063 | I28: =(G28*(1+$I$24))+$I$25 -> 22680.57063 | J28: =H28*(1+$K$25) -> 26295.39113 | K28: =I28*(1+$K$25) -> 26309.46193
B29: =+B28+1 -> 2 | D29: =FACTORES!F41 -> 6985.42 | E29: =FACTORES!G41 -> 6989.76 | F29: =ROUND(D29*$G$5*$G$6*$G$8*$G$14*$G$15*$G$9,2)+ADIC+DENTAL+DEDXACC+ENFGVES+IKE+CVISION -> 21968.44063 | G29: 21980.57063 | H29: 22668.44063 | I29: 22680.57063 | J29: 26295.39113 | K29: 26309.46193
B30: 3 | D30: =FACTORES!F42 -> 6985.42 | E30: =FACTORES!G42 -> 6989.76 | F30: =ROUND(D30*$G$5*$G$6*$G$8*$G$14*$G$15*$G$9,2)+ADIC+DENTAL+DEDXACC+ENFGVES+IKE+CVISION -> 21968.44063 | G30: 21980.57063 | H30: 22668.44063 | I30: 22680.57063 | J30: 26295.39113 | K30: 26309.46193
B31: 4 | D31: =FACTORES!F43 -> 6985.42 | E31: =FACTORES!G43 -> 6989.76 | F31: =ROUND(D31*$G$5*$G$6*$G$8*$G$14*$G$15*$G$9,2)+ADIC+DENTAL+DEDXACC+ENFGVES+IKE+CVISION -> 21968.44063 | G31: 21980.57063 | H31: 22668.44063 | I31: 22680.57063 | J31: 26295.39113 | K31: 26309.46193
B32: 5 | D32: =FACTORES!F44 -> 6985.42 | E32: =FACTORES!G44 -> 6989.76 | F32: =ROUND(D32*$G$5*$G$6*$G$8*$G$14*$G$15*$G$9,2)+ADIC+DENTAL+DEDXACC+ENFGVES+IKE+CVISION -> 21968.44063 | G32: 21980.57063 | H32: 22668.44063 | I32: 22680.57063 | J32: 26295.39113 | K32: 26309.46193
B33: 6 | D33: =FACTORES!F45 -> 6985.42 | E33: =FACTORES!G45 -> 6989.76 | F33: =ROUND(D33*$G$5*$G$6*$G$8*$G$14*$G$15*$G$9,2)+ADIC+DENTAL+DEDXACC+ENFGVES+IKE+CVISION -> 21968.44063 | G33: 21980.57063 | H33: 22668.44063 | I33: 22680.57063 | J33: 26295.39113 | K33: 26309.46193
B34: 7 | D34: =FACTORES!F46 -> 6985.42 | E34: =FACTORES!G46 -> 6989.76 | F34: =ROUND(D34*$G$5*$G$6*$G$8*$G$14*$G$15*$G$9,2)+ADIC+DENTAL+DEDXACC+ENFGVES+IKE+CVISION -> 21968.44063 | G34: 21980.57063 | H34: 22668.44063 | I34: 22680.57063 | J34: 26295.39113 | K34: 26309.46193
B35: 8 | D35: =FACTORES!F47 -> 6985.42 | E35: =FACTORES!G47 -> 6989.76 | F35: =ROUND(D35*$G$5*$G$6*$G$8*$G$14*$G$15*$G$9,2)+ADIC+DENTAL+DEDXACC+ENFGVES+IKE+CVISION -> 21968.44063 | G35: 21980.57063 | H35: 22668.44063 | I35: 22680.57063 | J35: 26295.39113 | K35: 26309.46193
B36: 9 | D36: =FACTORES!F48 -> 6985.42 | E36: =FACTORES!G48 -> 6989.76 | F36: =ROUND(D36*$G$5*$G$6*$G$8*$G$14*$G$15*$G$9,2)+ADIC+DENTAL+DEDXACC+ENFGVES+IKE+CVISION -> 21968.44063 | G36: 21980.57063 | H36: 22668.44063 | I36: 22680.57063 | J36: 26295.39113 | K36: 26309.46193
B37: 10 | D37: =FACTORES!F49 -> 6985.42 | E37: =FACTORES!G49 -> 6989.76 | F37: 21968.44063 | G37: 21980.57063 | H37: 22668.44063 | I37: 22680.57063 | J37: 26295.39113 | K37: 26309.46193
B38: 11 | D38: =FACTORES!F50 -> 6946.01 | E38: =FACTORES!G50 -> 6882.92 | F38: =ROUND(D38*$G$5*$G$6*$G$8*$G$14*$G$15*$G$9,2)+ADIC+DENTAL+DEDXACC+ENFGVES+IKE+CVISION -> 21858.32063 | G38: 21682.04063 | H38: 22558.32063 | I38: 22382.04063 | J38: 26167.65193 | K38: 25963.16713 | L38: =+F38/F37-1 -> -0.005012645269
B39: 12 | D39: =FACTORES!F51 -> 6913.99 | E39: =FACTORES!G51 -> 6977.01 | F39: =ROUND(D39*$G$5*$G$6*$G$8*$G$14*$G$15*$G$9,2)+ADIC+DENTAL+DEDXACC+ENFGVES+IKE+CVISION -> 21768.85063 | G39: 21944.94063 | H39: 22468.85063 | I39: 22644.94063 | J39: 26063.86673 | K39: 26268.13113
B40: 13 | D40: =FACTORES!F52 -> 6866.26 | E40: =FACTORES!G52 -> 6931.11 | F40: =ROUND(D40*$G$5*$G$6*$G$8*$G$14*$G$15*$G$9,2)+ADIC+DENTAL+DEDXACC+ENFGVES+IKE+CVISION -> 21635.49063 | G40: 21816.69063 | H40: 22335.49063 | I40: 22516.69063 | J40: 25909.16913 | K40: 26119.36113
B41: 14 | D41: =FACTORES!F53 -> 6687.98 | E41: =FACTORES!G53 -> 6789.98 | F41: =ROUND(D41*$G$5*$G$6*$G$8*$G$14*$G$15*$G$9,2)+ADIC+DENTAL+DEDXACC+ENFGVES+IKE+CVISION -> 21137.34063 | G41: 21422.35063 | H41: 21837.34063 | I41: 22122.35063 | J41: 25331.31513 | K41: 25661.92673
B42: 15 | D42: =FACTORES!F54 -> 6715.22 | E42: =FACTORES!G54 -> 6679.78 | F42: =ROUND(D42*$G$5*$G$6*$G$8*$G$14*$G$15*$G$9,2)+ADIC+DENTAL+DEDXACC+ENFGVES+IKE+CVISION -> 21213.46063 | G42: 21114.43063 | H42: 21913.46063 | I42: 21814.43063 | J42: 25419.61433 | K42: 25304.73953
B43: 16 | D43: =FACTORES!F55 -> 6589.64 | E43: =FACTORES!G55 -> 6426.46 | F43: 20862.56063 | G43: 20406.61063 | H43: 21562.56063 | I43: 21106.61063 | J43: 25012.57033 | K43: 24483.66833
B44: 17 | D44: =FACTORES!F56 -> 6625.9 | E44: =FACTORES!G56 -> 6528.29 | F44: 20963.88063 | G44: =ROUND(E44*$G$5*$G$6*$G$8*$G$14*$G$15*$G$9,2)+ADIC+DENTAL+DEDXACC+ENFGVES+IKE+CVISION -> 20691.14063 | H44: 21663.88063 | I44: 21391.14063 | J44: 25130.10153 | K44: 24813.72313
B45: 18 | D45: =FACTORES!F57 -> 6819.73 | E45: =FACTORES!G57 -> 6168.12 | F45: =ROUND(D45*$G$5*$G$6*$G$8*$G$14*$G$15*$G$9,2)+ADIC+DENTAL+DEDXACC+ENFGVES+IKE+CVISION -> 21505.48063 | G45: =ROUND(E45*$G$5*$G$6*$G$8*$G$14*$G$15*$G$9,2)+ADIC+DENTAL+DEDXACC+ENFGVES+IKE+PARTO+CVISION -> 37008.20183 | H45: 22205.48063 | I45: 37708.20183 | J45: 25758.35753 | K45: 43741.51412 | L45: 21337.45833 | M45: 39743.88428 | N45: =IF(J45=L45,1,0) -> 0 | O45: =IF(K45=M45,1,0) -> 0
B46: 19 | D46: =FACTORES!F58 -> 7051.24 | E46: =FACTORES!G58 -> 6259.8 | F46: 22152.36063 | G46: 37264.37183 | H46: 22852.36063 | I46: 37964.37183 | J46: 26508.73833 | K46: 44038.67132
B47: 20 | D47: =FACTORES!F59 -> 7265.19 | E47: =FACTORES!G59 -> 7264.01 | F47: 22750.17063 | G47: 40070.31183 | H47: 23450.17063 | I47: 40770.31183 | J47: 27202.19793 | K47: 47293.56172
B48: 21 | D48: =FACTORES!F60 -> 7647.45 | E48: =FACTORES!G60 -> 9419.34 | F48: 23818.27063 | G48: 46092.68183 | H48: 24518.27063 | I48: 46792.68183 | J48: 28441.19393 | K48: 54279.51092
B49: 22 | D49: =FACTORES!F61 -> 7990.45 | E49: =FACTORES!G61 -> 9874.55 | F49: 24776.67063 | G49: 47364.62183 | H49: 25476.67063 | I49: 48064.62183 | J49: 29552.93793 | K49: 55754.96132
B50: 23 | D50: =FACTORES!F62 -> 8517.95 | E50: =FACTORES!G62 -> 10347.18 | F50: 26250.60063 | G50: 48685.23183 | H50: 26950.60063 | I50: 49385.23183 | J50: 31262.69673 | K50: 57286.86892
B51: 24 | D51: =FACTORES!F63 -> 8872.17 | E51: =FACTORES!G63 -> 10840.06 | F51: 27240.35063 | G51: 50062.43183 | H51: 27940.35063 | I51: 50762.43183 | J51: 32410.80673 | K51: 58884.42092
B52: 25 | D52: =FACTORES!F64 -> 9222.6 | E52: =FACTORES!G64 -> 11348.45 | F52: 28219.52063 | G52: 51482.96183 | H52: 28919.52063 | I52: 52182.96183 | J52: 33546.64393 | K52: 60532.23572
B53: 26 | D53: =FACTORES!F65 -> 9848.7 | E53: =FACTORES!G65 -> 11892.2 | F53: 29968.95063 | G53: 53002.29183 | H53: 30668.95063 | I53: 53702.29183 | J53: 35575.98273 | K53: 62294.65852
B54: 27 | D54: =FACTORES!F66 -> 10282.52 | E54: =FACTORES!G66 -> 12441.62 | F54: 31181.12063 | G54: 54537.47183 | H54: 31881.12063 | I54: 55237.47183 | J54: 36982.09993 | K54: 64075.46732
B55: 28 | D55: =FACTORES!F67 -> 10892.86 | E55: =FACTORES!G67 -> 13032.79 | F55: 32886.52063 | G55: 56189.30183 | H55: 33586.52063 | I55: 56889.30183 | J55: 38960.36393 | K55: 65991.59012
B56: 29 | D56: =FACTORES!F68 -> 11459.63 | E56: =FACTORES!G68 -> 13634.28 | F56: 34470.17063 | G56: 57869.97183 | H56: 35170.17063 | I56: 58569.97183 | J56: 40797.39793 | K56: 67941.16732
B57: 30 | D57: =FACTORES!F69 -> 11991.45 | E57: =FACTORES!G69 -> 14281.28 | F57: 35956.17063 | G57: 59677.80183 | H57: 36656.17063 | I57: 60377.80183 | J57: 42521.15793 | K57: 70038.25012
B58: 31 | D58: =FACTORES!F70 -> 12489.54 | E58: =FACTORES!G70 -> 14949.02 | F58: 37347.92063 | G58: 61543.58183 | H58: 38047.92063 | I58: 62243.58183 | J58: 44135.58793 | K58: 72202.55492
B59: 32 | D59: =FACTORES!F71 -> 13255.86 | E59: =FACTORES!G71 -> 15637.63 | F59: 39489.16063 | G59: 63467.68183 | H59: 40189.16063 | I59: 64167.68183 | J59: 46619.42633 | K59: 74434.51092
B60: 33 | D60: =FACTORES!F72 -> 13735.79 | E60: =FACTORES!G72 -> 16208.65 | F60: 40830.16063 | G60: 65063.21183 | H60: 41530.16063 | I60: 65763.21183 | J60: 48174.98633 | K60: 76285.32572
B61: 34 | D61: =FACTORES!F73 -> 14520.09 | E61: =FACTORES!G73 -> 16958.52 | F61: 43021.64063 | G61: 67158.48183 | H61: 43721.64063 | I61: 67858.48183 | J61: 50717.10313 | K61: 78715.83892
B62: 35 | D62: =FACTORES!F74 -> 15336.16 | E62: =FACTORES!G74 -> 17747.21 | F62: 45301.88063 | G62: 69362.22183 | H62: 46001.88063 | I62: 70062.22183 | J62: 53362.18153 | K62: 81272.17732
B63: 36 | D63: =FACTORES!F75 -> 16004.34 | E63: =FACTORES!G75 -> 18562.48 | F63: 47168.89063 | G63: 71640.23183 | H63: 47868.89063 | I63: 72340.23183 | J63: 55527.91313 | K63: 83914.66892
B64: 37 | D64: =FACTORES!F76 -> 16884 | E64: =FACTORES!G76 -> 19442.08 | F64: 49626.82063 | G64: 74097.98183 | H64: 50326.82063 | I64: 74797.98183 | J64: 58379.11193 | K64: 86765.65892
B65: 38 | D65: =FACTORES!F77 -> 17812.78 | E65: =FACTORES!G77 -> 20325.44 | F65: 52221.99063 | G65: 76566.25183 | H65: 52921.99063 | I65: 77266.25183 | J65: 61389.50913 | K65: 89628.85212
B66: 39 | D66: =FACTORES!F78 -> 18805.88 | E66: =FACTORES!G78 -> 21259.28 | F66: 54996.89063 | G66: 79175.56183 | H66: 55696.89063 | I66: 79875.56183 | J66: 64608.39313 | K66: 92655.65172
B67: 40 | D67: =FACTORES!F79 -> 19473.18 | E67: =FACTORES!G79 -> 22230.24 | F67: 56861.44063 | G67: 81888.59183 | H67: 57561.44063 | I67: 82588.59183 | J67: 66771.27113 | K67: 95802.76652
B68: 41 | D68: =FACTORES!F80 -> 20204.39 | E68: =FACTORES!G80 -> 23249.33 | F68: 58904.57063 | G68: 84736.11183 | H68: 59604.57063 | I68: 85436.11183 | J68: 69141.30193 | K68: 99105.88972
B69: 42 | D69: =FACTORES!F81 -> 21001.95 | E69: =FACTORES!G81 -> 24312.41 | F69: 61133.09063 | G69: 87706.54183 | H69: 61833.09063 | I69: 88406.54183 | J69: 71726.38513 | K69: 102551.5885
B70: 43 | D70: =FACTORES!F82 -> 21864.96 | E70: =FACTORES!G82 -> 25420.98 | F70: 63544.50063 | G70: 90804.08183 | H70: 64244.50063 | I70: 91504.08183 | J70: 74523.62073 | K70: 106144.7349
B71: 44 | D71: =FACTORES!F83 -> 22819.46 | E71: =FACTORES!G83 -> 26700.38 | F71: 66211.54063 | G71: 94378.95183 | H71: 66911.54063 | I71: 95078.95183 | J71: 77617.38713 | K71: 110291.5841
B72: 45 | D72: =FACTORES!F84 -> 23857.66 | E72: =FACTORES!G84 -> 27964.35 | F72: 69112.45063 | G72: 97910.71183 | H72: 69812.45063 | I72: 98610.71183 | J72: 80982.44273 | K72: 114388.4257
B73: 46 | D73: =FACTORES!F85 -> 25004.76 | E73: =FACTORES!G85 -> 29044.86 | F73: 72317.65063 | G73: 100929.8418 | H73: 73017.65063 | I73: 101629.8418 | J73: 84700.47473 | K73: 117890.6165
B74: 47 | D74: =FACTORES!F86 -> 26257.33 | E74: =FACTORES!G86 -> 30538.05 | F74: 75817.55063 | G74: 105102.0818 | H74: 76517.55063 | I74: 105802.0818 | J74: 88760.35873 | K74: 122730.4149
B75: 48 | D75: =FACTORES!F87 -> 27630.6 | E75: =FACTORES!G87 -> 31787.82 | F75: 79654.71063 | G75: 108594.1518 | H75: 80354.71063 | I75: 109294.1518 | J75: 93211.46433 | K75: 126781.2161
B76: 49 | D76: =FACTORES!F88 -> 29133.77 | E76: =FACTORES!G88 -> 33137.16 | F76: 83854.83063 | G76: 112364.4518 | H76: 84554.83063 | I76: 113064.4518 | J76: 98083.60353 | K76: 131154.7641
B77: 50 | D77: =FACTORES!F89 -> 30772.28 | E77: =FACTORES!G89 -> 34564.14 | F77: =ROUND(D77*$G$5*$G$6*$G$8*$G$14*$G$15*$G$9,2)+ADIC+DENTAL+DEDXACC+ENFGVES+IKE+CVISION -> 88433.12063 | G77: 116351.6818 | H77: 89133.12063 | I77: 117051.6818 | J77: 103394.4199 | K77: 135779.9509
B78: 51 | D78: =FACTORES!F90 -> 32536.15 | E78: =FACTORES!G90 -> 36102.97 | F78: 93361.68063 | G78: 120651.4418 | H78: 94061.68063 | I78: 121351.4418 | J78: 109111.5495 | K78: 140767.6725
B79: 52 | D79: =FACTORES!F91 -> 34459.83 | E79: =FACTORES!G91 -> 37751.29 | F79: 98736.78063 | G79: 125257.1418 | H79: 99436.78063 | I79: 125957.1418 | J79: 115346.6655 | K79: 146110.2845
B80: 53 | D80: =FACTORES!F92 -> 36562.41 | E80: =FACTORES!G92 -> 39519.4 | F80: 104611.7606 | G80: 130197.5518 | H80: 105311.7606 | I80: 130897.5518 | J80: 122161.6423 | K80: 151841.1601
B81: 54 | D81: =FACTORES!F93 -> 38838.24 | E81: =FACTORES!G93 -> 41399.59 | F81: 110970.8306 | G81: 135451.1318 | H81: 111670.8306 | I81: 136151.1318 | J81: 129538.1635 | K81: 157935.3129
B82: 55 | D82: =FACTORES!F94 -> 41263.48 | E82: =FACTORES!G94 -> 43358.49 | F82: 117747.3806 | G82: =ROUND(E82*$G$5*$G$6*$G$8*$G$14*$G$15*$G$9,2)+ADIC+DENTAL+DEDXACC+ENFGVES+IKE+CVISION -> 123601.2006 | H82: 118447.3806 | I82: 124301.2006 | J82: 137398.9615 | K82: 144189.3927
B83: 56 | D83: =FACTORES!F95 -> 43907.07 | E83: =FACTORES!G95 -> 46001.58 | F83: 125134.0306 | G83: 130986.4606 | H83: 125834.0306 | I83: 131686.4606 | J83: 145967.4755 | K83: 152756.2943
B84: 57 | D84: =FACTORES!F96 -> 46743.42 | E84: =FACTORES!G96 -> 47794.59 | F84: 133059.2906 | G84: 135996.4506 | H84: 133759.2906 | I84: 136696.4506 | J84: 155160.7771 | K84: 158567.8827
B85: 58 | D85: =FACTORES!F97 -> 48777.47 | E85: =FACTORES!G97 -> 49728.61 | F85: 138742.7906 | G85: 141400.4406 | H85: 139442.7906 | I85: 142100.4406 | J85: 161753.6371 | K85: 164836.5111
B86: 59 | D86: =FACTORES!F98 -> 51975.72 | E86: =FACTORES!G98 -> 50587 | F86: 147679.2606 | G86: 143798.9306 | H86: 148379.2606 | I86: 144498.9306 | J86: 172119.9423 | K86: 167618.7595
B87: 60 | D87: =FACTORES!F99 -> 69402.74 | E87: =FACTORES!G99 -> 68905.96 | F87: 196373.4206 | G87: 194985.3306 | H87: 197073.4206 | I87: 195685.3306 | J87: 228605.1679 | K87: 226994.9835
B88: 61 | D88: =FACTORES!F100 -> 73238.99 | E88: =FACTORES!G100 -> 71930.13 | F88: 207092.5806 | G88: 203435.3906 | H88: 207792.5806 | I88: 204135.3906 | J88: 241039.3935 | K88: 236797.0531 | L88: =+F88 -> 207092.5806
B89: 62 | D89: =FACTORES!F101 -> 77145.19 | E89: =FACTORES!G101 -> 75041.95 | F89: 218007.1906 | G89: 212130.3706 | H89: 218707.1906 | I89: 212830.3706 | J89: 253700.3411 | K89: 246883.2299
B90: 63 | D90: =FACTORES!F102 -> 81435.78 | E90: =FACTORES!G102 -> 78314.67 | F90: 229995.8506 | G90: 221274.9206 | H90: 230695.8506 | I90: 221974.9206 | J90: 267607.1867 | K90: 257490.9079
B91: 64 | D91: =FACTORES!F103 -> 85761.32 | E91: =FACTORES!G103 -> 81793.43 | F91: 242082.1706 | G91: 230995.1906 | H91: 242782.1706 | I91: 231695.1906 | J91: 281627.3179 | K91: 268766.4211
B92: 65 | D92: =FACTORES!F104 -> 90339.87 | E92: =FACTORES!G104 -> 85386.07 | F92: 254875.4506 | G92: 241033.6606 | H92: =(F92*(1+$I$24))+$I$25 -> 255575.4506 | I92: =(G92*(1+$I$24))+$I$25 -> 241733.6606 | J92: =H92*(1+$K$25) -> 296467.5227 | K92: =I92*(1+$K$25) -> 280411.0463
B93: =+B92+1 -> 66 | D93: =FACTORES!F105 -> 95132.5 | E93: =FACTORES!G105 -> 89184.03 | F93: 268266.9006 | G93: 251645.8306 | H93: 268966.9006 | I93: 252345.8306 | J93: 312001.6047 | K93: 292721.1635
B94: 67 | D94: =FACTORES!F106 -> 100077.76 | E94: =FACTORES!G106 -> 93035.05 | F94: 282084.8306 | G94: 262406.2506 | H94: 282784.8306 | I94: 263106.2506 | J94: 328030.4035 | K94: 305203.2507
B95: 68 | D95: =FACTORES!F107 -> 105302.25 | E95: =FACTORES!G107 -> 97108.85 | F95: 296682.9706 | G95: 273789.1706 | H95: 297382.9706 | I95: 274489.1706 | J95: 344964.2459 | K95: 318407.4379
B96: 69 | D96: =FACTORES!F108 -> 110507.49 | E96: =FACTORES!G108 -> 101417.29 | F96: 311227.3306 | G96: 285827.7106 | H96: 311927.3306 | I96: 286527.7106 | J96: 361835.7035 | K96: 332372.1443
B97: 70 | D97: =FACTORES!F109 -> 116051.9 | E97: =FACTORES!G109 -> 105828.44 | F97: 326719.3806 | G97: 298153.2406 | H97: 327419.3806 | I97: 298853.2406 | J97: 379806.4815 | K97: 346669.7591
B98: 71 | D98: =FACTORES!F110 -> 121870.68 | E98: =FACTORES!G110 -> 110273.55 | F98: 342978.0806 | G98: 310573.6606 | H98: 343678.0806 | I98: 311273.6606 | J98: 398666.5735 | K98: 361077.4463
B99: 72 | D99: =FACTORES!F111 -> 127707.53 | E99: =FACTORES!G111 -> 115114.48 | F99: 359287.2706 | G99: 324100.0706 | H99: 359987.2706 | I99: 324800.0706 | J99: 417585.2339 | K99: 376768.0819
B100: 73 | D100: =FACTORES!F112 -> 133881.18 | E100: =FACTORES!G112 -> 119998.29 | F100: 376537.5306 | G100: 337746.2906 | H100: 377237.5306 | I100: 338446.2906 | J100: 437595.5355 | K100: 392597.6971
B101: 74 | D101: =FACTORES!F113 -> 140095.79 | E101: =FACTORES!G113 -> 124966.98 | F101: 393902.2406 | G101: 351629.6906 | H101: 394602.2406 | I101: 352329.6906 | J101: 457738.5991 | K101: 408702.4411
B102: 75 | D102: =FACTORES!F114 -> 146539.84 | E102: =FACTORES!G114 -> 130076.54 | F102: 411908.0506 | G102: 365906.7006 | H102: 412608.0506 | I102: 366606.7006 | J102: 478625.3387 | K102: 425263.7727
B103: 76 | D103: =FACTORES!F115 -> 154118.04 | E103: =FACTORES!G115 -> 135852.78 | F103: 433082.8806 | G103: 382046.5306 | H103: 433782.8806 | I103: 382746.5306 | J103: 503188.1415 | K103: 443985.9755
B104: 77 | D104: =FACTORES!F116 -> 161925.42 | E104: =FACTORES!G116 -> 142014.06 | F104: 454898.0706 | G104: 399262.2306 | H104: 455598.0706 | I104: 399962.2306 | J104: 528493.7619 | K104: 463956.1875
B105: 78 | D105: =FACTORES!F117 -> 170229.8 | E105: =FACTORES!G117 -> 148405.05 | F105: 478101.9706 | G105: 417119.7806 | H105: 478801.9706 | I105: 417819.7806 | J105: 555410.2859 | K105: 484670.9455
B106: 79 | D106: =FACTORES!F118 -> 179655.48 | E106: =FACTORES!G118 -> 154794.95 | F106: 504438.9806 | G106: 434974.2806 | H106: 505138.9806 | I106: 435674.2806 | J106: 585961.2175 | K106: 505382.1655
B107: 80 | D107: =FACTORES!F119 -> 188656.95 | E107: =FACTORES!G119 -> 161504.36 | F107: 529590.6706 | G107: 453721.5606 | H107: 530290.6706 | I107: 454421.5606 | J107: 615137.1779 | K107: 527129.0103
B108: 81 | D108: =FACTORES!F120 -> 198972.08 | E108: =FACTORES!G120 -> 168271.8 | F108: 558412.9606 | G108: 472630.9806 | H108: 559112.9606 | I108: 473330.9806 | J108: 648571.0343 | K108: 549063.9375
B109: 82 | D109: =FACTORES!F121 -> 209490.34 | E109: =FACTORES!G121 -> 175111.75 | F109: 587802.8306 | G109: 491743.0006 | H109: 588502.8306 | I109: 492443.0006 | J109: 682663.2835 | K109: 571233.8807
B110: 83 | D110: =FACTORES!F122 -> 220555.07 | E110: =FACTORES!G122 -> 182858.71 | F110: 618719.6306 | G110: 513389.3706 | H110: 619419.6306 | I110: 514089.3706 | J110: 718526.7715 | K110: 596343.6699
B111: 84 | D111: =FACTORES!F123 -> 232613.37 | E111: =FACTORES!G123 -> 190414.64 | F111: 652412.6506 | G111: 534501.9706 | H111: =(F111*(1+$I$24))+$I$25 -> 653112.6506 | I111: =(G111*(1+$I$24))+$I$25 -> 535201.9706 | J111: =H111*(1+$K$25) -> 757610.6747 | K111: =I111*(1+$K$25) -> 620834.2859
B112: 85 | D112: =FACTORES!F124 -> 244552.46 | E112: =FACTORES!G124 -> 197720.65 | F112: 685772.5606 | G112: 554916.2406 | H112: =(F112*(1+$I$24))+$I$25 -> 686472.5606 | I112: =(G112*(1+$I$24))+$I$25 -> 555616.2406 | J112: =H112*(1+$K$25) -> 796308.1703 | K112: =I112*(1+$K$25) -> 644514.8391

Sheet CONYUGE (hidden)
C1: GASTOS MÉDICOS MAYORES INDIVIDUAL/FAMILIAR | I1: REGION COBERTURA BASICA
I2: =IF(ISERROR(VLOOKUP(E3,VALORES!$A$6:$B$11,2,FALSE)),"REGION NO VALIDA",VLOOKUP(E3,VALORES!$A$6:$B$11,2,FALSE)) -> BAJA CALIFORNIA, BAJA CALIFORNIA SUR, MORELOS, QUINTANA ROO, QUERETARO, SAN LUIS POTOSI, SINALOA, SONORA
B3: REGIÓN: | E3: =+COTIZACION!D14 -> 5 | F3: =IF(E3>7,"NO PROCEDE"," ") ->  | G3: FACTORES
B5: SUMA ASEGURADA: | E5: =+COTIZACION!D10 -> 10000000 | G5: =+TITULAR!G5 -> 1.26
B6: DEDUCIBLE: | E6: =+COTIZACION!D11 -> 10000 | G6: =+TITULAR!G6 -> 0.88
B7: COASEGURO: | E7: =+COTIZACION!D12 -> 0.1 | G7: =+TITULAR!G8 -> 1
B8: CATALOGO: | E8: =+COTIZACION!$D$25 -> 0 | G8: =+TITULAR!G9 -> 1
B9: SUMA ASEGURADA PARTO O CESAREA | E9: =+COTIZACION!D17 -> 40000
F10: ZONA | O10: A
B11: EMERGENCIA EXTRANJERO: | E11: =+COTIZACION!D21 -> SI | G11: =+TITULAR!G14 -> 1.05 | I11: ZONA COBERTURAS ADICIONALES | O11: S
B12: COBER TOTAL EXTRANJERO: | E12: =+COTIZACION!D20 -> SI | F12: =+COTIZACION!D22 -> B | G12: =+TITULAR!G15 -> 2.4 | H12: =G12*G11*G8*G7*G6*G5 -> 2.794176 | I12: =IF(F11=F12,VLOOKUP(F11,VALORES!$A$31:$B$33,2,FALSE),"ZONAS DIFERENTES") -> ZONAS DIFERENTES | K12: A
K13: B
B14: FORMA DE PAGO: | E14: =+COTIZACION!#REF! ->  | G14: =+TITULAR!G17 -> 0 | K14: C
D18: PRIMA BASE | F18: PRIMA TARIFA | H18: R P FRAC | I18: =G14 -> 0 | J18: PRIMA TOTAL | M18: TARIFA CONYUGUE
D19: REGIONALIZADA | F19: REGIONALIZADA | H19: DER POLIZA | I19: 0 | J19: IVA | K19: =+COTIZACION!D26 -> 0.16 | M19: IVA | N19: =+COTIZACION!D26 -> 0.16
B20: EDAD | D20: HOMBRE | E20: MUJER | F20: HOMBRE | G20: MUJER | H20: HOMBRE | I20: MUJER | J20: HOMBRE | K20: MUJER | M20: HOMBRE | N20: MUJER
B21: 0 | D21: =FACTORES!F39 -> 6985.42 | E21: =FACTORES!G39 -> 6989.76 | F21: =ROUND(D21*$G$5*$G$6*$G$7*$G$11*$G$12*$G$8,2)+ADIC+DENTAL+IKE+CVISION -> 21075.14453 | G21: =ROUND(E21*$G$5*$G$6*$G$7*$G$11*$G$12*$G$8,2)+ADIC+DENTAL+IKE+CVISION -> 21087.27453 | H21: =(F21*(1+$I$18))+$I$19 -> 21075.14453 | I21: =(G21*(1+$I$18))+$I$19 -> 21087.27453 | J21: =H21*(1+$K$19) -> 24447.16765 | K21: =I21*(1+$K$19) -> 24461.23845 | M21: =(D21*$G$5*$G$6*$G$7*$G$11*$G$12*$G$8+(ADIC+DENTAL+CVISION+IKE)*(1-DESC))*(1+IVA) -> 24447.17103 | N21: =(E21*$G$5*$G$6*$G$7*$G$11*$G$12*$G$8+(ADIC+DENTAL+CVISION+IKE)*(1-DESC))*(1+IVA) -> 24461.23803
B22: =+B21+1 -> 1 | D22: =FACTORES!F40 -> 6985.42 | E22: =FACTORES!G40 -> 6989.76 | F22: 21075.14453 | G22: 21087.27453 | H22: =(F22*(1+$I$18))+$I$19 -> 21075.14453 | I22: =(G22*(1+$I$18))+$I$19 -> 21087.27453 | J22: =H22*(1+$K$19) -> 24447.16765 | K22: =I22*(1+$K$19) -> 24461.23845 | M22: =(D22*$G$5*$G$6*$G$7*$G$11*$G$12*$G$8+(ADIC+DENTAL+CVISION+IKE)*(1-DESC))*(1+IVA) -> 24447.17103 | N22: 24461.23803
B23: =+B22+1 -> 2 | D23: =FACTORES!F41 -> 6985.42 | E23: =FACTORES!G41 -> 6989.76 | F23: 21075.14453 | G23: 21087.27453 | H23: 21075.14453 | I23: 21087.27453 | J23: 24447.16765 | K23: 24461.23845 | M23: 24447.17103 | N23: 24461.23803
B24: 3 | D24: =FACTORES!F42 -> 6985.42 | E24: =FACTORES!G42 -> 6989.76 | F24: 21075.14453 | G24: 21087.27453 | H24: 21075.14453 | I24: 21087.27453 | J24: 24447.16765 | K24: 24461.23845 | M24: 24447.17103 | N24: 24461.23803
B25: 4 | D25: =FACTORES!F43 -> 6985.42 | E25: =FACTORES!G43 -> 6989.76 | F25: 21075.14453 | G25: 21087.27453 | H25: 21075.14453 | I25: 21087.27453 | J25: 24447.16765 | K25: 24461.23845 | M25: 24447.17103 | N25: 24461.23803
B26: 5 | D26: =FACTORES!F44 -> 6985.42 | E26: =FACTORES!G44 -> 6989.76 | F26: 21075.14453 | G26: 21087.27453 | H26: 21075.14453 | I26: 21087.27453 | J26: 24447.16765 | K26: 24461.23845 | M26: 24447.17103 | N26: 24461.23803
B27: 6 | D27: =FACTORES!F45 -> 6985.42 | E27: =FACTORES!G45 -> 6989.76 | F27: 21075.14453 | G27: 21087.27453 | H27: 21075.14453 | I27: 21087.27453 | J27: 24447.16765 | K27: 24461.23845 | M27: 24447.17103 | N27: 24461.23803
B28: 7 | D28: =FACTORES!F46 -> 6985.42 | E28: =FACTORES!G46 -> 6989.76 | F28: 21075.14453 | G28: 21087.27453 | H28: 21075.14453 | I28: 21087.27453 | J28: 24447.16765 | K28: 24461.23845 | M28: 24447.17103 | N28: 24461.23803
B29: 8 | D29: =FACTORES!F47 -> 6985.42 | E29: =FACTORES!G47 -> 6989.76 | F29: 21075.14453 | G29: 21087.27453 | H29: 21075.14453 | I29: 21087.27453 | J29: 24447.16765 | K29: 24461.23845 | M29: 24447.17103 | N29: 24461.23803
B30: 9 | D30: =FACTORES!F48 -> 6985.42 | E30: =FACTORES!G48 -> 6989.76 | F30: 21075.14453 | G30: 21087.27453 | H30: 21075.14453 | I30: 21087.27453 | J30: 24447.16765 | K30: 24461.23845 | M30: 24447.17103 | N30: 24461.23803
B31: 10 | D31: =FACTORES!F49 -> 6985.42 | E31: =FACTORES!G49 -> 6989.76 | F31: 21075.14453 | G31: 21087.27453 | H31: 21075.14453 | I31: 21087.27453 | J31: 24447.16765 | K31: 24461.23845 | M31: 24447.17103 | N31: 24461.23803
B32: 11 | D32: =FACTORES!F50 -> 6946.01 | E32: =FACTORES!G50 -> 6882.92 | F32: 20965.02453 | G32: 20788.74453 | H32: 20965.02453 | I32: 20788.74453 | J32: 24319.42845 | K32: 24114.94365 | M32: 24319.4336 | N32: 24114.94351
B33: 12 | D33: =FACTORES!F51 -> 6913.99 | E33: =FACTORES!G51 -> 6977.01 | F33: 20875.55453 | G33: 21051.64453 | H33: 20875.55453 | I33: 21051.64453 | J33: 24215.64325 | K33: 24419.90765 | M33: 24215.64896 | N33: 24419.91217
B34: 13 | D34: =FACTORES!F52 -> 6866.26 | E34: =FACTORES!G52 -> 6931.11 | F34: 20742.19453 | G34: 20923.39453 | H34: 20742.19453 | I34: 20923.39453 | J34: 24060.94565 | K34: 24271.13765 | M34: 24060.94438 | N34: 24271.13906
B35: 14 | D35: =FACTORES!F53 -> 6687.98 | E35: =FACTORES!G53 -> 6789.98 | F35: 20244.04453 | G35: 20529.05453 | H35: 20244.04453 | I35: 20529.05453 | J35: 23483.09165 | K35: 23813.70325 | M35: 23483.09537 | N35: 23813.70227
B36: 15 | D36: =FACTORES!F54 -> 6715.22 | E36: =FACTORES!G54 -> 6679.78 | F36: 20320.16453 | G36: 20221.13453 | H36: 20320.16453 | I36: 20221.13453 | J36: 23571.39085 | K36: 23456.51605 | M36: 23571.38686 | N36: 23456.51717
B37: 16 | D37: =FACTORES!F55 -> 6589.64 | E37: =FACTORES!G55 -> 6426.46 | F37: 19969.26453 | G37: 19513.31453 | H37: 19969.26453 | I37: 19513.31453 | J37: 23164.34685 | K37: 22635.44485 | M37: 23164.35142 | N37: 22635.4452
B38: 17 | D38: =FACTORES!F56 -> 6625.9 | E38: =FACTORES!G56 -> 6528.29 | F38: 20070.58453 | G38: 19797.84453 | H38: 20070.58453 | I38: 19797.84453 | J38: 23281.87805 | K38: 22965.49965 | M38: 23281.87893 | N38: 22965.50109
B39: 18 | D39: =FACTORES!F57 -> 6819.73 | E39: =FACTORES!G57 -> 6168.12 | F39: =ROUND(D39*$G$5*$G$6*$G$7*$G$11*$G$12*$G$8,2)+ADIC+DENTAL+IKE+CVISION -> 20612.18453 | G39: =ROUND(E39*$G$5*$G$6*$G$7*$G$11*$G$12*$G$8,2)+ADIC+DENTAL+IKE+PARTO+CVISION -> 36114.90573 | H39: 20612.18453 | I39: 36114.90573 | J39: 23910.13405 | K39: 41893.29064 | M39: 23910.12929 | N39: 21798.10218
B40: 19 | D40: =FACTORES!F58 -> 7051.24 | E40: =FACTORES!G58 -> 6259.8 | F40: 21259.06453 | G40: 36371.07573 | H40: 21259.06453 | I40: 36371.07573 | J40: 24660.51485 | K40: 42190.44784 | M40: 24660.50972 | N40: 22095.25945
B41: 20 | D41: =FACTORES!F59 -> 7265.19 | E41: =FACTORES!G59 -> 7264.01 | F41: 21856.87453 | G41: 39177.01573 | H41: 21856.87453 | I41: 39177.01573 | J41: 25353.97445 | K41: 45445.33824 | M41: 25353.97391 | N41: 25350.14924
B42: 21 | D42: =FACTORES!F60 -> 7647.45 | E42: =FACTORES!G60 -> 9419.34 | F42: 22924.97453 | G42: 45199.38573 | H42: 22924.97453 | I42: 45199.38573 | J42: 26592.97045 | K42: 52431.28744 | M42: 26592.9719 | N42: 32336.10002
B43: 22 | D43: =FACTORES!F61 -> 7990.45 | E43: =FACTORES!G61 -> 9874.55 | F43: 23883.37453 | G43: 46471.32573 | H43: 23883.37453 | I43: 46471.32573 | J43: 27704.71445 | K43: 53906.73784 | M43: 27704.71865 | N43: 33811.54677
B44: 23 | D44: =FACTORES!F62 -> 8517.95 | E44: =FACTORES!G62 -> 10347.18 | F44: 25357.30453 | G44: 47791.93573 | H44: 25357.30453 | I44: 47791.93573 | J44: 29414.47325 | K44: 55438.64544 | M44: 29414.47495 | N44: 35343.456
B45: 24 | D45: =FACTORES!F63 -> 8872.17 | E45: =FACTORES!G63 -> 10840.06 | F45: 26347.05453 | G45: 49169.13573 | H45: 26347.05453 | I45: 49169.13573 | J45: 30562.58325 | K45: 57036.19744 | M45: 30562.58845 | N45: 36941.00042
B46: 25 | D46: =FACTORES!F64 -> 9222.6 | E46: =FACTORES!G64 -> 11348.45 | F46: 27326.22453 | G46: 50589.66573 | H46: 27326.22453 | I46: 50589.66573 | J46: 31698.42045 | K46: 58684.01224 | M46: 31698.41764 | N46: 38588.81654
B47: 26 | D47: =FACTORES!F65 -> 9848.7 | E47: =FACTORES!G65 -> 11892.2 | F47: 29075.65453 | G47: 52108.99573 | H47: 29075.65453 | I47: 52108.99573 | J47: 33727.75925 | K47: 60446.43504 | M47: 33727.76061 | N47: 40351.24305
B48: 27 | D48: =FACTORES!F66 -> 10282.52 | E48: =FACTORES!G66 -> 12441.62 | F48: 30287.82453 | G48: 53644.17573 | H48: 30287.82453 | I48: 53644.17573 | J48: 35133.87645 | K48: 62227.24384 | M48: 35133.87715 | N48: 42132.04742
B49: 28 | D49: =FACTORES!F67 -> 10892.86 | E49: =FACTORES!G67 -> 13032.79 | F49: 31993.22453 | G49: 55296.00573 | H49: 31993.22453 | I49: 55296.00573 | J49: 37112.14045 | K49: 64143.36664 | M49: 37112.13811 | N49: 44048.17373
B50: 29 | D50: =FACTORES!F68 -> 11459.63 | E50: =FACTORES!G68 -> 13634.28 | F50: 33576.87453 | G50: 56976.67573 | H50: 33576.87453 | I50: 56976.67573 | J50: 38949.17445 | K50: 66092.94384 | M50: 38949.17807 | N50: 45997.74968
B51: 30 | D51: =FACTORES!F69 -> 11991.45 | E51: =FACTORES!G69 -> 14281.28 | F51: 35062.87453 | G51: 58784.50573 | H51: 35062.87453 | I51: 58784.50573 | J51: 40672.93445 | K51: 68190.02664 | M51: 40672.93653 | N51: 48094.83465
B52: 31 | D52: =FACTORES!F70 -> 12489.54 | E52: =FACTORES!G70 -> 14949.02 | F52: 36454.62453 | G52: 60650.28573 | H52: 36454.62453 | I52: 60650.28573 | J52: 42287.36445 | K52: 70354.33144 | M52: 42287.36784 | N52: 50259.14303
B53: 32 | D53: =FACTORES!F71 -> 13255.86 | E53: =FACTORES!G71 -> 15637.63 | F53: 38595.86453 | G53: 62574.38573 | H53: 38595.86453 | I53: 62574.38573 | J53: 44771.20285 | K53: 72586.28744 | M53: =(D53*$G$5*$G$6*$G$7*$G$11*$G$12*$G$8+(ADIC+DENTAL+CVISION+IKE)*(1-DESC))*(1+IVA) -> 44771.19806 | N53: =(E53*$G$5*$G$6*$G$7*$G$11*$G$12*$G$8+(ADIC+DENTAL+CVISION+IKE)*(1-DESC))*(1+IVA) -> 52491.09617
B54: 33 | D54: =FACTORES!F72 -> 13735.79 | E54: =FACTORES!G72 -> 16208.65 | F54: 39936.86453 | G54: 64169.91573 | H54: 39936.86453 | I54: 64169.91573 | J54: 46326.76285 | K54: 74437.10224 | M54: 46326.76837 | N54: 54341.91141
B55: 34 | D55: =FACTORES!F73 -> 14520.09 | E55: =FACTORES!G73 -> 16958.52 | F55: 42128.34453 | G55: 66265.18573 | H55: 42128.34453 | I55: 66265.18573 | J55: 48868.87965 | K55: 76867.61544 | M55: 48868.87617 | N55: 56772.42316
B56: 35 | D56: =FACTORES!F74 -> 15336.16 | E56: =FACTORES!G74 -> 17747.21 | F56: 44408.58453 | G56: 68468.92573 | H56: 44408.58453 | I56: 68468.92573 | J56: 51513.95805 | K56: 79423.95384 | M56: 51513.95829 | N56: 59328.76002
B57: 36 | D57: =FACTORES!F75 -> 16004.34 | E57: =FACTORES!G75 -> 18562.48 | F57: 46275.59453 | G57: 70746.93573 | H57: 46275.59453 | I57: 70746.93573 | J57: 53679.68965 | K57: 82066.44544 | M57: 53679.69281 | N57: 61971.24915
B58: 37 | D58: =FACTORES!F76 -> 16884 | E58: =FACTORES!G76 -> 19442.08 | F58: 48733.52453 | G58: 73204.68573 | H58: 48733.52453 | I58: 73204.68573 | J58: 56530.88845 | K58: 84917.43544 | M58: 56530.88565 | N58: 64822.24751
B59: 38 | D59: =FACTORES!F77 -> 17812.78 | E59: =FACTORES!G77 -> 20325.44 | F59: 51328.69453 | G59: 75672.95573 | H59: 51328.69453 | I59: 75672.95573 | J59: 59541.28565 | K59: 87780.62864 | M59: 59541.2884 | N59: 67685.43295
B60: 39 | D60: =FACTORES!F78 -> 18805.88 | E60: =FACTORES!G78 -> 21259.28 | F60: 54103.59453 | G60: 78282.26573 | H60: 54103.59453 | I60: 78282.26573 | J60: 62760.16965 | K60: 90807.42824 | M60: 62760.16798 | N60: 70712.2364
B61: 40 | D61: =FACTORES!F79 -> 19473.18 | E61: =FACTORES!G79 -> 22230.24 | F61: 55968.14453 | G61: 80995.29573 | H61: 55968.14453 | I61: 80995.29573 | J61: 64923.04765 | K61: 93954.54304 | M61: 64923.0502 | N61: 73859.35483
B62: 41 | D62: =FACTORES!F80 -> 20204.39 | E62: =FACTORES!G80 -> 23249.33 | F62: 58011.27453 | G62: 83842.81573 | H62: 58011.27453 | I62: 83842.81573 | J62: 67293.07845 | K62: 97257.66624 | M62: 67293.08035 | N62: 77162.47434
B63: 42 | D63: =FACTORES!F81 -> 21001.95 | E63: =FACTORES!G81 -> 24312.41 | F63: 60239.79453 | G63: 86813.24573 | H63: 60239.79453 | I63: 86813.24573 | J63: 69878.16165 | K63: 100703.365 | M63: 69878.16704 | N63: 80608.17618
B64: 43 | D64: =FACTORES!F82 -> 21864.96 | E64: =FACTORES!G82 -> 25420.98 | F64: 62651.20453 | G64: 89910.78573 | H64: 62651.20453 | I64: 89910.78573 | J64: 72675.39725 | K64: 104296.5114 | M64: 72675.39316 | N64: 84201.32222
B65: 44 | D65: =FACTORES!F83 -> 22819.46 | E65: =FACTORES!G83 -> 26700.38 | F65: 65318.24453 | G65: 93485.65573 | H65: 65318.24453 | I65: 93485.65573 | J65: 75769.16365 | K65: 108443.3606 | M65: 75769.16071 | N65: 88348.17
B66: 45 | D66: =FACTORES!F84 -> 23857.66 | E66: =FACTORES!G84 -> 27964.35 | F66: 68219.15453 | G66: 97017.41573 | H66: 68219.15453 | I66: 97017.41573 | J66: 79134.21925 | K66: 112540.2022 | M66: 79134.2204 | N66: 92445.00538
B67: 46 | D67: =FACTORES!F85 -> 25004.76 | E67: =FACTORES!G85 -> 29044.86 | F67: 71424.35453 | G67: 100036.5457 | H67: 71424.35453 | I67: 100036.5457 | J67: 82852.25125 | K67: 116042.393 | M67: 82852.25157 | N67: 95947.20211
B68: 47 | D68: =FACTORES!F86 -> 26257.33 | E68: =FACTORES!G86 -> 30538.05 | F68: 74924.25453 | G68: 104208.7857 | H68: 74924.25453 | I68: 104208.7857 | J68: 86912.13525 | K68: 120882.1914 | M68: 86912.13677 | N68: 100786.9955
B69: 48 | D69: =FACTORES!F87 -> 27630.6 | E69: =FACTORES!G87 -> 31787.82 | F69: 78761.41453 | G69: 107700.8557 | H69: 78761.41453 | I69: 107700.8557 | J69: 91363.24085 | K69: 124932.9926 | M69: 91363.24014 | N69: 104837.8052
B70: 49 | D70: =FACTORES!F88 -> 29133.77 | E70: =FACTORES!G88 -> 33137.16 | F70: 82961.53453 | G70: 111471.1557 | H70: 82961.53453 | I70: 111471.1557 | J70: 96235.38005 | K70: 129306.5406 | M70: 96235.38112 | N70: 109211.3456
B71: 50 | D71: =FACTORES!F89 -> 30772.28 | E71: =FACTORES!G89 -> 34564.14 | F71: =ROUND(D71*$G$5*$G$6*$G$7*$G$11*$G$12*$G$8,2)+ADIC+DENTAL+IKE+CVISION -> 87539.82453 | G71: 115458.3857 | H71: 87539.82453 | I71: 115458.3857 | J71: 101546.1965 | K71: 133931.7274 | M71: 101546.1921 | N71: 113836.5362
B72: 51 | D72: =FACTORES!F90 -> 32536.15 | E72: =FACTORES!G90 -> 36102.97 | F72: 92468.38453 | G72: 119758.1457 | H72: 92468.38453 | I72: 119758.1457 | J72: 107263.3261 | K72: 138919.449 | M72: 107263.3254 | N72: 118824.2599
B73: 52 | D73: =FACTORES!F91 -> 34459.83 | E73: =FACTORES!G91 -> 37751.29 | F73: 97843.48453 | G73: 124363.8457 | H73: 97843.48453 | I73: 124363.8457 | J73: 113498.4421 | K73: 144262.061 | M73: 113498.442 | N73: 124166.8675
B74: 53 | D74: =FACTORES!F92 -> 36562.41 | E74: =FACTORES!G92 -> 39519.4 | F74: 103718.4645 | G74: 129304.2557 | H74: 103718.4645 | I74: 129304.2557 | J74: 120313.4189 | K74: 149992.9366 | M74: 120313.4171 | N74: 129897.7437
B75: 54 | D75: =FACTORES!F93 -> 38838.24 | E75: =FACTORES!G93 -> 41399.59 | F75: 110077.5345 | G75: 134557.8357 | H75: 110077.5345 | I75: 134557.8357 | J75: 127689.9401 | K75: 156087.0894 | M75: 127689.9378 | N75: 135991.8986
B76: 55 | D76: =FACTORES!F94 -> 41263.48 | E76: =FACTORES!G94 -> 43358.49 | F76: 116854.0845 | G76: =ROUND(E76*$G$5*$G$6*$G$7*$G$11*$G$12*$G$8,2)+ADIC+DENTAL+IKE+CVISION -> 122707.9045 | H76: 116854.0845 | I76: 122707.9045 | J76: 135550.7381 | K76: 142341.1693 | M76: 135550.7328 | N76: 142341.1718
B77: 56 | D77: =FACTORES!F95 -> 43907.07 | E77: =FACTORES!G95 -> 46001.58 | F77: 124240.7345 | G77: 130093.1645 | H77: 124240.7345 | I77: 130093.1645 | J77: 144119.2521 | K77: 150908.0709 | M77: 144119.2535 | N77: 150908.0718
B78: 57 | D78: =FACTORES!F96 -> 46743.42 | E78: =FACTORES!G96 -> 47794.59 | F78: 132165.9945 | G78: 135103.1545 | H78: 132165.9945 | I78: 135103.1545 | J78: 153312.5537 | K78: 156719.6593 | M78: 153312.5563 | N78: 156719.655
B79: 58 | D79: =FACTORES!F97 -> 48777.47 | E79: =FACTORES!G97 -> 49728.61 | F79: 137849.4945 | G79: 140507.1445 | H79: 137849.4945 | I79: 140507.1445 | J79: 159905.4137 | K79: 162988.2877 | M79: 159905.409 | N79: 162988.286
B80: 59 | D80: =FACTORES!F98 -> 51975.72 | E80: =FACTORES!G98 -> 50587 | F80: 146785.9645 | G80: 142905.6345 | H80: 146785.9645 | I80: 142905.6345 | J80: 170271.7189 | K80: 165770.5361 | M80: 170271.7182 | N80: 165770.5376
B81: 60 | D81: =FACTORES!F99 -> 69402.74 | E81: =FACTORES!G99 -> 68905.96 | F81: 195480.1245 | G81: 194092.0345 | H81: 195480.1245 | I81: 194092.0345 | J81: 226756.9445 | K81: 225146.7601 | M81: 226756.945 | N81: 225146.7597
B82: 61 | D82: =FACTORES!F100 -> 73238.99 | E82: =FACTORES!G100 -> 71930.13 | F82: 206199.2845 | G82: 202542.0945 | H82: 206199.2845 | I82: 202542.0945 | J82: 239191.1701 | K82: 234948.8297 | M82: 239191.1679 | N82: 234948.833
B83: 62 | D83: =FACTORES!F101 -> 77145.19 | E83: =FACTORES!G101 -> 75041.95 | F83: 217113.8945 | G83: 211237.0745 | H83: 217113.8945 | I83: 211237.0745 | J83: 251852.1177 | K83: 245035.0065 | M83: 251852.1158 | N83: 245035.0014
B84: 63 | D84: =FACTORES!F102 -> 81435.78 | E84: =FACTORES!G102 -> 78314.67 | F84: 229102.5545 | G84: 220381.6245 | H84: 229102.5545 | I84: 220381.6245 | J84: 265758.9633 | K84: 255642.6845 | M84: 265758.9656 | N84: 255642.686
B85: 64 | D85: =FACTORES!F103 -> 85761.32 | E85: =FACTORES!G103 -> 81793.43 | F85: 241188.8745 | G85: 230101.8945 | H85: 241188.8745 | I85: 230101.8945 | J85: 279779.0945 | K85: 266918.1977 | M85: =(D85*$G$5*$G$6*$G$7*$G$11*$G$12*$G$8+(ADIC+DENTAL+CVISION+IKE)*(1-DESC))*(1+IVA) -> 279779.0969 | N85: =(E85*$G$5*$G$6*$G$7*$G$11*$G$12*$G$8+(ADIC+DENTAL+CVISION+IKE)*(1-DESC))*(1+IVA) -> 266918.1966
B86: 65 | D86: =FACTORES!F104 -> 90339.87 | E86: =FACTORES!G104 -> 85386.07 | F86: 253982.1545 | G86: 240140.3645 | H86: =(F86*(1+$I$18))+$I$19 -> 253982.1545 | I86: =(G86*(1+$I$18))+$I$19 -> 240140.3645 | J86: =H86*(1+$K$19) -> 294619.2993 | K86: =I86*(1+$K$19) -> 278562.8229 | M86: 294619.2953 | N86: 278562.82
B87: =+B86+1 -> 66 | D87: =FACTORES!F105 -> 95132.5 | E87: =FACTORES!G105 -> 89184.03 | F87: 267373.6045 | G87: 250752.5345 | H87: 267373.6045 | I87: 250752.5345 | J87: 310153.3813 | K87: 290872.9401 | M87: 310153.3793 | N87: 290872.9357
B88: 67 | D88: =FACTORES!F106 -> 100077.76 | E88: =FACTORES!G106 -> 93035.05 | F88: 281191.5345 | G88: 261512.9545 | H88: 281191.5345 | I88: 261512.9545 | J88: 326182.1801 | K88: 303355.0273 | M88: 326182.1744 | N88: 303355.0317
B89: 68 | D89: =FACTORES!F107 -> 105302.25 | E89: =FACTORES!G107 -> 97108.85 | F89: 295789.6745 | G89: 272895.8745 | H89: 295789.6745 | I89: 272895.8745 | J89: 343116.0225 | K89: 316559.2145 | M89: 343116.0221 | N89: 316559.2122
B90: 69 | D90: =FACTORES!F108 -> 110507.49 | E90: =FACTORES!G108 -> 101417.29 | F90: 310334.0345 | G90: 284934.4145 | H90: 310334.0345 | I90: 284934.4145 | J90: 359987.4801 | K90: 330523.9209 | M90: 359987.4759 | N90: 330523.9182
B91: 70 | D91: =FACTORES!F109 -> 116051.9 | E91: =FACTORES!G109 -> 105828.44 | F91: 325826.0845 | G91: 297259.9445 | H91: 325826.0845 | I91: 297259.9445 | J91: 377958.2581 | K91: 344821.5357 | M91: 377958.2624 | N91: 344821.5324
B92: 71 | D92: =FACTORES!F110 -> 121870.68 | E92: =FACTORES!G110 -> 110273.55 | F92: 342084.7845 | G92: 309680.3645 | H92: 342084.7845 | I92: 309680.3645 | J92: 396818.3501 | K92: 359229.2229 | M92: 396818.3491 | N92: 359229.2192
B93: 72 | D93: =FACTORES!F111 -> 127707.53 | E93: =FACTORES!G111 -> 115114.48 | F93: 358393.9745 | G93: 323206.7745 | H93: 358393.9745 | I93: 323206.7745 | J93: 415737.0105 | K93: 374919.8585 | M93: 415737.0051 | N93: 374919.8553
B94: 73 | D94: =FACTORES!F112 -> 133881.18 | E94: =FACTORES!G112 -> 119998.29 | F94: 375644.2345 | G94: 336852.9945 | H94: 375644.2345 | I94: 336852.9945 | J94: 435747.3121 | K94: 390749.4737 | M94: 435747.3121 | N94: 390749.4759
B95: 74 | D95: =FACTORES!F113 -> 140095.79 | E95: =FACTORES!G113 -> 124966.98 | F95: 393008.9445 | G95: 350736.3945 | H95: 393008.9445 | I95: 350736.3945 | J95: 455890.3757 | K95: 406854.2177 | M95: 455890.3804 | N95: 406854.2134
B96: 75 | D96: =FACTORES!F114 -> 146539.84 | E96: =FACTORES!G114 -> 130076.54 | F96: 411014.7545 | G96: 365013.4045 | H96: 411014.7545 | I96: 365013.4045 | J96: 476777.1153 | K96: 423415.5493 | M96: 476777.1199 | N96: 423415.5449
B97: 76 | D97: =FACTORES!F115 -> 154118.04 | E97: =FACTORES!G115 -> 135852.78 | F97: 432189.5845 | G97: 381153.2345 | H97: 432189.5845 | I97: 381153.2345 | J97: 501339.9181 | K97: 442137.7521 | M97: 501339.9164 | N97: 442137.749
B98: 77 | D98: =FACTORES!F116 -> 161925.42 | E98: =FACTORES!G116 -> 142014.06 | F98: 454004.7745 | G98: 398368.9345 | H98: 454004.7745 | I98: 398368.9345 | J98: 526645.5385 | K98: 462107.9641 | M98: 526645.5412 | N98: 462107.9619
B99: 78 | D99: =FACTORES!F117 -> 170229.8 | E99: =FACTORES!G117 -> 148405.05 | F99: 477208.6745 | G99: 416226.4845 | H99: 477208.6745 | I99: 416226.4845 | J99: 553562.0625 | K99: 482822.7221 | M99: 553562.0644 | N99: 482822.7209
B100: 79 | D100: =FACTORES!F118 -> 179655.48 | E100: =FACTORES!G118 -> 154794.95 | F100: 503545.6845 | G100: 434080.9845 | H100: 503545.6845 | I100: 434080.9845 | J100: 584112.9941 | K100: 503533.9421 | M100: 584112.9946 | N100: 503533.9469
B101: 80 | D101: =FACTORES!F119 -> 188656.95 | E101: =FACTORES!G119 -> 161504.36 | F101: 528697.3745 | G101: 452828.2645 | H101: 528697.3745 | I101: 452828.2645 | J101: 613288.9545 | K101: 525280.7869 | M101: 613288.9567 | N101: 525280.7829
B102: 81 | D102: =FACTORES!F120 -> 198972.08 | E102: =FACTORES!G120 -> 168271.8 | F102: 557519.6645 | G102: 471737.6845 | H102: 557519.6645 | I102: 471737.6845 | J102: 646722.8109 | K102: 547215.7141 | M102: 646722.8116 | N102: 547215.7083
B103: 82 | D103: =FACTORES!F121 -> 209490.34 | E103: =FACTORES!G121 -> 175111.75 | F103: 586909.5345 | G103: 490849.7045 | H103: 586909.5345 | I103: 490849.7045 | J103: 680815.0601 | K103: 569385.6573 | M103: 680815.0604 | N103: 569385.6563
B104: 83 | D104: =FACTORES!F122 -> 220555.07 | E104: =FACTORES!G122 -> 182858.71 | F104: 617826.3345 | G104: 512496.0745 | H104: 617826.3345 | I104: 512496.0745 | J104: 716678.5481 | K104: 594495.4465 | M104: 716678.5518 | N104: 594495.4451
B105: 84 | D105: =FACTORES!F123 -> 232613.37 | E105: =FACTORES!G123 -> 190414.64 | F105: 651519.3545 | G105: 533608.6745 | H105: =(F105*(1+$I$18))+$I$19 -> 651519.3545 | I105: =(G105*(1+$I$18))+$I$19 -> 533608.6745 | J105: =H105*(1+$K$19) -> 755762.4513 | K105: =I105*(1+$K$19) -> 618986.0625 | M105: =(D105*$G$5*$G$6*$G$7*$G$11*$G$12*$G$8+(ADIC+DENTAL+CVISION+IKE)*(1-DESC))*(1+IVA) -> 755762.4463 | N105: =(E105*$G$5*$G$6*$G$7*$G$11*$G$12*$G$8+(ADIC+DENTAL+CVISION+IKE)*(1-DESC))*(1+IVA) -> 618986.0591
B106: 85 | D106: =FACTORES!F124 -> 244552.46 | E106: =FACTORES!G124 -> 197720.65 | F106: 684879.2645 | G106: 554022.9445 | H106: =(F106*(1+$I$18))+$I$19 -> 684879.2645 | I106: =(G106*(1+$I$18))+$I$19 -> 554022.9445 | J106: =H106*(1+$K$19) -> 794459.9469 | K106: =I106*(1+$K$19) -> 642666.6157 | M106: =(D106*$G$5*$G$6*$G$7*$G$11*$G$12*$G$8+(ADIC+DENTAL+CVISION+IKE)*(1-DESC))*(1+IVA) -> 794459.952 | N106: =(E106*$G$5*$G$6*$G$7*$G$11*$G$12*$G$8+(ADIC+DENTAL+CVISION+IKE)*(1-DESC))*(1+IVA) -> 642666.6214

Sheet DEPENDIENTE (hidden)
C1: GASTOS MÉDICOS MAYORES INDIVIDUAL/FAMILIAR | I1: REGION COBERTURA BASICA
I2: =IF(ISERROR(VLOOKUP(E3,VALORES!$A$6:$B$11,2,FALSE)),"REGION NO VALIDA",VLOOKUP(E3,VALORES!$A$6:$B$11,2,FALSE)) -> BAJA CALIFORNIA, BAJA CALIFORNIA SUR, MORELOS, QUINTANA ROO, QUERETARO, SAN LUIS POTOSI, SINALOA, SONORA
B3: REGIÓN: | E3: =+COTIZACION!D14 -> 5 | F3: =IF(E3>7,"NO PROCEDE"," ") ->  | G3: FACTORES
B5: SUMA ASEGURADA: | E5: =+COTIZACION!D10 -> 10000000 | G5: =+TITULAR!G5 -> 1.26
B6: DEDUCIBLE: | E6: =+COTIZACION!D11 -> 10000 | G6: =+TITULAR!G6 -> 0.88
B7: COASEGURO: | E7: =+COTIZACION!D12 -> 0.1 | G7: =+TITULAR!G8 -> 1
B8: CATALOGO: | E8: =COTIZACION!$D$25 -> 0 | G8: =+TITULAR!G9 -> 1
F9: ZONA | S9: A
B10: EMERGENCIA EXTRANJERO: | E10: =+COTIZACION!D21 -> SI | G10: =+TITULAR!G14 -> 1.05 | I10: ZONA COBERTURAS ADICIONALES | S10: S
B11: COBER TOTAL EXTRANJERO: | E11: =+COTIZACION!D20 -> SI | F11: =+COTIZACION!D22 -> B | G11: =+TITULAR!G15 -> 2.4 | I11: =IF(F10=F11,VLOOKUP(F10,VALORES!$A$31:$B$33,2,FALSE),"ZONAS DIFERENTES") -> ZONAS DIFERENTES | K11: A
K12: B
B13: FORMA DE PAGO: | E13: =+COTIZACION!#REF! ->  | G13: =+TITULAR!G17 -> 0 | K13: C
D18: PRIMA BASE | F18: PRIMA TARIFA | H18: R P FRAC | I18: =G13 -> 0 | J18: PRIMA TOTAL
D19: REGIONALIZADA | F19: REGIONALIZADA | H19: DER POLIZA | I19: 0 | J19: IVA | K19: =+COTIZACION!D26 -> 0.16
B20: EDAD | D20: HOMBRE | E20: MUJER | F20: HOMBRE | G20: MUJER | H20: HOMBRE | I20: MUJER | J20: HOMBRE | K20: MUJER
B21: 0 | D21: =FACTORES!F39 -> 6985.42 | E21: =FACTORES!G39 -> 6989.76 | F21: =ROUND(D21*$G$5*$G$6*$G$7*$G$10*$G$11*$G$8,2)+ADIC+DENTAL+IKE+CVISION -> 21075.14453 | G21: =ROUND(E21*$G$5*$G$6*$G$7*$G$10*$G$11*$G$8,2)+ADIC+DENTAL+IKE+CVISION -> 21087.27453 | H21: =(F21*(1+$I$18))+$I$19 -> 21075.14453 | I21: =(G21*(1+$I$18))+$I$19 -> 21087.27453 | J21: =H21*(1+$K$19) -> 24447.16765 | K21: =I21*(1+$K$19) -> 24461.23845
B22: =+B21+1 -> 1 | D22: =FACTORES!F40 -> 6985.42 | E22: =FACTORES!G40 -> 6989.76 | F22: 21075.14453 | G22: 21087.27453 | H22: =(F22*(1+$I$18))+$I$19 -> 21075.14453 | I22: =(G22*(1+$I$18))+$I$19 -> 21087.27453 | J22: =H22*(1+$K$19) -> 24447.16765 | K22: =I22*(1+$K$19) -> 24461.23845
B23: =+B22+1 -> 2 | D23: =FACTORES!F41 -> 6985.42 | E23: =FACTORES!G41 -> 6989.76 | F23: 21075.14453 | G23: 21087.27453 | H23: 21075.14453 | I23: 21087.27453 | J23: 24447.16765 | K23: 24461.23845
B24: 3 | D24: =FACTORES!F42 -> 6985.42 | E24: =FACTORES!G42 -> 6989.76 | F24: 21075.14453 | G24: 21087.27453 | H24: 21075.14453 | I24: 21087.27453 | J24: 24447.16765 | K24: 24461.23845
B25: 4 | D25: =FACTORES!F43 -> 6985.42 | E25: =FACTORES!G43 -> 6989.76 | F25: 21075.14453 | G25: 21087.27453 | H25: 21075.14453 | I25: 21087.27453 | J25: 24447.16765 | K25: 24461.23845
B26: 5 | D26: =FACTORES!F44 -> 6985.42 | E26: =FACTORES!G44 -> 6989.76 | F26: 21075.14453 | G26: 21087.27453 | H26: 21075.14453 | I26: 21087.27453 | J26: 24447.16765 | K26: 24461.23845
B27: 6 | D27: =FACTORES!F45 -> 6985.42 | E27: =FACTORES!G45 -> 6989.76 | F27: 21075.14453 | G27: 21087.27453 | H27: 21075.14453 | I27: 21087.27453 | J27: 24447.16765 | K27: 24461.23845
B28: 7 | D28: =FACTORES!F46 -> 6985.42 | E28: =FACTORES!G46 -> 6989.76 | F28: 21075.14453 | G28: 21087.27453 | H28: 21075.14453 | I28: 21087.27453 | J28: 24447.16765 | K28: 24461.23845
B29: 8 | D29: =FACTORES!F47 -> 6985.42 | E29: =FACTORES!G47 -> 6989.76 | F29: 21075.14453 | G29: 21087.27453 | H29: 21075.14453 | I29: 21087.27453 | J29: 24447.16765 | K29: 24461.23845
B30: 9 | D30: =FACTORES!F48 -> 6985.42 | E30: =FACTORES!G48 -> 6989.76 | F30: 21075.14453 | G30: 21087.27453 | H30: 21075.14453 | I30: 21087.27453 | J30: 24447.16765 | K30: 24461.23845
B31: 10 | D31: =FACTORES!F49 -> 6985.42 | E31: =FACTORES!G49 -> 6989.76 | F31: 21075.14453 | G31: 21087.27453 | H31: 21075.14453 | I31: 21087.27453 | J31: 24447.16765 | K31: 24461.23845
B32: 11 | D32: =FACTORES!F50 -> 6946.01 | E32: =FACTORES!G50 -> 6882.92 | F32: 20965.02453 | G32: 20788.74453 | H32: 20965.02453 | I32: 20788.74453 | J32: 24319.42845 | K32: 24114.94365
B33: 12 | D33: =FACTORES!F51 -> 6913.99 | E33: =FACTORES!G51 -> 6977.01 | F33: 20875.55453 | G33: 21051.64453 | H33: 20875.55453 | I33: 21051.64453 | J33: 24215.64325 | K33: 24419.90765
B34: 13 | D34: =FACTORES!F52 -> 6866.26 | E34: =FACTORES!G52 -> 6931.11 | F34: 20742.19453 | G34: 20923.39453 | H34: 20742.19453 | I34: 20923.39453 | J34: 24060.94565 | K34: 24271.13765
B35: 14 | D35: =FACTORES!F53 -> 6687.98 | E35: =FACTORES!G53 -> 6789.98 | F35: 20244.04453 | G35: 20529.05453 | H35: 20244.04453 | I35: 20529.05453 | J35: 23483.09165 | K35: 23813.70325
B36: 15 | D36: =FACTORES!F54 -> 6715.22 | E36: =FACTORES!G54 -> 6679.78 | F36: 20320.16453 | G36: 20221.13453 | H36: 20320.16453 | I36: 20221.13453 | J36: 23571.39085 | K36: 23456.51605
B37: 16 | D37: =FACTORES!F55 -> 6589.64 | E37: =FACTORES!G55 -> 6426.46 | F37: 19969.26453 | G37: 19513.31453 | H37: 19969.26453 | I37: 19513.31453 | J37: 23164.34685 | K37: 22635.44485
B38: 17 | D38: =FACTORES!F56 -> 6625.9 | E38: =FACTORES!G56 -> 6528.29 | F38: 20070.58453 | G38: 19797.84453 | H38: 20070.58453 | I38: 19797.84453 | J38: 23281.87805 | K38: 22965.49965
B39: 18 | D39: =FACTORES!F57 -> 6819.73 | E39: =FACTORES!G57 -> 6168.12 | F39: =ROUND(D39*$G$5*$G$6*$G$7*$G$10*$G$11*$G$8,2)+ADIC+DENTAL+IKE+CVISION -> 20612.18453 | G39: =ROUND(E39*$G$5*$G$6*$G$7*$G$10*$G$11*$G$8,2)+ADIC+DENTAL+IKE+PARTO+CVISION -> 36114.90573 | H39: 20612.18453 | I39: 36114.90573 | J39: 23910.13405 | K39: 41893.29064
B40: 19 | D40: =FACTORES!F58 -> 7051.24 | E40: =FACTORES!G58 -> 6259.8 | F40: 21259.06453 | G40: 36371.07573 | H40: 21259.06453 | I40: 36371.07573 | J40: 24660.51485 | K40: 42190.44784
B41: 20 | D41: =FACTORES!F59 -> 7265.19 | E41: =FACTORES!G59 -> 7264.01 | F41: 21856.87453 | G41: 39177.01573 | H41: 21856.87453 | I41: 39177.01573 | J41: 25353.97445 | K41: 45445.33824
B42: 21 | D42: =FACTORES!F60 -> 7647.45 | E42: =FACTORES!G60 -> 9419.34 | F42: 22924.97453 | G42: 45199.38573 | H42: 22924.97453 | I42: 45199.38573 | J42: 26592.97045 | K42: 52431.28744
B43: 22 | D43: =FACTORES!F61 -> 7990.45 | E43: =FACTORES!G61 -> 9874.55 | F43: 23883.37453 | G43: 46471.32573 | H43: 23883.37453 | I43: 46471.32573 | J43: 27704.71445 | K43: 53906.73784
B44: 23 | D44: =FACTORES!F62 -> 8517.95 | E44: =FACTORES!G62 -> 10347.18 | F44: 25357.30453 | G44: 47791.93573 | H44: 25357.30453 | I44: 47791.93573 | J44: 29414.47325 | K44: 55438.64544
B45: 24 | D45: =FACTORES!F63 -> 8872.17 | E45: =FACTORES!G63 -> 10840.06 | F45: 26347.05453 | G45: 49169.13573 | H45: 26347.05453 | I45: 49169.13573 | J45: 30562.58325 | K45: 57036.19744

Sheet VALORES (hidden)
A1: COTIZACIÓN
A2: R = RENOVACIÓN
A3: N = NUEVA
A5: NO. | B5: REGIÓN
A6: 1 | B6: CAMPECHE, CHIAPAS, GUERRERO, OAXACA, TABASCO, TLAXCALA, VERACRUZ, YUCATAN
A7: 2 | B7: HIDALGO, NAYARIT, PUEBLA
A8: 3 | B8: AGUASCALIENTES, COAHUILA, COLIMA, DURANGO, GUANAJUATO, JALISCO, MICHOACAN, ZACATECAS
A9: 4 | B9: CHIHUAHUA, NUEVO LEON, TAMAULIPAS
A10: 5 | B10: BAJA CALIFORNIA, BAJA CALIFORNIA SUR, MORELOS, QUINTANA ROO, QUERETARO, SAN LUIS POTOSI, SINALOA, SONORA
A11: 6 | B11: DISTRITO FEDERAL, EDO. DE MEXICO
A13: SUMA ASEGURADA | C13: DEDUCIBLE | E13: COASEGURO | G13: FORMA DE PAGO | H13: FORMA DE PAGO
A14: 500000 | C14: 4000 | E14: 0 | G14: A | H14: ANUAL
A15: 750000 | C15: 4500 | E15: 0.05 | G15: S | H15: SEMESTRAL
A16: 1000000 | C16: 5000 | E16: 0.1
A17: =+A16+1000000 -> 2000000 | C17: 6000 | E17: 0.15
A18: =+A17+1000000 -> 3000000 | C18: 7000 | E18: 0.2
A19: 4000000 | C19: 8000 | E19: 0.25
A20: 5000000 | C20: 9000 | E20: 0.3
A21: 6000000 | C21: 10000 | E21: 0.35
A22: 7000000 | C22: 20000 | E22: 0.4
A23: 8000000 | C23: 50000
A24: 9000000
A30: ZONA | B30: EMERGENCIA EN EL EXTRANJERO
A31: A | B31: CIUDADES A 20 KM. DE LA FRANJA FRONTERIZA CON LOS E.U.A.
A32: B | B32: BAJA CALIFORNIA, BAJA CALIFORNIA SUR, SONORA, CHIHUAHUA, COAHUILA, NUEVO LEÓN, CAMPECHE, YUCATÁN Y QUINTANA ROO
A33: C | B33: EL RESTO DEL PAÍS (EXCEPTO ZONA A Y ZONA B)
A35: COBERTURA EN EL EXTRANJERO
A36: ZONA A = CIUDADES A 20 KM. DE LA FRANJA FRONTERIZA CON LOS E.U.A.
A37: ZONA B = BAJA CALIFORNIA, BAJA CALIFORNIA SUR, SONORA, CHIHUAHUA, COAHUILA, NUEVO LEÓN, CAMPECHE, YUCATÁN Y QUINTANA ROO
A38: ZONA C = EL RESTO DEL PAÍS

Sheet CuadroEspecificacionesTARIFARIO (hidden)
J10: =TODAY() -> 2018-02-08
I12: REGIÓN | J12: =TITULAR!E3 -> 5
B14: CUADRO DE COBERTURAS
B15: - | C15: Tipo de Hospital | H15: Todos los hospitales
B17: - | C17: Suma Asegurada | H17: =+TITULAR!E5 -> 10000000 | I17: =IF(H17<>"SIN LÍMITE","M.N.","") -> M.N.
B19: - | C19: Deducible | F19: Enfermedad | H19: =+TITULAR!E6 -> 10000 | I19: M.N.
F20: Accidente | H20: 0 | I20: M.N.
B22: - | C22: Coaseguro | F22: Enfermedad | H22: =+TITULAR!E8 -> 0.1 | I22: =+COTIZACION!S29 -> 0
F23: Accidente | H23: 0
B25: =+COTIZACION!L32 -> 0 | C25: =+COTIZACION!M32 -> 0 | H25: =+TITULAR!E9 -> 0
B26: =+COTIZACION!L33 -> 0 | C26: =+COTIZACION!M33 -> 0 | H26: =+COTIZACION!R33 -> 0 | I26: =+COTIZACION!S33 -> 0
B29: =+COTIZACION!L36 -> 0 | C29: =+COTIZACION!M36 -> 0 | H29: =+COTIZACION!R36 -> 0
B30: =+COTIZACION!L37 -> 0 | C30: =+COTIZACION!M37 -> 0 | H30: =+COTIZACION!R37 -> 0
B31: =+COTIZACION!L38 -> 0 | C31: =+COTIZACION!M38 -> 0 | H31: =+COTIZACION!R38 -> 0
B32: =+COTIZACION!L39 -> 0 | C32: =+COTIZACION!M39 -> 0 | H32: =+COTIZACION!R39 -> 0
B33: =+COTIZACION!L40 -> 0 | C33: =+COTIZACION!M40 -> 0
C34: =+COTIZACION!M41 -> 0 | H34: =+COTIZACION!R41 -> 0
B35: =+COTIZACION!L42 -> 0 | C35: =+COTIZACION!M42 -> 0 | H35: =+COTIZACION!R42 -> 0
B36: =+COTIZACION!L43 -> 0 | C36: =+COTIZACION!M43 -> 0 | H36: =+COTIZACION!R43 -> 0
B37: =+COTIZACION!L44 -> 0 | C37: =+COTIZACION!M44 -> 0 | H37: =+COTIZACION!R44 -> 0
B38: =+COTIZACION!L45 -> 0 | C38: =+COTIZACION!M45 -> 0 | H38: =+COTIZACION!R45 -> 0
B39: =+COTIZACION!L46 -> 0 | C39: =+COTIZACION!M46 -> 0 | H39: =+COTIZACION!R46 -> 0
B40: =+COTIZACION!L47 -> 0 | C40: =+COTIZACION!M47 -> 0 | H40: =+COTIZACION!R47 -> 0
B41: =+COTIZACION!L48 -> 0 | C41: =+COTIZACION!M48 -> 0
C42: =+COTIZACION!M49 -> 0 | H42: =FACTORES!D37 -> 0
B43: =+COTIZACION!L50 -> 0 | C43: =+COTIZACION!M50 -> 0
C44: =+COTIZACION!M51 -> 0 | H44: =+COTIZACION!R51 -> 0
B45: =+COTIZACION!L52 -> 0 | C45: =+COTIZACION!M52 -> 0
C46: =+COTIZACION!M53 -> 0 | H46: =+COTIZACION!R53 -> 0
B47: =+COTIZACION!L54 -> 0 | C47: =+COTIZACION!M54 -> 0 | H47: =+COTIZACION!R54 -> 0
C48: =+COTIZACION!M55 -> 0
B49: =+COTIZACION!L56 -> 0 | C49: =+COTIZACION!M56 -> 0 | H49: =+COTIZACION!R56 -> 0
B50: =+COTIZACION!L57 -> 0 | C50: =+COTIZACION!M57 -> 0
C51: =+COTIZACION!M58 -> 0
C52: =+COTIZACION!M59 -> 0
C53: =+COTIZACION!M60 -> 0
C54: =+COTIZACION!M61 -> 0 | H54: =+COTIZACION!R61 -> 0
B55: =+COTIZACION!L62 -> 0 | C55: =+COTIZACION!M62 -> 0 | H55: =+COTIZACION!R62 -> 0
B56: =+COTIZACION!L63 -> 0 | C56: =+COTIZACION!M63 -> 0
C57: =+COTIZACION!M64 -> 0 | H57: =+COTIZACION!R64 -> 0
B58: =+COTIZACION!L65 -> 0 | C58: =+COTIZACION!M65 -> 0 | H58: =+COTIZACION!R65 -> 0
B59: =+COTIZACION!L66 -> 0 | C59: =+COTIZACION!M66 -> 0
C60: =+COTIZACION!M67 -> 0 | H60: =+COTIZACION!R67 -> 0
B61: =+COTIZACION!L68 -> 0 | C61: =+COTIZACION!M68 -> 0 | H61: =+COTIZACION!R68 -> 0
B62: =+COTIZACION!L69 -> 0 | C62: =+COTIZACION!M69 -> 0 | H62: =+COTIZACION!R69 -> 0
B63: =+COTIZACION!L70 -> 0 | C63: =+COTIZACION!M70 -> 0 | H63: =+COTIZACION!R70 -> 0
B64: =+COTIZACION!L71 -> 0 | C64: =+COTIZACION!M71 -> 0 | H64: =+COTIZACION!R71 -> 0
B65: =+COTIZACION!L72 -> 0 | C65: =+COTIZACION!M72 -> 0 | H65: =+COTIZACION!R72 -> 0
B66: =+COTIZACION!L73 -> 0 | C66: =+COTIZACION!M73 -> 0 | H66: =+COTIZACION!R73 -> 0
B67: =+COTIZACION!L74 -> 0 | C67: =+COTIZACION!M74 -> 0 | H67: =+COTIZACION!R74 -> 0
B68: =+COTIZACION!L75 -> 0 | C68: =+COTIZACION!M75 -> 0 | H68: =+COTIZACION!R75 -> 0
B69: =+COTIZACION!L76 -> 0 | C69: =+COTIZACION!M76 -> 0 | H69: =+COTIZACION!R76 -> 0
B70: =+COTIZACION!L77 -> 0 | C70: =+COTIZACION!M77 -> 0 | H70: =+COTIZACION!R77 -> 0
B71: - | C71: En atención en Hospiten aplica deducible y coaseguro

Sheet COTIZACION (hidden)
B6: DATOS DE LA PÓLIZA
A7: =+VLOOKUP(D7,G241:H242,2,FALSE) -> 0 | B7: Tipo de Póliza | D7: NUEVA | E7: =+IF(AND(D7="NUEVA",D8="ANTES DEL 01/10/2016"),"NO ES VÁLIDA, RECONSIDERAR SU PRIMERA EMISIÓN",CONCATENATE("APLICA PARA AQUELLA PÓLIZA ",D7," CON PRIMER VIGENCIA EMITIDA ",D8)) -> APLICA PARA AQUELLA PÓLIZA NUEVA CON PRIMER VIGENCIA EMITIDA A PARTIR DEL 01/10/2016
A8: =+VLOOKUP(D8,G243:H244,2,FALSE) -> 0 | B8: Primera vigencia emitida en Seguros Banorte | D8: A PARTIR DEL 01/10/2016
B9: TIPO DE COTIZACIÓN | D9: FAMILIAR
B10: Suma Asegurada | D10: 10000000
B11: Deducible | D11: 10000 | E11: =+IF(D7="NUEVA",IF(D11<10000,"Deducible no permitido para pólizas nuevas",""),"") -> 
B12: =+"Coaseguro "&CONCATENATE("con tope de ",VLOOKUP(IMPRESION!I19,FACTORES!C3:E6,3,FALSE)) -> Coaseguro con tope de $35,000 | D12: 0.1
B13: Estado | D13: CIUDAD DE MÉXICO
B14: Región | D14: =+VLOOKUP(D13,$C$316:$D$347,2,0) -> 5
A15: =IF(AND(D15="SI",D11>50000),"EL LIMITE ES $50,000"," ") ->  | B15: Eliminación de Deducible por Accidente | D15: SI | E15: =+IF(AND(D15="si",D11>50000),"El deducible límite es $50,000","") -> 
A16: =IF(D11>50000,"NO",D16) -> SI | B16: Incremento en Parto o Cesárea | D16: SI
B17: Suma Asegurada Parto o Cesárea | D17: 40000 | E17: =IF(D7="NUEVA",IF(D17=50000,"SUMA ASEGURADA NO PERMITIDA PARA PÓLIZAS NUEVAS",IF(D16="SI",IF(D11<60000,"DEFINA LA SUMA ASEGURADA","ESTA COBERTURA NO APLICA CON DEDUCIBLE MAYOR A $50,000"),"")),IF(D16="SI",IF(D11<60000,"DEFINA LA SUMA ASEGURADA","ESTA COBERTURA NO APLICA CON DEDUCIBLE MAYOR A $50,000"),"")) -> DEFINA LA SUMA ASEGURADA
B18: Cobertura de Visión Incremental | D18: SI
B19: Cobertura de Indemnización por Enfermedad Grave | D19: 10000 | E19: =IF(AND(D19<>"NO",SUM(A30:A37)<1),"NO CUMPLE CON LOS LIMITES DE EDAD","") -> 
B20: Cobertura Total en el Extranjero | D20: SI | E20: =IF(D20="SI","DEFINA LA ZONA COBERTURA TOTAL EN EL EXTRANJERO","") -> DEFINA LA ZONA COBERTURA TOTAL EN EL EXTRANJERO
B21: Emergencia en el Extranjero | D21: SI
B22: Zona CoberturaTotal en el Extranjero | D22: B | F22: ="ZONA "&D22&" incluye:" -> ZONA B incluye:
F23: =IF(D20="SI",VLOOKUP(D22,VALORES!$A$31:$B$33,2,FALSE)," ") -> BAJA CALIFORNIA, BAJA CALIFORNIA SUR, SONORA, CHIHUAHUA, COAHUILA, NUEVO LEÓN, CAMPECHE, YUCATÁN Y QUINTANA ROO
B25: Inc THQ | D25: 0
B26: IVA | D26: 0.16
I27: DESCUENTO | J27: 0
C29: NOMBRE | D29: NOMBRE
A30: =IF($D$7="NUEVA",IF(AND(E30>=18,E30<60),1,0),IF(AND(E30>=18,E30<65),1,0)) -> 1 | B30: Titular | D30: M | E30: 29 | F30: =IF(AND(D7="NUEVA",D11<10000),"DEDUCIBLE INVÁLIDO",IF(D7="NUEVA",IF(E30>64,"EDAD NO PERMITIDA",IF(D9="FAMILIAR",IF(E30<18,"EDAD NO PERMIDITA",""),"")),IF(D9="FAMILIAR",IF(E30<18,"EDAD NO PERMIDITA",""),""))) ->  | G30: ANUAL | H30: =+IMPRESION!K91 -> 67941.16732 | I30: 0 | J30: =+H30 -> 67941.16732
A31: =IF($D$7="NUEVA",IF(AND(E31>=18,E31<60),1,0),IF(AND(E31>=18,E31<65),1,0)) -> 0 | B31: =IF(D9="FAMILIAR","Cónyuge","") -> Cónyuge | F31: =IF($D$7="NUEVA",IF(E31>64,"EDAD NO PERMITIDA",""),"") ->  | G31: SEMESTRAL | H31: =IF((IMPRESION!K86*RSEM/2+DER)*(1+$D$26)<1000,0,(IMPRESION!K86*RSEM/2+DER)*(1+$D$26)) -> 35964.18847 | I31: =IF(H31=0,0,(IMPRESION!K86*RSEM/2)*(1+$D$26)) -> 35152.18847 | J31: =+I31+H31 -> 71116.37694
A32: 0 | B32: =IF($D$9="FAMILIAR","Dependiente 1","") -> Dependiente 1 | F32: =IF($D$7="NUEVA",IF(E32>69,"EDAD NO PERMITIDA",""),"") ->  | G32: TRIMESTRAL | H32: =IF((IMPRESION!K86*RTRIM/4+DER)*(1+$D$26)<1000,0,(IMPRESION!K86*RTRIM/4+DER)*(1+$D$26)) -> 18767.37403 | I32: =IF(H32=0,0,(IMPRESION!K86*RTRIM/4)*(1+$D$26)) -> 17955.37403 | J32: =+I32*3+H32 -> 72633.49612
A33: 0 | B33: =IF($D$9="FAMILIAR","Dependiente 2","") -> Dependiente 2 | G33: MENSUAL | H33: =IF((IMPRESION!K86*RMES/12+DER)*(1+$D$26)<1000,0,(IMPRESION!K86*RMES/12+DER)*(1+$D$26)) -> 6964.947595 | I33: =IF(H33=0,0,(IMPRESION!K86*RMES/12)*(1+$D$26)) -> 6152.947595 | J33: =+I33*11+H33 -> 74647.37114
A34: 0 | B34: =IF($D$9="FAMILIAR","Dependiente 3","") -> Dependiente 3
A35: 0 | B35: =IF($D$9="FAMILIAR","Dependiente 4","") -> Dependiente 4
A36: 0 | B36: =IF($D$9="FAMILIAR","Dependiente 5","") -> Dependiente 5
A37: 0 | B37: =IF($D$9="FAMILIAR","Dependiente 6","") -> Dependiente 6 | G37: RECARGOS POR PAGO FRACCIONADO
G39: SEMESTRAL | H39: 0.0473 | I39: FAVOR de Verificar si estos factores son los vigentes
G40: TRIMESTRAL | H40: 0.0699
G41: MENSUAL | H41: 0.0999
B44: NOTA: LAS COTIZACIONES EN EDADES DE 65 A 79 AÑOS SOLO SON VALIDAS PARA RENOVACION LA EDAD DE CONTRATACION DE LA COBERTURA DE ENFERMEDADES GRAVES ES DE 18 A 59 AÑOS
A218: NO. | B218: REGIÓN
A219: 1 | B219: OAXACA, TABASCO, VERACRUZ, CAMPECHE, YUCATAN, CHIAPAS, GUERRERO
A220: 2 | B220: PUEBLA, TLAXCALA, HIDALGO, NAYARIT
A221: 3 | B221: AGUASCALIENTES, GUANAJUATO, JALISCO, MICHOACAN, COLIMA,ZACATECAS
A222: 4 | B222: COAHUILA, TAMAULIPAS, NUEVO LEON, DURANGO, CHIHUAHUA
A223: 5 | B223: SAN LUIS POTOSI, BAJA CALIFORNIA NORTE, BAJA CALIFORNIA SUR, SINALOA, SONORA, QUERETARO, MORELOS, QUINTANA ROO
A224: 6 | B224: DISTRITO FEDERAL, EDO. DE MEXICO
C226: DEDUCIBLE | E226: COASEGURO | G226: FORMA DE PAGO | K226: FP
C227: 3500
C228: 4000 | G228: A | H228: =IF(H30=0,"NO APLICA","ANUAL") -> ANUAL | K228: =IF(#REF!="ANUAL",1,IF(#REF!="SEMESTRAL",2,IF(#REF!="TRIMESTRAL",4,IF(#REF!="MENSUAL",12,1)))) -> 
C229: 4500 | G229: S | H229: =IF(H31=0,"NO APLICA","SEMESTRAL") -> SEMESTRAL
C230: 5500 | E230: 0.1 | G230: T | H230: =IF(H32=0,"NO APLICA","TRIMESTRAL") -> TRIMESTRAL | K230: IVA
C231: 6000 | E231: 0.15 | G231: M | H231: =IF(H33=0,"NO APLICA","MENSUAL") -> MENSUAL | K231: 0.11
C232: 7000 | E232: 0.2 | G232: COBERTURA EN EL EXT | K232: 0.16
C233: 8000 | G233: S | H233: SI
C234: 9000 | G234: N | H234: NO
C235: 10000
C236: 15000 | G236: DEDUCIBLE CERO POR ACC
C237: 20000 | F237: Catalogo | G237: S | H237: SI
C238: 25000 | G238: N | H238: NO
C239: 30000
C240: 35000 | G240: Tipo de Póliza
C241: 40000 | G241: NUEVA | H241: 0
C242: 45000 | G242: RENOVADA | H242: 1
C243: 50000 | G243: ANTES DEL 01/10/2016 | H243: 1
C244: 75000 | G244: A PARTIR DEL 01/10/2016 | H244: 0
C245: 100000
C246: 300000
C247: 400000
C248: 500000
C249: 600000
C250: 700000
C251: 800000
C252: 900000
C253: 1000000
F255: 0
B256: INC EN PARTO O CESAREA | C256: PARTO O CESAREA | D256: PARTO O CESAREA | F256: 0.15 | G256: 49400 | H256: =+Base -> 49400
B257: SI | C257: 20000 | D257: 20000 | F257: 0.25
B258: NO | C258: 30000 | D258: 30000 | F258: 0.5
C259: 40000 | D259: 40000 | F259: 0.75
C260: 50000 | D260: =+IF(E7=H241," ",50000) -> 50000 | F260: 1
A262: ZONA | B262: EMERGENCIA EN EL EXTRANJERO
A263: A | B263: CIUDADES A 20 KM. DE LA FRANJA FRONTERIZA CON LOS E.U.A.
A264: B | B264: BAJA CALIFORNIA, BAJA CALIFORNIA SUR, SONORA, CHIHUAHUA, COAHUILA, NUEVO LEÓN, CAMPECHE, YUCATÁN Y QUINTANA ROO
A265: C | B265: EL RESTO DEL PAÍS (EXCEPTO ZONA A Y ZONA B)
A266: 0
A267: =1+A266 -> 1
A268: =1+A267 -> 2 | C268: TITULAR | D268: CÓNYUGE
A269: 3 | C269: H | D269: =IF((IF(C31=""," ",D30))="H","M",IF((IF(C31="","",D30))="M","H",IF((IF(C31="","",D30))="",""))) -> 
A270: 4 | C270: M
A271: 5
A272: 6
A273: 7 | C273: SUMA ASEGURADA | G273: ENF GVES
A274: 8 | C274: 200000 | E274: TIPO DE COTIZACIÓN | G274: NO
A275: 9 | C275: 300000 | E275: INDIVIDUAL | G275: 10000
A276: 10 | C276: 400000 | E276: FAMILIAR | G276: 20000
A277: 11 | C277: 500000 | G277: 30000
A278: 12 | C278: 600000 | G278: 40000
A279: 13 | C279: 700000 | G279: 50000
A280: 14 | C280: 800000 | G280: 75000
A281: 15 | C281: 1000000 | G281: 100000
A282: 16 | C282: 2000000 | G282: 150000
A283: 17 | C283: 3000000 | G283: 200000
A284: 18 | C284: 4000000 | G284: 250000
A285: 19 | C285: 5000000 | G285: 300000
A286: 20 | C286: 6000000 | G286: 350000
A287: 21 | C287: 7000000 | G287: 400000
A288: 22 | C288: 8000000 | G288: 450000
A289: 23 | C289: 9000000 | G289: 500000
A290: 24 | C290: 10000000 | G290: 550000
A291: 25 | C291: 20000000 | G291: 600000
A292: 26 | C292: 30000000 | G292: 650000
A293: 27 | C293: 40000000 | G293: 700000
A294: 28 | C294: 50000000 | G294: 750000
A295: 29 | C295: 70000000 | G295: 800000
A296: 30 | C296: 100000000 | G296: 850000
A297: 31
A298: 32
A299: 33
A300: 34
A301: 35
A302: 36
A303: 37
A304: 38
A305: 39
A306: 40
A307: 41
A308: 42
A309: 43
A310: 44
A311: 45
A312: 46
A313: 47
A314: 48
A315: 49 | C315: Estado | D315: REGIÓN
A316: 50 | C316: AGUASCALIENTES | D316: 3 | E316: 3 | F316: 2 | G316: =+F316-D316 -> -1
A317: 51 | C317: BAJA CALIFORNIA | D317: 2 | E317: 5 | F317: 3 | G317: =+F317-D317 -> 1
A318: 52 | C318: BAJA CALIFORNIA SUR | D318: 3 | E318: 5 | F318: 3 | G318: 0
A319: 53 | C319: CAMPECHE | D319: 1 | E319: 1 | F319: 1 | G319: 0
A320: 54 | C320: CHIAPAS | D320: 2 | E320: 1 | F320: 1 | G320: -1
A321: 55 | C321: CHIHUAHUA | D321: 4 | E321: 4 | F321: 3 | G321: -1
A322: 56 | C322: COAHUILA | D322: 4 | E322: 3 | F322: 2 | G322: -2
A323: 57 | C323: COLIMA | D323: 3 | E323: 3 | F323: 2 | G323: -1
A324: 58 | C324: CIUDAD DE MÉXICO | D324: 5 | E324: 6 | F324: 4 | G324: -1
A325: 59 | C325: DURANGO | D325: 3 | E325: 3 | F325: 2 | G325: -1
A326: 60 | C326: ESTADO DE MÉXICO | D326: 5 | E326: 6 | F326: 4 | G326: -1
A327: 61 | C327: GUANAJUATO | D327: 2 | E327: 3 | F327: 2 | G327: 0
A328: 62 | C328: GUERRERO | D328: 2 | E328: 1 | F328: 1 | G328: -1
A329: 63 | C329: HIDALGO | D329: 3 | E329: 2 | F329: 1 | G329: -2
A330: 64 | C330: JALISCO | D330: 3 | E330: 3 | F330: 2 | G330: -1
A331: 65 | C331: MICHOACÁN | D331: 3 | E331: 3 | F331: 2 | G331: -1
A332: =1+A331 -> 66 | C332: MORELOS | D332: 4 | E332: 5 | F332: 3 | G332: -1
A333: =1+A332 -> 67 | C333: NAYARIT | D333: 2 | E333: 2 | F333: 1 | G333: -1
A334: =1+A333 -> 68 | C334: NUEVO LEÓN | D334: 4 | E334: 4 | F334: 3 | G334: -1
A335: =1+A334 -> 69 | C335: OAXACA | D335: 1 | E335: 1 | F335: 1 | G335: 0
A336: =1+A335 -> 70 | C336: PUEBLA | D336: 2 | E336: 2 | F336: 1 | G336: -1
A337: 71 | C337: QUERÉTARO | D337: 3 | E337: 5 | F337: 3 | G337: 0
A338: 72 | C338: QUINTANA ROO | D338: 4 | E338: 5 | F338: 1 | G338: -3
A339: 73 | C339: SAN LUIS POTOSÍ | D339: 4 | E339: 5 | F339: 3 | G339: -1
A340: 74 | C340: SINALOA | D340: 3 | E340: 5 | F340: 3 | G340: 0
A341: 75 | C341: SONORA | D341: 4 | E341: 5 | F341: 3 | G341: -1
A342: 76 | C342: TABASCO | D342: 2 | E342: 1 | F342: 1 | G342: -1
A343: 77 | C343: TAMAULIPAS | D343: 4 | E343: 4 | F343: 3 | G343: -1
A344: 78 | C344: TLAXCALA | D344: 1 | E344: 2 | F344: 1 | G344: 0
A345: 79 | C345: VERACRUZ | D345: 2 | E345: 1 | F345: 1 | G345: -1
A346: 80 | C346: YUCATÁN | D346: 1 | E346: 1 | F346: 1 | G346: 0
A347: 81 | C347: ZACATECAS | D347: 3 | E347: 3 | F347: 2 | G347: -1
A348: 82
A349: 83
A350: 84
A351: 85
A352: 86
A353: 87
A354: 88
A355: 89
A356: 90
A357: =1+A356 -> 91
A358: =1+A357 -> 92
A359: =1+A358 -> 93
A360: =1+A359 -> 94
A361: 95
A362: 96
A363: 97
A364: 98
A365: 99
A366: 100

Sheet IMPRESION (hidden)
K6: =TODAY() -> 2018-02-08
B7: ="Apreciable "&COTIZACION!C30 -> Apreciable
B9: =+"Agradecemos de antemano su preferencia y esperamos que la presente propuesta de Gastos Médicos "&COTIZACION!D9&" cumpla sus expectativas." -> Agradecemos de antemano su preferencia y esperamos que la presente propuesta de Gastos Médicos FAMILIAR cumpla sus expectativas.
B12: CUADRO DE COBERTURAS
B13: - | C13: Tipo de Hospital | I13: Todos los hospitales
B15: - | C15: Suma Asegurada | I15: =+CuadroEspecificacionesTARIFARIO!H17 -> 10000000 | J15: =IF(I15<>"SIN LÍMITE","M.N.","") -> M.N.
B17: - | C17: Deducible por Accidente y Enfermedad | I17: =+CuadroEspecificacionesTARIFARIO!H19 -> 10000 | J17: M.N.
B19: - | C19: Coaseguro | G19: Enfermedad | I19: =+CuadroEspecificacionesTARIFARIO!H22 -> 0.1 | J19: =+CONCATENATE("Con tope de ",VLOOKUP(I19,FACTORES!C3:E6,3,FALSE)&" M.N.") -> Con tope de $35,000 M.N.
G20: Accidente | I20: 0
B22: - | C22: Incremento al Catálogo | I22: =+TITULAR!E9 -> 0
B23: - | C23: =IF(I22=0,"Base de Honorarios Quirúrgicos","Base de Honorarios Quirúrgicos (incluye el incremento de "&I22*100&"% seleccionado) ") -> Base de Honorarios Quirúrgicos | I23: =VLOOKUP(COTIZACION!$D$14,FACTORES!$N$8:$O$13,2,0)*FACTORES!$O$14*(1+TITULAR!$E$9) -> 52400 | J23: M.N.
B24: - | C24: Honorarios por visita intrahospitalaria | I24: Catálogo
B25: - | C25: Honorarios por consulta | I25: Catálogo
B26: - | C26: Honorarios por enfermera máximo 3 turnos por día durante 30 días | I26: Catálogo
B27: - | C27: Habitación Hospital | I27: Privado Estándar
B28: - | C28: Sala de operación y recuperación, medicamentos, consumo de oxígeno,
C29: servicios de terapia, tratamiento de diálisis y transfusiones de sangre | I29: Incluido
B30: - | C30: Renta de aparatos ortopédicos y prótesis | I30: Incluido
B31: - | C31: Ambulancia Aérea | I31: Incluida
B32: - | C32: Ambulancia Terrestre | I32: Incluida
B33: - | C33: Reinstalación automática de Suma Asegurada | I33: Incluida
B34: - | C34: Gastos por donación de órganos | I34: =IF(I17<0,"Excluido",100000) -> 100000 | J34: =IF(I34="Excluido","","M.N") -> M.N
B35: - | C35: Renta diaria por hospitalización en un Centro de Asistencia Social máximo 30 días | I35: =IF(I17<0,"Excluido",300) -> 300 | J35: =IF(I35="Excluido","","M.N") -> M.N
B36: - | C36: Gastos por Parto o Cesárea del Titular, Cónyuge o hija asegurada con periodo de
C37: espera de 10 meses sin deducible, ni coaseguro | I37: =IF(COTIZACION!E17="SUMA ASEGURADA NO PERMITIDA PARA PÓLIZAS NUEVAS","EXCLUIDO ",IF(I17>50000,"Excluido",IF(COTIZACION!D16="NO","$20,000",COTIZACION!D17))) -> 40000 | J37: =IF(I37="Excluido","","M.N") -> M.N
B38: - | C38: Complicaciones del Embarazo y del Parto del Titular, Cónyuge o hija asegurada,
C39: con periodo de espera de 10 meses, con deducible y coaseguro | I39: Catálogo
B40: - | C40: Prematurez siempre que el nacimiento ocurra después de 10 meses de | I40: Suma Asegurada
C41: alta de la madre | I41: Básica | J41: =IF(I41="Excluido","","Por Evento") -> Por Evento
B42: - | C42: Preexistencia Declarada, con periodo de espera de 2 años, no aplica reconocimiento | I42: Incluida
C43: de antigüedad
B44: - | C44: Circuncisión, con periodo de espera de 1 año, no aplica reconocimiento de antigüedad | I44: Incluida
B45: - | C45: Padecimientos congénitos para nacidos dentro de la vigencia, dados de alta dentro
C46: de los 30 días posteriores al nacimiento y que la madre asegurada cumpla con el
C47: periodo de espera de 10 meses. Para los nacidos fuera de vigencia aplica periodo de
C48: espera de 12 meses. | I48: Incluido
B49: - | C49: Legrado | I49: =IF(I17<0,"Excluido",10000) -> 10000 | J49: =IF(I49="Excluido","","M.N") -> M.N
B50: - | C50: SIDA, siempre que el asegurado se encuentre cubierto en Seguros Banorte al
C51: menos 4 años ininterrumpidos | I51: Incluido
B52: - | C52: Terapia Psicológica o Psiquiátrica | I52: Incluido
B53: - | C53: Xifósis, lordósis y escoleosis, con periodo de espera de 2 años
C54: no aplica reconocimiento de antigüedad | I54: Incluido
B55: - | C55: Reconocimiento de Antigüedad, previa comprobación | I55: Incluido
B56: - | C56: Incremento de Catálogo de Honorarios para enfermedades catastróficas | I56: Incluida
B57: - | C57: Trastornos Visuales, con periodo de espera de 18 meses | I57: =IF(I17<0,"Excluido",12000) -> 12000 | J57: =IF(I57="Excluido","","M.N") -> M.N
B58: - | C58: Lente intraocular, con periodo de espera de 12 meses | I58: =IF(I17<0,"Excluido",3000) -> 3000 | J58: =IF(I58="Excluido","","M.N") -> M.N
B59: - | C59: Cobertura Sin Límite de Edad (de acuerdo a la cláusula de edad) | I59: Incluido
B60: - | C60: Cobertura Integral Dental y Visión | I60: Incluido
B61: - | C61: Servicios de Asistencia | I61: Incluido
B63: - | C63: Emergencia Extranjero con suma asegurada de 50,000 Dlls, deducible de 50 Dlls y coaseguro 0% | I63: =IF(COTIZACION!D21="si","Incluido","Excluido") -> Incluido
B64: - | C64: Cobertura Total en el Extranjero | I64: =IF(COTIZACION!D20="si","Incluido","Excluido") -> Incluido
B65: - | C65: Cobertura de Eliminación de Deducible por Accidente | I65: =IF(AND(COTIZACION!D15="si",COTIZACION!D11<=50000),"Incluido","Excluido") -> Incluido
B66: - | C66: Cobertura de Indemnización por Enfermedad Grave | I66: =IF(OR(COTIZACION!D19="NO",SUM(COTIZACION!A30:A37)<=0),"Excluido",COTIZACION!D19) -> 10000 | J66: =IF(I66="EXCLUIDO","","M.N.") -> M.N.
B67: - | C67: Cobertura de Visión Incremental | I67: =IF(COTIZACION!D18="SI","Incluido","Excluido") -> Incluido
B69: Se cobrará doble deducible y coaseguro de póliza, a los Asegurados que se atiendan en Hospiten México S.A de C.V
B70: Se puede otorgar pago directo en la atención con médicos y hospitales en convenio, teniendo una disminución de $1,500 en el deducible y 5 puntos
B71: porcentuales de coaseguro, siempre que la atención sea dentro de la misma zona de tarifa contratada o una zona menor (este beneficio no aplica
B72: para los siguientes hospitales: ABC Observatorio, ABC Santa Fe, Ángeles del Pedregal, Ángeles Lomas, Ángeles Acoxpa,
B73: Star Médica Lomas Verdes y Médica Sur, para estos hospitales aplica pago directo con deducible y coaseguro contratado).
C75: PARTICIPANTES
C76: Nombre | H76: Edad | I76: Sexo | J76: Parentesco | K76: Prima Neta
K77: Anual
A78: =IF(AND(H78<>"",H78>64),1,0) -> 0 | C78: =IF(COTIZACION!C30="","",COTIZACION!C30) ->  | H78: =IF(COTIZACION!E30="","",COTIZACION!E30) -> 29 | I78: =IF(COTIZACION!D30="","",COTIZACION!D30) -> M | J78: =IF(COTIZACION!C30="","",COTIZACION!B30) ->  | K78: =IF(COTIZACION!E7="NO ES VÁLIDA, RECONSIDERAR SU PRIMERA EMISIÓN","",IF(COTIZACION!F30<>"","",IF(COTIZACION!F30="EDAD NO PERMITIDA","EDAD NO PERMITIDA",IF($I$37="EXCLUIDO ",0,IF(H78="","",IF(I78="H",VLOOKUP(H78,TITULAR!$B$21:$G$106,5,0),VLOOKUP(H78,TITULAR!$B$21:$G$106,6,0))))))) -> 57869.97183
A79: =IF(AND(H79<>"",H79>64),1,0) -> 0 | C79: =IF(COTIZACION!C31="","",COTIZACION!C31) ->  | H79: =+IF(COTIZACION!D9="INDIVIDUAL","",IF(COTIZACION!E31="","",COTIZACION!E31)) ->  | I79: =IF(COTIZACION!D31="","",COTIZACION!D31) ->  | J79: =IF(COTIZACION!C31="","",COTIZACION!B31) ->  | K79: =IF(COTIZACION!E7="NO ES VÁLIDA, RECONSIDERAR SU PRIMERA EMISIÓN","",IF(COTIZACION!F30<>"","",IF(COTIZACION!F31="EDAD NO PERMITIDA","EDAD NO PERMITIDA",IF($I$37="EXCLUIDO ",0,IF(H79="","",IF(I79="H",VLOOKUP(H79,CONYUGE!$B$21:$G$106,5,0),IF(I79="M",VLOOKUP(H79,CONYUGE!$B$21:$G$106,6,0),""))))))) -> 
A80: 0 | C80: =IF(COTIZACION!C32="","",COTIZACION!C32) ->  | H80: =+IF(COTIZACION!D9="INDIVIDUAL","",IF(COTIZACION!E32="","",COTIZACION!E32)) ->  | I80: =IF(COTIZACION!D32="","",COTIZACION!D32) ->  | J80: =IF(COTIZACION!C32="","",COTIZACION!B32) ->  | K80: =IF(COTIZACION!$E$7="NO ES VÁLIDA, RECONSIDERAR SU PRIMERA EMISIÓN","",IF(COTIZACION!$F$30<>"","",IF(COTIZACION!F32="EDAD NO PERMITIDA","EDAD NO PERMITIDA",IF($I$37="EXCLUIDO ",0,IF(H80="","",IF(I80="H",VLOOKUP(H80,DEPENDIENTE!$B$21:$G$106,5,0),IF(I80="M",VLOOKUP(H80,DEPENDIENTE!$B$21:$G$106,6,0),""))))))) -> 
A81: 0 | C81: =IF(COTIZACION!C33="","",COTIZACION!C33) ->  | H81: =+IF(COTIZACION!D9="INDIVIDUAL","",IF(COTIZACION!E33="","",COTIZACION!E33)) ->  | I81: =IF(COTIZACION!D33="","",COTIZACION!D33) ->  | J81: =IF(COTIZACION!C33="","",COTIZACION!B33) ->  | K81: =IF(COTIZACION!E7="NO ES VÁLIDA, RECONSIDERAR SU PRIMERA EMISIÓN","",IF(COTIZACION!F30<>"","",IF(COTIZACION!F33="EDAD NO PERMITIDA","EDAD NO PERMITIDA",IF($I$37="EXCLUIDO ",0,IF(H81="","",IF(I81="H",VLOOKUP(H81,DEPENDIENTE!$B$21:$G$106,5,0),IF(I81="M",VLOOKUP(H81,DEPENDIENTE!$B$21:$G$106,6,0),""))))))) -> 
A82: 0 | C82: =IF(COTIZACION!C34="","",COTIZACION!C34) ->  | H82: =+IF(COTIZACION!D9="INDIVIDUAL","",IF(COTIZACION!E34="","",COTIZACION!E34)) ->  | I82: =IF(COTIZACION!D34="","",COTIZACION!D34) ->  | J82: =IF(COTIZACION!C34="","",COTIZACION!B34) ->  | K82: =IF(COTIZACION!E7="NO ES VÁLIDA, RECONSIDERAR SU PRIMERA EMISIÓN","",IF(COTIZACION!F30<>"","",IF(COTIZACION!F34="EDAD NO PERMITIDA","EDAD NO PERMITIDA",IF($I$37="EXCLUIDO ",0,IF(H82="","",IF(I82="H",VLOOKUP(H82,DEPENDIENTE!$B$21:$G$106,5,0),IF(I82="M",VLOOKUP(H82,DEPENDIENTE!$B$21:$G$106,6,0),""))))))) -> 
A83: 0 | C83: =IF(COTIZACION!C35="","",COTIZACION!C35) ->  | H83: =+IF(COTIZACION!D9="INDIVIDUAL","",IF(COTIZACION!E35="","",COTIZACION!E35)) ->  | I83: =IF(COTIZACION!D35="","",COTIZACION!D35) ->  | J83: =IF(COTIZACION!C35="","",COTIZACION!B35) ->  | K83: =IF(COTIZACION!E7="NO ES VÁLIDA, RECONSIDERAR SU PRIMERA EMISIÓN","",IF(COTIZACION!F30<>"","",IF(COTIZACION!F35="EDAD NO PERMITIDA","EDAD NO PERMITIDA",IF($I$37="EXCLUIDO ",0,IF(H83="","",IF(I83="H",VLOOKUP(H83,DEPENDIENTE!$B$21:$G$106,5,0),IF(I83="M",VLOOKUP(H83,DEPENDIENTE!$B$21:$G$106,6,0),""))))))) -> 
A84: 0 | C84: =IF(COTIZACION!C36="","",COTIZACION!C36) ->  | H84: =+IF(COTIZACION!D9="INDIVIDUAL","",IF(COTIZACION!E36="","",COTIZACION!E36)) ->  | I84: =IF(COTIZACION!D36="","",COTIZACION!D36) ->  | J84: =IF(COTIZACION!C36="","",COTIZACION!B36) ->  | K84: =IF(COTIZACION!E7="NO ES VÁLIDA, RECONSIDERAR SU PRIMERA EMISIÓN","",IF(COTIZACION!F30<>"","",IF(COTIZACION!F36="EDAD NO PERMITIDA","EDAD NO PERMITIDA",IF($I$37="EXCLUIDO ",0,IF(H84="","",IF(I84="H",VLOOKUP(H84,DEPENDIENTE!$B$21:$G$106,5,0),IF(I84="M",VLOOKUP(H84,DEPENDIENTE!$B$21:$G$106,6,0),""))))))) -> 
A85: 0 | C85: =IF(COTIZACION!C37="","",COTIZACION!C37) ->  | H85: =+IF(COTIZACION!D9="INDIVIDUAL","",IF(COTIZACION!E37="","",COTIZACION!E37)) ->  | I85: =IF(COTIZACION!D37="","",COTIZACION!D37) ->  | J85: =IF(COTIZACION!C37="","",COTIZACION!B37) ->  | K85: =IF(COTIZACION!E7="NO ES VÁLIDA, RECONSIDERAR SU PRIMERA EMISIÓN","",IF(COTIZACION!F30<>"","",IF(COTIZACION!F37="EDAD NO PERMITIDA","EDAD NO PERMITIDA",IF($I$37="EXCLUIDO ",0,IF(H85="","",IF(I85="H",VLOOKUP(H85,DEPENDIENTE!$B$21:$G$106,5,0),IF(I85="M",VLOOKUP(H85,DEPENDIENTE!$B$21:$G$106,6,0),""))))))) -> 
I86: Prima Total Anual | K86: =IF(COTIZACION!D7="NUEVA",IF(IMPRESION!A105=0,SUM(K78:K85),0),SUM(K78:K85)) -> 57869.97183
I87: Recargo por Pago Fracc. | K87: =+TITULAR!G17 -> 0
I88: Derecho de Póliza | K88: =IF(K86=0,0,IF(I37="EXCLUIDO ",0,+TITULAR!I25)) -> 700
I89: Subtotal | K89: =+K86+K88 -> 58569.97183
E90: =COTIZACION!D13 -> CIUDAD DE MÉXICO | I90: I.V.A. | K90: =+K89*TITULAR!K25 -> 9371.195493
I91: Prima Total Anual | K91: =SUM(K89:K90) -> 67941.16732
E92: =IF(COTIZACION!C42="","",COTIZACION!C42) -> 
C95: =+COTIZACION!G30 -> ANUAL | E95: =IF(COTIZACION!F30<>"",0,IF(K86=0,0,IF(I37="EXCLUIDO ",0,(K86/(1+K87)+DER)*(1+COTIZACION!$D$26)))) -> 67941.16732 | F95: 0 | G95: =+F95+E95 -> 67941.16732
C96: ="SEMESTRAL (Recargo "&COTIZACION!H39*100&"%)" -> SEMESTRAL (Recargo 4.73%) | E96: =+COTIZACION!H31 -> 35964.18847 | F96: =+COTIZACION!I31 -> 35152.18847 | G96: =+F96+E96 -> 71116.37694
C97: ="TRIMESTRAL (Recargo "&COTIZACION!H40*100&"%)" -> TRIMESTRAL (Recargo 6.99%) | E97: =+COTIZACION!H32 -> 18767.37403 | F97: =+COTIZACION!I32 -> 17955.37403 | G97: =+F97*3+E97 -> 72633.49612
C98: ="MENSUAL (Recargo "&COTIZACION!H41*100&"%)" -> MENSUAL (Recargo 9.99%) | E98: =+COTIZACION!H33 -> 6964.947595 | F98: =+COTIZACION!I33 -> 6152.947595 | G98: =+F98*11+E98 -> 74647.37114
C100: Notas:
C101: *Este producto cuenta con exclusiones y limitaciones, las cuales pueden ser consultadas en las Condiciones Generales del producto en la página
C102: www.segurosbanorte.com.mx
C103: * Esta cotización tiene una validez de 15 días a partir de su fecha de elaboración. La edad limite de aceptación es hasta los 64 años. * El recargo por pago fraccionado está sujeto a cambio sin previo aviso.
A105: =SUM(A78:A85) -> 0 | C105: =+CONCATENATE("EN SEGUROS BANORTE ESTA COTIZACIÓN ",COTIZACION!E7) -> EN SEGUROS BANORTE ESTA COTIZACIÓN APLICA PARA AQUELLA PÓLIZA NUEVA CON PRIMER VIGENCIA EMITIDA A PARTIR DEL 01/10/2016
B107: Tarifa Total Vig: Marzo 01, 2018
A225: FP
A226: =IF(#REF!="ANUAL",1,IF(#REF!="SEMESTRAL",2,IF(#REF!="TRIMESTRAL",4,IF(#REF!="MENSUAL",12,1)))) -> 
A228: IVA
A229: 0.1
A230: 0.15

Sheet TARIFARIO (hidden)
D7: =+COTIZACION!D7 -> NUEVA | K7: REGION | L7: =+COTIZACION!D14 -> 5
C9: COBERTURAS OPCIONALES
C10: Suma Asegurada para Parto y Cesárea | F10: =IF(COTIZACION!D11>50000,"No incluido",IF(COTIZACION!D16="si",COTIZACION!D17,"$20,000 Cobertura Básica")) -> 40000 | H10: Cobertura Total en el Extranjero | K10: =IF(COTIZACION!D20="SI","Incluido"&" con Zona "&COTIZACION!D22,"No Incluido") -> Incluido con Zona B
C11: Eliminación de Deducible por Accidente | F11: =IF(COTIZACION!D11>50000,"No incluido",IF(COTIZACION!D15="SI","Incluido","No Incluido")) -> Incluido | H11: Cobertura de Indemnización por Enfermedad Grave | K11: =IF(AND(COTIZACION!D19<>"NO",COTIZACION!E19=""),COTIZACION!D19,"No Incluido") -> 10000
C12: Emergencia en el Extranjero | F12: =IF(COTIZACION!D21="SI","Incluido","No Incluido") -> Incluido
B15: SUMA ASEGURADA: | D15: =TITULAR!E5 -> 10000000 | F15: SUMA ASEGURADA: | H15: =CONYUGE!E5 -> 10000000 | J15: SUMA ASEGURADA: | L15: =DEPENDIENTE!E5 -> 10000000
B16: DEDUCIBLE: | D16: =TITULAR!E6 -> 10000 | F16: DEDUCIBLE: | H16: =CONYUGE!E6 -> 10000 | J16: DEDUCIBLE: | L16: =DEPENDIENTE!E6 -> 10000
B17: COASEGURO: | D17: =TITULAR!E8 -> 0.1 | F17: COASEGURO: | H17: =CONYUGE!E7 -> 0.1 | J17: COASEGURO: | L17: =DEPENDIENTE!E7 -> 0.1
G19: PRIMA TOTAL CONYUGE
B21: EDAD | C21: HOMBRE | D21: MUJER | F21: EDAD | G21: HOMBRE | H21: MUJER | J21: EDAD | K21: HOMBRE | L21: MUJER
B22: 18 | C22: =+TITULAR!J45 -> 25758.35753 | D22: =+TITULAR!K45 -> 43741.51412 | F22: 18 | G22: =+CONYUGE!J39 -> 23910.13405 | H22: =+CONYUGE!K39 -> 41893.29064 | J22: 0 - 5 | K22: =+DEPENDIENTE!J26 -> 24447.16765 | L22: =+DEPENDIENTE!K26 -> 24461.23845
B23: =+B22+1 -> 19 | C23: =+TITULAR!J46 -> 26508.73833 | D23: =+TITULAR!K46 -> 44038.67132 | F23: =+F22+1 -> 19 | G23: =+CONYUGE!J40 -> 24660.51485 | H23: =+CONYUGE!K40 -> 42190.44784 | J23: 6 | K23: =+DEPENDIENTE!J27 -> 24447.16765 | L23: =+DEPENDIENTE!K27 -> 24461.23845
B24: =+B23+1 -> 20 | C24: =+TITULAR!J47 -> 27202.19793 | D24: =+TITULAR!K47 -> 47293.56172 | F24: =+F23+1 -> 20 | G24: =+CONYUGE!J41 -> 25353.97445 | H24: =+CONYUGE!K41 -> 45445.33824 | J24: =+J23+1 -> 7 | K24: =+DEPENDIENTE!J28 -> 24447.16765 | L24: =+DEPENDIENTE!K28 -> 24461.23845
B25: 21 | C25: =+TITULAR!J48 -> 28441.19393 | D25: =+TITULAR!K48 -> 54279.51092 | F25: 21 | G25: =+CONYUGE!J42 -> 26592.97045 | H25: =+CONYUGE!K42 -> 52431.28744 | J25: =+J24+1 -> 8 | K25: =+DEPENDIENTE!J29 -> 24447.16765 | L25: =+DEPENDIENTE!K29 -> 24461.23845
B26: 22 | C26: =+TITULAR!J49 -> 29552.93793 | D26: =+TITULAR!K49 -> 55754.96132 | F26: 22 | G26: =+CONYUGE!J43 -> 27704.71445 | H26: =+CONYUGE!K43 -> 53906.73784 | J26: 9 | K26: =+DEPENDIENTE!J30 -> 24447.16765 | L26: =+DEPENDIENTE!K30 -> 24461.23845
B27: 23 | C27: =+TITULAR!J50 -> 31262.69673 | D27: =+TITULAR!K50 -> 57286.86892 | F27: 23 | G27: =+CONYUGE!J44 -> 29414.47325 | H27: =+CONYUGE!K44 -> 55438.64544 | J27: 10 | K27: =+DEPENDIENTE!J31 -> 24447.16765 | L27: =+DEPENDIENTE!K31 -> 24461.23845
B28: 24 | C28: =+TITULAR!J51 -> 32410.80673 | D28: =+TITULAR!K51 -> 58884.42092 | F28: 24 | G28: =+CONYUGE!J45 -> 30562.58325 | H28: =+CONYUGE!K45 -> 57036.19744 | J28: 11 | K28: =+DEPENDIENTE!J32 -> 24319.42845 | L28: =+DEPENDIENTE!K32 -> 24114.94365
B29: 25 | C29: =+TITULAR!J52 -> 33546.64393 | D29: =+TITULAR!K52 -> 60532.23572 | F29: 25 | G29: =+CONYUGE!J46 -> 31698.42045 | H29: =+CONYUGE!K46 -> 58684.01224 | J29: 12 | K29: =+DEPENDIENTE!J33 -> 24215.64325 | L29: =+DEPENDIENTE!K33 -> 24419.90765
B30: 26 | C30: =+TITULAR!J53 -> 35575.98273 | D30: =+TITULAR!K53 -> 62294.65852 | F30: 26 | G30: =+CONYUGE!J47 -> 33727.75925 | H30: =+CONYUGE!K47 -> 60446.43504 | J30: 13 | K30: =+DEPENDIENTE!J34 -> 24060.94565 | L30: =+DEPENDIENTE!K34 -> 24271.13765
B31: 27 | C31: =+TITULAR!J54 -> 36982.09993 | D31: =+TITULAR!K54 -> 64075.46732 | F31: 27 | G31: =+CONYUGE!J48 -> 35133.87645 | H31: =+CONYUGE!K48 -> 62227.24384 | J31: 14 | K31: =+DEPENDIENTE!J35 -> 23483.09165 | L31: =+DEPENDIENTE!K35 -> 23813.70325
B32: 28 | C32: =+TITULAR!J55 -> 38960.36393 | D32: =+TITULAR!K55 -> 65991.59012 | F32: 28 | G32: =+CONYUGE!J49 -> 37112.14045 | H32: =+CONYUGE!K49 -> 64143.36664 | J32: 15 | K32: =+DEPENDIENTE!J36 -> 23571.39085 | L32: =+DEPENDIENTE!K36 -> 23456.51605
B33: 29 | C33: =+TITULAR!J56 -> 40797.39793 | D33: =+TITULAR!K56 -> 67941.16732 | F33: 29 | G33: =+CONYUGE!J50 -> 38949.17445 | H33: =+CONYUGE!K50 -> 66092.94384 | J33: 16 | K33: =+DEPENDIENTE!J37 -> 23164.34685 | L33: =+DEPENDIENTE!K37 -> 22635.44485
B34: 30 | C34: =+TITULAR!J57 -> 42521.15793 | D34: =+TITULAR!K57 -> 70038.25012 | F34: 30 | G34: =+CONYUGE!J51 -> 40672.93445 | H34: =+CONYUGE!K51 -> 68190.02664 | J34: 17 | K34: =+DEPENDIENTE!J38 -> 23281.87805 | L34: =+DEPENDIENTE!K38 -> 22965.49965
B35: 31 | C35: =+TITULAR!J58 -> 44135.58793 | D35: =+TITULAR!K58 -> 72202.55492 | F35: 31 | G35: =+CONYUGE!J52 -> 42287.36445 | H35: =+CONYUGE!K52 -> 70354.33144 | J35: 18 | K35: =+DEPENDIENTE!J39 -> 23910.13405 | L35: =+DEPENDIENTE!K39 -> 41893.29064
B36: 32 | C36: =+TITULAR!J59 -> 46619.42633 | D36: =+TITULAR!K59 -> 74434.51092 | F36: 32 | G36: =+CONYUGE!J53 -> 44771.20285 | H36: =+CONYUGE!K53 -> 72586.28744 | J36: 19 | K36: =+DEPENDIENTE!J40 -> 24660.51485 | L36: =+DEPENDIENTE!K40 -> 42190.44784
B37: 33 | C37: =+TITULAR!J60 -> 48174.98633 | D37: =+TITULAR!K60 -> 76285.32572 | F37: 33 | G37: =+CONYUGE!J54 -> 46326.76285 | H37: =+CONYUGE!K54 -> 74437.10224 | J37: 20 | K37: =+DEPENDIENTE!J41 -> 25353.97445 | L37: =+DEPENDIENTE!K41 -> 45445.33824
B38: 34 | C38: =+TITULAR!J61 -> 50717.10313 | D38: =+TITULAR!K61 -> 78715.83892 | F38: 34 | G38: =+CONYUGE!J55 -> 48868.87965 | H38: =+CONYUGE!K55 -> 76867.61544 | J38: 21 | K38: =+DEPENDIENTE!J42 -> 26592.97045 | L38: =+DEPENDIENTE!K42 -> 52431.28744
B39: 35 | C39: =+TITULAR!J62 -> 53362.18153 | D39: =+TITULAR!K62 -> 81272.17732 | F39: 35 | G39: =+CONYUGE!J56 -> 51513.95805 | H39: =+CONYUGE!K56 -> 79423.95384 | J39: 22 | K39: =+DEPENDIENTE!J43 -> 27704.71445 | L39: =+DEPENDIENTE!K43 -> 53906.73784
B40: 36 | C40: =+TITULAR!J63 -> 55527.91313 | D40: =+TITULAR!K63 -> 83914.66892 | F40: 36 | G40: =+CONYUGE!J57 -> 53679.68965 | H40: =+CONYUGE!K57 -> 82066.44544 | J40: 23 | K40: =+DEPENDIENTE!J44 -> 29414.47325 | L40: =+DEPENDIENTE!K44 -> 55438.64544
B41: 37 | C41: =+TITULAR!J64 -> 58379.11193 | D41: =+TITULAR!K64 -> 86765.65892 | F41: 37 | G41: =+CONYUGE!J58 -> 56530.88845 | H41: =+CONYUGE!K58 -> 84917.43544 | J41: 24 | K41: =+DEPENDIENTE!J45 -> 30562.58325 | L41: =+DEPENDIENTE!K45 -> 57036.19744
B42: 38 | C42: =+TITULAR!J65 -> 61389.50913 | D42: =+TITULAR!K65 -> 89628.85212 | F42: 38 | G42: =+CONYUGE!J59 -> 59541.28565 | H42: =+CONYUGE!K59 -> 87780.62864
B43: 39 | C43: =+TITULAR!J66 -> 64608.39313 | D43: =+TITULAR!K66 -> 92655.65172 | F43: 39 | G43: =+CONYUGE!J60 -> 62760.16965 | H43: =+CONYUGE!K60 -> 90807.42824
B44: 40 | C44: =+TITULAR!J67 -> 66771.27113 | D44: =+TITULAR!K67 -> 95802.76652 | F44: 40 | G44: =+CONYUGE!J61 -> 64923.04765 | H44: =+CONYUGE!K61 -> 93954.54304
B45: 41 | C45: =+TITULAR!J68 -> 69141.30193 | D45: =+TITULAR!K68 -> 99105.88972 | F45: 41 | G45: =+CONYUGE!J62 -> 67293.07845 | H45: =+CONYUGE!K62 -> 97257.66624
B46: 42 | C46: =+TITULAR!J69 -> 71726.38513 | D46: =+TITULAR!K69 -> 102551.5885 | F46: 42 | G46: =+CONYUGE!J63 -> 69878.16165 | H46: =+CONYUGE!K63 -> 100703.365
B47: 43 | C47: =+TITULAR!J70 -> 74523.62073 | D47: =+TITULAR!K70 -> 106144.7349 | F47: 43 | G47: =+CONYUGE!J64 -> 72675.39725 | H47: =+CONYUGE!K64 -> 104296.5114
B48: 44 | C48: =+TITULAR!J71 -> 77617.38713 | D48: =+TITULAR!K71 -> 110291.5841 | F48: 44 | G48: =+CONYUGE!J65 -> 75769.16365 | H48: =+CONYUGE!K65 -> 108443.3606
B49: 45 | C49: =+TITULAR!J72 -> 80982.44273 | D49: =+TITULAR!K72 -> 114388.4257 | F49: 45 | G49: =+CONYUGE!J66 -> 79134.21925 | H49: =+CONYUGE!K66 -> 112540.2022
B50: 46 | C50: =+TITULAR!J73 -> 84700.47473 | D50: =+TITULAR!K73 -> 117890.6165 | F50: 46 | G50: =+CONYUGE!J67 -> 82852.25125 | H50: =+CONYUGE!K67 -> 116042.393
B51: 47 | C51: =+TITULAR!J74 -> 88760.35873 | D51: =+TITULAR!K74 -> 122730.4149 | F51: 47 | G51: =+CONYUGE!J68 -> 86912.13525 | H51: =+CONYUGE!K68 -> 120882.1914
B52: 48 | C52: =+TITULAR!J75 -> 93211.46433 | D52: =+TITULAR!K75 -> 126781.2161 | F52: 48 | G52: =+CONYUGE!J69 -> 91363.24085 | H52: =+CONYUGE!K69 -> 124932.9926
B53: 49 | C53: =+TITULAR!J76 -> 98083.60353 | D53: =+TITULAR!K76 -> 131154.7641 | F53: 49 | G53: =+CONYUGE!J70 -> 96235.38005 | H53: =+CONYUGE!K70 -> 129306.5406
B54: 50 | C54: =+TITULAR!J77 -> 103394.4199 | D54: =+TITULAR!K77 -> 135779.9509 | F54: 50 | G54: =+CONYUGE!J71 -> 101546.1965 | H54: =+CONYUGE!K71 -> 133931.7274
B55: 51 | C55: =+TITULAR!J78 -> 109111.5495 | D55: =+TITULAR!K78 -> 140767.6725 | F55: 51 | G55: =+CONYUGE!J72 -> 107263.3261 | H55: =+CONYUGE!K72 -> 138919.449
B56: 52 | C56: =+TITULAR!J79 -> 115346.6655 | D56: =+TITULAR!K79 -> 146110.2845 | F56: 52 | G56: =+CONYUGE!J73 -> 113498.4421 | H56: =+CONYUGE!K73 -> 144262.061
B57: 53 | C57: =+TITULAR!J80 -> 122161.6423 | D57: =+TITULAR!K80 -> 151841.1601 | F57: 53 | G57: =+CONYUGE!J74 -> 120313.4189 | H57: =+CONYUGE!K74 -> 149992.9366
B58: 54 | C58: =+TITULAR!J81 -> 129538.1635 | D58: =+TITULAR!K81 -> 157935.3129 | F58: 54 | G58: =+CONYUGE!J75 -> 127689.9401 | H58: =+CONYUGE!K75 -> 156087.0894
B59: 55 | C59: =+TITULAR!J82 -> 137398.9615 | D59: =+TITULAR!K82 -> 144189.3927 | F59: 55 | G59: =+CONYUGE!J76 -> 135550.7381 | H59: =+CONYUGE!K76 -> 142341.1693
B60: 56 | C60: =+TITULAR!J83 -> 145967.4755 | D60: =+TITULAR!K83 -> 152756.2943 | F60: 56 | G60: =+CONYUGE!J77 -> 144119.2521 | H60: =+CONYUGE!K77 -> 150908.0709
B61: 57 | C61: =+TITULAR!J84 -> 155160.7771 | D61: =+TITULAR!K84 -> 158567.8827 | F61: 57 | G61: =+CONYUGE!J78 -> 153312.5537 | H61: =+CONYUGE!K78 -> 156719.6593
B62: 58 | C62: =+TITULAR!J85 -> 161753.6371 | D62: =+TITULAR!K85 -> 164836.5111 | F62: 58 | G62: =+CONYUGE!J79 -> 159905.4137 | H62: =+CONYUGE!K79 -> 162988.2877
B63: 59 | C63: =+TITULAR!J86 -> 172119.9423 | D63: =+TITULAR!K86 -> 167618.7595 | F63: 59 | G63: =+CONYUGE!J80 -> 170271.7189 | H63: =+CONYUGE!K80 -> 165770.5361
B64: 60 | C64: =+TITULAR!J87 -> 228605.1679 | D64: =+TITULAR!K87 -> 226994.9835 | F64: 60 | G64: =+CONYUGE!J81 -> 226756.9445 | H64: =+CONYUGE!K81 -> 225146.7601
B65: 61 | C65: =+TITULAR!J88 -> 241039.3935 | D65: =+TITULAR!K88 -> 236797.0531 | F65: 61 | G65: =+CONYUGE!J82 -> 239191.1701 | H65: =+CONYUGE!K82 -> 234948.8297
B66: 62 | C66: =+TITULAR!J89 -> 253700.3411 | D66: =+TITULAR!K89 -> 246883.2299 | F66: 62 | G66: =+CONYUGE!J83 -> 251852.1177 | H66: =+CONYUGE!K83 -> 245035.0065
B67: 63 | C67: =+TITULAR!J90 -> 267607.1867 | D67: =+TITULAR!K90 -> 257490.9079 | F67: 63 | G67: =+CONYUGE!J84 -> 265758.9633 | H67: =+CONYUGE!K84 -> 255642.6845
B68: 64 | C68: =+TITULAR!J91 -> 281627.3179 | D68: =+TITULAR!K91 -> 268766.4211 | F68: 64 | G68: =+CONYUGE!J85 -> 279779.0945 | H68: =+CONYUGE!K85 -> 266918.1977
B71: SUMA ASEGURADA: | D71: =+D15 -> 10000000
B72: DEDUCIBLE: | D72: =+D16 -> 10000
B73: COASEGURO: | D73: =+D17 -> 0.1
B77: EDAD | C77: HOMBRE | D77: MUJER
B78: 0 - 5 | C78: =+TITULAR!J32 -> 26295.39113 | D78: =+TITULAR!K32 -> 26309.46193
B79: 6 | C79: =+TITULAR!J33 -> 26295.39113 | D79: =+TITULAR!K33 -> 26309.46193
B80: =+B79+1 -> 7 | C80: =+TITULAR!J34 -> 26295.39113 | D80: =+TITULAR!K34 -> 26309.46193
B81: =+B80+1 -> 8 | C81: =+TITULAR!J35 -> 26295.39113 | D81: =+TITULAR!K35 -> 26309.46193
B82: 9 | C82: =+TITULAR!J36 -> 26295.39113 | D82: =+TITULAR!K36 -> 26309.46193
B83: 10 | C83: =+TITULAR!J37 -> 26295.39113 | D83: =+TITULAR!K37 -> 26309.46193
B84: 11 | C84: =+TITULAR!J38 -> 26167.65193 | D84: =+TITULAR!K38 -> 25963.16713
B85: 12 | C85: =+TITULAR!J39 -> 26063.86673 | D85: =+TITULAR!K39 -> 26268.13113
B86: 13 | C86: =+TITULAR!J40 -> 25909.16913 | D86: =+TITULAR!K40 -> 26119.36113
B87: 14 | C87: =+TITULAR!J41 -> 25331.31513 | D87: =+TITULAR!K41 -> 25661.92673
B88: 15 | C88: =+TITULAR!J42 -> 25419.61433 | D88: =+TITULAR!K42 -> 25304.73953
B89: 16 | C89: =+TITULAR!J43 -> 25012.57033 | D89: =+TITULAR!K43 -> 24483.66833
B90: 17 | C90: =+TITULAR!J44 -> 25130.10153 | D90: =+TITULAR!K44 -> 24813.72313
B93: Nota: Esta cotización tiene una validez de 15 días apartir de su fecha de elaboración. La edad limite de aceptación es hasta los 64 años. Incluyen I.V.A. Y derechos de póliza, no incluye recargo por pago fraccionado
B95: =+IMPRESION!B107 -> Tarifa Total Vig: Marzo 01, 2018

Sheet Instrucciones (hidden)
I7: =TODAY() -> 2018-02-08
B10: INSTRUCCIONES
B12: Seguros Banorte elaboró para ti esta herramienta de sencilla utilización de la que . . .
B13: ¡Estamos seguros, te será de gran utilidad!
B17: 1. Seleccione el TIPO DE COTIZACIÓN (Individual o Familiar)
B18: 2. Seleccione la fecha de PRIMER VIGENCIA en Seguros Banorte de la póliza a cotizar
B19: 3. Seleccione la SUMA ASEGURADA deseada
B20: 4. Seleccione el DEDUCIBLE deseado
B21: 5. Seleccione el COASEGURO deseado
B22: 6. Seleccione el ESTADO donde radica el cliente.
B23: (El cotizador le asignará la Región que le corresponda)
B24: 7. Seleccione si desea COBERTURA DE ELIMINACION DE DEDUCIBLE POR ACCIDENTE ("SI", " NO")
B25: 8. Seleccione si desea INCREMENTO EN SUMA ASEGURADA POR PARTO O CESÁREA ("SI", "NO")
B26: 9. Seleccione la SUMA ASEGURADA POR PARTO O CESÁREA
B27: (La base de suma asegurada es de $20,000)
B28: 10. Seleccione si desea COBERTURA DE VISION ("SI", " NO")
B29: 11. Seleccione si desea COBERTURA DE INDEMNIZACION POR ENFERMEDADES GRAVES , la SUMA ASEGURADA
B30: 12. Seleccione si desea COBERTURA TOTAL EN EL EXTRANJERO ("SI", " NO")
B31: 13. Seleccione si desea EMERGENCIA EN EL EXTRANJERO ("SI", " NO")
B33: 14. Si eligió la COBERTURA TOTAL EN EL EXTRANJERO
B34: deberá especificar la ZONA COBERTURA TOTAL EN EL EXTRANJERO a la que pertenece el cliente:
B35: A: Deberá elegir la opción A si reside hasta 20 kms de la franja fronteriza con los Estados Unidos de América
B36: B: Deberá elegir la opción B si reside en alguna de las siguientes ciudades: BAJA CALIFORNIA NORTE,
B37: BAJA CALIFORNIA SUR, SONORA, CHIHUAHUA, COAHUILA, NUEVO LEÓN, CAMPECHE, YUCATÁN,
B38: QUINTANA ROO.
B39: C: Resto del país, excepto ZONA A Y ZONA B
B41: 15. Si desea incrementar la base de honorarios quirúrgicos deberá indicar el porcentaje deseado en INC THQ
B42: 16. Indique el IVA que corresponde a su región (16%)
B43: 17. Llene el NOMBRE, SEXO y EDAD del Titular, Cónyuge y Dependientes (si fuera el caso)
B44: 18. Vaya al FORMATO DE IMPRESIÓN para obtener la COTIZACIÓN
B45: 19. Si desea obtener las Tarifas por Edad, después de haber efectuado una COTIZACIÓN podrá consultarlas en TARIFARIO

Sheet Cotizador

Sheet CAMBIOS (hidden)
A1: CAMBIOS MEDICO TOTAL
A3: HOJA FACTORES (TABLAS DE CALCULO)
A4: Tabla de Deducible
A5: Tabla de Eliminación de Deducible por Accidente
A6: Nueva Tabla de parto y cesárea
A7: Tabla de Enfermedades Graves
A8: Tabla de Tarifas
A9: Se agrega tabla de Base de honorarios
A10: Se modifica tabla de factores por región a quedar 4
A12: HOJA TITULAR DEL COTIZADOR (CALCULO TARIFA)
A13: Modificación de costos cobertura Adicionales (dental, PAQ_ADIC, ASIST_IKE, CVISION)
A14: Se elimina la cobertura de Educasystem (maestro a domicilio)
A15: Se agrega costo por cobertura de parto y cesárea (amarrado a la tabla que se encuentra en factores)
A16: Modificación de costo de Derecho de Póliza a 700 pesos
A18: HOJA COTIZACION (COTIZADOR)
A19: Se deja deducible mínimo en 6,000
A20: se modifica Querétaro a zona 4
A21: se modifican la tabla de estados por zona (sólo hay 4 zonas)
A23: HOJA IMPRESIÓN (formato Cotización y Cuadro de especificaciones) | H23: CUADRO DE ESPECIFICACIONES IMPLICA
A24: Modificación de la cobertura de enfermedades catastróficas | H24: ü Cuadro de especificaciones dentro del botón de “Cuadro de Especificaciones” en el paso 2 del cotizador.
A25: Se elimina de cuadro de coberturas la cobertura de Servicio de Maestro a Domicilio | H25: ü Cuadro de especificaciones dentro de la cotización.
A26: Se MODIFICA en el cuadro de coberturas la Cobertura de Dental para agregar Visión (REVISAR LAS AYUDAS PARA ESPECIFICAR ALCANCES Y EVITAR CONFUSION CON LA OPCIONAL) | H26: ü Cuadro de especificaciones dentro del kit de impresión de la póliza.
A27: Modificación de base de honorarios quirúrgicos y fórmula para calcularlo | H27: ü Cuadro de especificaciones en el botón “Cuadro de Especificaciones” del Tarifario.
A28: Modificación de la leyenda de beneficio por pago directo y una leyenda en NOTAS | H28: ü Cuadro de especificaciones generado dentro del Tarifario.
H29: ü Cuadro de especificaciones dentro de renovaciones Aviso de Renovación de Póliza
A30: MODULOS A IMPACTAR EN ESPACIO
A31: Tarifa de Línea
A32: Tarifa de Empleados
A33: Tarifario
A34: Renovación
A36: CAMBIO EN NUMERO DE REGISTRO
A37: Solicitud
A38: Carátula
A39: Cuadro de Especificaciones
A41: SABE
A42: Aplicar los cambios en la integración
A43: Considerar la nueva cobertura adicional para cobertura de parto y cesárea (adicional 17)
A44: No integrar la cobertura de educasystem (maestro a domicilio)
A46: MODIFICACION EN CARTAS
A47: Cartas de Bienvenida
A48: Carta de Aviso de Renovación
A49: Carta de Renovación
A51: MODIFICACION DE FORMATOS, TAMAÑO DE LETRA Y FORMATOS
A52: Solicitud
A53: carátula
A54: cuadro de especificaciones.
